Workbook

Sheet Hipervínculos
A1: Listado de gráficos - Boletín primer semestre
A2: (Listado de hipervínculos)
A4: Asistencia a cine en Colombia
A5: 1996 – Junio 2011
A8: Índice de asistencia a cine en Colombia
A9: 1996 – 2011*
A12: Taquilla del mercado cinematográfico en Colombia
A13: 1996 – Junio 2011
A16: Estrenos cinematográficos en Colombia
A17: 1996 – Junio 2011
A20: Estreno de películas colombianas
A21: 1996 – Junio 2011
A24: Asistencia a películas colombianas
A25: 1996 – Junio 2011
A28: Participación de las películas nacionales en el total de estrenos en Colombia
A29: 1996 – Junio 2011
A32: Participación de las películas nacionales en el total de asistencia en Colombia
A33: 1996 – Junio 2011
A35: Participación de las películas nacionales en el total de estrenos y asistencia en Colombia
A36: 1996 – Junio 2011
A39: Las cinco películas más taquilleras por año en Colombia
A40: 2007 – Junio 2011
A43: Las cinco películas colombianas más taquilleras por año
A44: 2007 – Junio 2011
A46: Tamaño relativo de Colombia: Población y PIB por habitante
A47: Población | B47: PIB por habitante
A49: Asistencia a cine en algunos países iberoamericanos y Estados Unidos/Canadá. 2000-2010
A52: Índice de asistencia en algunos países iberoamericanos y Estados Unidos/Canadá. 2000-2010
A54: Estrenos de largometrajes nacionales en algunos países iberoamericanos y Estados Unidos/Canadá. 2000-2010
A57: Asistencia a largometrajes nacionales en algunos países iberoamericanos
A58: 2007 – 2010
A61: Participación promedio de los espectadores de largometrajes nacionales en el total de espectadores en algunos países iberoamericanos
A62: 2007 – 2010
A65: Recursos aprobados para el FDC
A66: Millones de pesos corrientes. 2004 - 2011*
A69: Asignación de los estímulos aprobados para el FDC
A70: Millones de pesos corrientes. 2004 - 2011*
A73: Estímulos aprobados para el FDC*- Producción 70%
A74: Millones de pesos corrientes. 2004 - 2011*
A77: Estímulos tributarios
A78: Millones de pesos corrientes. 2004 - 2010*
A81: INFORME ESPECIAL
A83: Gráfico 1
A84: Asistencia a cine en Colombia
A85: 1996 – Junio 2011
A87: Gráfico 2
A88: Asistencia a cine en algunos países iberoamericanos y Estados Unidos/Canadá. 2000-2010
A90: Gráfico 3
A91: Índice de asistencia en algunos países iberoamericanos y Estados Unidos/Canadá. 2000-2010
A94: Gráfico 4
A95: Índice de asistencia y crecimiento de la economía
A96: 2000-2010
A99: Gráfico 5
A100: Salas de exhibición en Colombia
A101: 2006 – 2011*
A104: Gráfico 6
A105: Asistencia a cine en las principales ciudades
A106: 2007 - 2011*
A109: Gráfico 7
A110: Variación anual del número de espectadores por ciudad
A113: Gráfico 8
A114: Evolución real del precio promedio de la boleta en Colombia
A115: 1996 - 2011*
A118: GRÁFICOS PARA EN SEGUNDO PLANO
A120: Mercado cinematográfico por ciudad. 2010
A121: Asistencia | B121: Taquilla
A123: Evolución real del precio promedio de la boleta por ciudad
A125: Participación de los exhibidores por ciudad. 2010
A127: Evolución real del precio promedio de la boleta por exhibidor

Sheet Asistencia a Cine en Colombia
B1: =+[1]a1_ind!AN6 -> Espectadores | C1: =+[1]a5_ind!AH2 -> Películas colombianas
C2: =+[1]a5_ind!AH3 -> Espectatores | D2: Asistencia | E2: Estrenos | G2: Asistencia a cine en Colombia
A3: =+[1]a1_ind!AM7 -> 1990 | B3: =+[1]a1_ind!AN7 -> 26400000 | G3: 1996 – Junio 2011
A4: =+[1]a1_ind!AM8 -> 1991 | B4: =+[1]a1_ind!AN8 -> 25200000
A5: =+[1]a1_ind!AM9 -> 1992 | B5: =+[1]a1_ind!AN9 -> 18700000
A6: =+[1]a1_ind!AM10 -> 1993 | B6: =+[1]a1_ind!AN10 -> 17600000
A7: =+[1]a1_ind!AM11 -> 1994 | B7: =+[1]a1_ind!AN11 -> 17500000
A8: =+[1]a1_ind!AM12 -> 1995 | B8: =+[1]a1_ind!AN12 -> 17500000
A9: =+[1]a1_ind!AM13 -> 1996 | B9: =+[1]a1_ind!AN13 -> 18050000 | C9: =+[1]a5_ind!AH4 -> 987000 | D9: =+C9/B9*100 -> 5.468144044 | E9: =+'Estrenos de películas Col.'!D5 -> 1.098901099
A10: =+[1]a1_ind!AM14 -> 1997 | B10: =+[1]a1_ind!AN14 -> 17850000 | C10: =+[1]a5_ind!AH5 -> 100000 | D10: =+C10/B10*100 -> 0.5602240896 | E10: =+'Estrenos de películas Col.'!D6 -> 0.3968253968
A11: =+[1]a1_ind!AM15 -> 1998 | B11: =+[1]a1_ind!AN15 -> 18350000 | C11: =+[1]a5_ind!AH6 -> 1422000 | D11: 7.749318801 | E11: =+'Estrenos de películas Col.'!D7 -> 1.659751037
A12: =+[1]a1_ind!AM16 -> 1999 | B12: =+[1]a1_ind!AN16 -> 15990000 | C12: =+[1]a5_ind!AH7 -> 112000 | D12: 0.7004377736 | E12: =+'Estrenos de películas Col.'!D8 -> 1.219512195
A13: =+[1]a1_ind!AM17 -> 2000 | B13: =+[1]a1_ind!AN17 -> 17200000 | C13: =+[1]a5_ind!AH8 -> 618000 | D13: 3.593023256 | E13: =+'Estrenos de películas Col.'!D9 -> 1.960784314
A14: =+[1]a1_ind!AM18 -> 2001 | B14: =+[1]a1_ind!AN18 -> 17798000 | C14: =+[1]a5_ind!AH9 -> 84000 | D14: 0.4719631419 | E14: =+'Estrenos de películas Col.'!D10 -> 3.448275862
A15: =+[1]a1_ind!AM19 -> 2002 | B15: =+[1]a1_ind!AN19 -> 18399000 | C15: =+[1]a5_ind!AH10 -> 854541 | D15: 4.644496984 | E15: =+'Estrenos de películas Col.'!D11 -> 2.222222222
A16: =+[1]a1_ind!AM20 -> 2003 | B16: =+[1]a1_ind!AN20 -> 17086000 | C16: =+[1]a5_ind!AH11 -> 577304 | D16: 3.378813063 | E16: =+'Estrenos de películas Col.'!D12 -> 2.857142857
A17: =+[1]a1_ind!AM21 -> 2004 | B17: =+[1]a1_ind!AN21 -> 17122000 | C17: =+[1]a5_ind!AH12 -> 944700 | D17: 5.517462913 | E17: =+'Estrenos de películas Col.'!D13 -> 4.790419162
A18: =+[1]a1_ind!AM22 -> 2005 | B18: =+[1]a1_ind!AN22 -> 15940000 | C18: =+[1]a5_ind!AH13 -> 1979106 | D18: 12.4159724 | E18: =+'Estrenos de películas Col.'!D14 -> 4.87804878
A19: =+[1]a1_ind!AM23 -> 2006 | B19: =+[1]a1_ind!AN23 -> 20216614 | C19: =+[1]a5_ind!AH14 -> 2806892 | D19: 13.88408563 | E19: =+'Estrenos de películas Col.'!D15 -> 4.938271605
A20: =+[1]a1_ind!AM24 -> 2007 | B20: =+[1]a1_ind!AN24 -> 20668958 | C20: =+[1]a5_ind!AH15 -> 2387135 | D20: 11.54937274 | E20: =+'Estrenos de películas Col.'!D16 -> 5.050505051
A21: =+[1]a1_ind!AM25 -> 2008 | B21: =+[1]a1_ind!AN25 -> 21562877 | C21: =+[1]a5_ind!AH16 -> 2278429 | D21: 10.5664425 | E21: =+'Estrenos de películas Col.'!D17 -> 6.5
A22: =+[1]a1_ind!AM26 -> 2009 | B22: =+[1]a1_ind!AN26 -> 27067685 | C22: =+[1]a5_ind!AH17 -> 1208280 | D22: 4.463920723 | E22: =+'Estrenos de películas Col.'!D18 -> 5.607476636
A23: =+[1]a1_ind!AM27 -> 2010 | B23: =+[1]a1_ind!AN27 -> 33655091 | C23: =+[1]a5_ind!AH18 -> 1530700 | D23: 4.548197478 | E23: =+'Estrenos de películas Col.'!D19 -> 4.830917874
A24: =+[1]a1_ind!AM28 -> 2010* | B24: =+[1]a1_ind!AN28 -> 16639700 | C24: =+[1]a5_ind!AH19 -> 767323 | D24: 4.611399244 | E24: =+'Estrenos de películas Col.'!D20 -> 4.761904762
A25: =+[1]a1_ind!AM29 -> 2011* | B25: =+[1]a1_ind!AN29 -> 19047893 | C25: =+[1]a5_ind!AH20 -> 2176843 | D25: 11.42826138 | E25: =+'Estrenos de películas Col.'!D21 -> 5.940594059
A26: =+[1]a1_ind!AM30 -> 0 | B26: =+[1]a1_ind!AN30 -> 0 | G26: Participación de las películas nacionales en el total de asistencia en Colombia
G27: 1996 – Junio 2011
G59: Participación de las películas nacionales en el total de estrenos y asistencia en Colombia
G60: 1996 – Junio 2011

Sheet Ind de Asistencia a Cine en Col
B1: =+[1]a1_ind!AP6 -> Indice de asistencia
A2: =+[1]a1_ind!AM7 -> 1990 | B2: =+[1]a1_ind!AP7 -> 0.7735125398
A3: =+[1]a1_ind!AM8 -> 1991 | B3: =+[1]a1_ind!AP8 -> 0.7235023716
A4: =+[1]a1_ind!AM9 -> 1992 | B4: =+[1]a1_ind!AP9 -> 0.526450032
A5: =+[1]a1_ind!AM10 -> 1993 | B5: =+[1]a1_ind!AP10 -> 0.4860923993
A6: =+[1]a1_ind!AM11 -> 1994 | B6: =+[1]a1_ind!AP11 -> 0.4748479164
A7: =+[1]a1_ind!AM12 -> 1995 | B7: =+[1]a1_ind!AP12 -> 0.4670130783
A8: =+[1]a1_ind!AM13 -> 1996 | B8: =+[1]a1_ind!AP13 -> 0.4741508956
A9: =+[1]a1_ind!AM14 -> 1997 | B9: =+[1]a1_ind!AP14 -> 0.4620080433
A10: =+[1]a1_ind!AM15 -> 1998 | B10: =+[1]a1_ind!AP15 -> 0.4682979394
A11: =+[1]a1_ind!AM16 -> 1999 | B11: =+[1]a1_ind!AP16 -> 0.4024585663
A12: =+[1]a1_ind!AM17 -> 2000 | B12: =+[1]a1_ind!AP17 -> 0.4268460029
A13: =+[1]a1_ind!AM18 -> 2001 | B13: =+[1]a1_ind!AP18 -> 0.4360807605
A14: =+[1]a1_ind!AM19 -> 2002 | B14: =+[1]a1_ind!AP19 -> 0.4451856651
A15: =+[1]a1_ind!AM20 -> 2003 | B15: =+[1]a1_ind!AP20 -> 0.4082777782
A16: =+[1]a1_ind!AM21 -> 2004 | B16: =+[1]a1_ind!AP21 -> 0.404121091
A17: =+[1]a1_ind!AM22 -> 2005 | B17: =+[1]a1_ind!AP22 -> 0.3716606038
A18: =+[1]a1_ind!AM23 -> 2006 | B18: =+[1]a1_ind!AP23 -> 0.4657566809
A19: =+[1]a1_ind!AM24 -> 2007 | B19: =+[1]a1_ind!AP24 -> 0.4705304575
A20: =+[1]a1_ind!AM25 -> 2008 | B20: =+[1]a1_ind!AP25 -> 0.4850915771
A21: =+[1]a1_ind!AM26 -> 2009 | B21: =+[1]a1_ind!AP26 -> 0.6017871918
A22: =+[1]a1_ind!AM27 -> 2010 | B22: =+[1]a1_ind!AP27 -> 0.7395165599
A23: =+[1]a1_ind!AM29 -> 2011* | B23: =+[1]a1_ind!AP29 -> 0.8273670566
D25: Índice de asistencia a cine en Colombia
D26: 1996 – 2011*

Sheet Taquilla en Colombia
B1: =+[1]a1_ind!AH5 -> Taquilla Nominal | D1: =+[1]a1_ind!AJ5 -> Real | E1: =+[1]a1_ind!AK5 -> Real
B2: =+[1]a1_ind!AH6 -> COP | C2: =+[1]a1_ind!AI6 -> USD | D2: =+[1]a1_ind!AJ6 -> COP | E2: =+[1]a1_ind!AK6 -> USD
A3: =+[1]a1_ind!AG7 -> 1990 | B3: =+[1]a1_ind!AH7 -> 11171000000 | C3: =+[1]a1_ind!AI7 -> 22241468.56 | D3: =+[1]a1_ind!AJ7 -> 1.236257333e+11 | E3: =+[1]a1_ind!AK7 -> 67245215.35
A4: =+[1]a1_ind!AG8 -> 1991 | B4: =+[1]a1_ind!AH8 -> 14476000000 | C4: =+[1]a1_ind!AI8 -> 23082105.23 | D4: =+[1]a1_ind!AJ8 -> 1.222191236e+11 | E4: =+[1]a1_ind!AK8 -> 66480101.41
A5: =+[1]a1_ind!AG9 -> 1992 | B5: =+[1]a1_ind!AH9 -> 14444000000 | C5: =+[1]a1_ind!AI9 -> 21229131.02 | D5: =+[1]a1_ind!AJ9 -> 9.52051069e+10 | E5: =+[1]a1_ind!AK9 -> 51786046.02
A6: =+[1]a1_ind!AG10 -> 1993 | B6: =+[1]a1_ind!AH10 -> 20077000000 | C6: =+[1]a1_ind!AI10 -> 25531996.07 | D6: =+[1]a1_ind!AJ10 -> 1.090240715e+11 | E6: =+[1]a1_ind!AK10 -> 59302759.76
A7: =+[1]a1_ind!AG11 -> 1994 | B7: =+[1]a1_ind!AH11 -> 28384000000 | C7: =+[1]a1_ind!AI11 -> 34340745.76 | D7: =+[1]a1_ind!AJ11 -> 1.252098774e+11 | E7: =+[1]a1_ind!AK11 -> 68106897.65 | H7: Taquilla del mercado cinematográfico en Colombia
A8: =+[1]a1_ind!AG12 -> 1995 | B8: =+[1]a1_ind!AH12 -> 33570000000 | C8: =+[1]a1_ind!AI12 -> 36773122.87 | D8: =+[1]a1_ind!AJ12 -> 1.217138105e+11 | E8: =+[1]a1_ind!AK12 -> 66205240.42 | H8: 1996 – Junio 2011
A9: =+[1]a1_ind!AG13 -> 1996 | B9: =+[1]a1_ind!AH13 -> 41994000000 | C9: =+[1]a1_ind!AI13 -> 40510407.6 | D9: =+[1]a1_ind!AJ13 -> 1.272081022e+11 | E9: =+[1]a1_ind!AK13 -> 69193815.85
A10: =+[1]a1_ind!AG14 -> 1997 | B10: =+[1]a1_ind!AH14 -> 53690000000 | C10: =+[1]a1_ind!AI14 -> 47050403.84 | D10: =+[1]a1_ind!AJ14 -> 1.370187086e+11 | E10: =+[1]a1_ind!AK14 -> 74530215.67
A11: =+[1]a1_ind!AG15 -> 1998 | B11: =+[1]a1_ind!AH15 -> 62392000000 | C11: =+[1]a1_ind!AI15 -> 43740145.08 | D11: =+[1]a1_ind!AJ15 -> 1.319242955e+11 | E11: =+[1]a1_ind!AK15 -> 71759150.97 | J11: Taquilla pesos (terminos reales)
A12: =+[1]a1_ind!AG16 -> 1999 | B12: =+[1]a1_ind!AH16 -> 62576000000 | C12: =+[1]a1_ind!AI16 -> 35621622.72 | D12: =+[1]a1_ind!AJ16 -> 1.214379568e+11 | E12: =+[1]a1_ind!AK16 -> 66055192.06
A13: =+[1]a1_ind!AG17 -> 2000 | B13: =+[1]a1_ind!AH17 -> 75765000000 | C13: =+[1]a1_ind!AI17 -> 36287338.82 | D13: =+[1]a1_ind!AJ17 -> 1.34061061e+11 | E13: =+[1]a1_ind!AK17 -> 72921427.23
A14: =+[1]a1_ind!AG18 -> 2001 | B14: =+[1]a1_ind!AH18 -> 92216000000 | C14: =+[1]a1_ind!AI18 -> 40095772.56 | D14: =+[1]a1_ind!AJ18 -> 1.511714737e+11 | E14: =+[1]a1_ind!AK18 -> 82228497.51
A15: =+[1]a1_ind!AG19 -> 2002 | B15: =+[1]a1_ind!AH19 -> 111482000000 | C15: =+[1]a1_ind!AI19 -> 44509463.45 | D15: =+[1]a1_ind!AJ19 -> 1.720135536e+11 | E15: =+[1]a1_ind!AK19 -> 93565377.86
A16: =+[1]a1_ind!AG20 -> 2003 | B16: =+[1]a1_ind!AH20 -> 114183000000 | C16: =+[1]a1_ind!AI20 -> 39680723.02 | D16: =+[1]a1_ind!AJ20 -> 1.643370108e+11 | E16: =+[1]a1_ind!AK20 -> 89389784.66
A17: =+[1]a1_ind!AG21 -> 2004 | B17: =+[1]a1_ind!AH21 -> 127673000000 | C17: =+[1]a1_ind!AI21 -> 48575003.12 | D17: =+[1]a1_ind!AJ21 -> 1.732383891e+11 | E17: =+[1]a1_ind!AK21 -> 94231617.21
A18: =+[1]a1_ind!AG22 -> 2005 | B18: =+[1]a1_ind!AH22 -> 121095000000 | C18: =+[1]a1_ind!AI22 -> 52170672.5 | D18: =+[1]a1_ind!AJ22 -> 1.56743648e+11 | E18: =+[1]a1_ind!AK22 -> 85259436.55
A19: =+[1]a1_ind!AG23 -> 2006 | B19: =+[1]a1_ind!AH23 -> 138432000000 | C19: =+[1]a1_ind!AI23 -> 58692569.09 | D19: =+[1]a1_ind!AJ23 -> 1.724008864e+11 | E19: =+[1]a1_ind!AK23 -> 93776064.43
A20: =+[1]a1_ind!AG24 -> 2007 | B20: =+[1]a1_ind!AH24 -> 148725883903 | C20: =+[1]a1_ind!AI24 -> 71578163.67 | D20: =+[1]a1_ind!AJ24 -> 1.746764218e+11 | E20: =+[1]a1_ind!AK24 -> 95013823.46
A21: =+[1]a1_ind!AG25 -> 2008 | B21: =+[1]a1_ind!AH25 -> 159980785142 | C21: =+[1]a1_ind!AI25 -> 81409461.24 | D21: =+[1]a1_ind!AJ25 -> 1.753013783e+11 | E21: =+[1]a1_ind!AK25 -> 95353763.45
A22: =+[1]a1_ind!AG26 -> 2009 | B22: =+[1]a1_ind!AH26 -> 198078594887 | C22: =+[1]a1_ind!AI26 -> 91805129.73 | D22: =+[1]a1_ind!AJ26 -> 2.090851143e+11 | E22: =+[1]a1_ind!AK26 -> 113730152.8
A23: =+[1]a1_ind!AG27 -> 2010 | B23: =+[1]a1_ind!AH27 -> 258087337650 | C23: =+[1]a1_ind!AI27 -> 135907149.8 | D23: =+[1]a1_ind!AJ27 -> 2.664334456e+11 | E23: =+[1]a1_ind!AK27 -> 144924312.6
A24: =+[1]a1_ind!AG28 -> 2010* | B24: =+[1]a1_ind!AH28 -> 125405116168 | C24: =+[1]a1_ind!AI28 -> 64360924.57 | D24: =+[1]a1_ind!AJ28 -> 1.294605055e+11 | E24: =+[1]a1_ind!AK28 -> 70418992.36
A25: =+[1]a1_ind!AG29 -> 2011* | B25: =+[1]a1_ind!AH29 -> 148687077453 | C25: =+[1]a1_ind!AI29 -> 80877130.3 | D25: =+[1]a1_ind!AJ29 -> 148687077453 | E25: =+[1]a1_ind!AK29 -> 80877130.3
D29: =+D23*100/D18-100 -> 69.98037811
B31: =+B25/B24-100% -> 0.1856539988 | C31: =+C25/C24-100% -> 0.256618528 | D31: 0.1485130302 | E31: 0.1485130302

Sheet Estrenos de películas Col.
A1: =+[1]a3_ind!X7 -> CIFRA OFICIAL | B1: =+[1]a3_ind!Y7 -> Total estrenos | C1: =+[1]a3_ind!Z7 -> Estrenos colombianos | D1: =+[1]a3_ind!AA7 -> % cine colombiano en total estrenos | J1: Estrenos totales (nacionales + extranjeros)
A2: =+[1]a3_ind!X8 -> 1993 | B2: =+[1]a3_ind!Y8 -> 276
A3: =+[1]a3_ind!X9 -> 1994 | B3: =+[1]a3_ind!Y9 -> 268
A4: =+[1]a3_ind!X10 -> 1995 | B4: =+[1]a3_ind!Y10 -> 250
A5: =+[1]a3_ind!X11 -> 1996 | B5: =+[1]a3_ind!Y11 -> 273 | C5: =+[1]a3_ind!Z11 -> 3 | D5: =+[1]a3_ind!AA11 -> 1.098901099
A6: =+[1]a3_ind!X12 -> 1997 | B6: =+[1]a3_ind!Y12 -> 252 | C6: =+[1]a3_ind!Z12 -> 1 | D6: =+[1]a3_ind!AA12 -> 0.3968253968 | F6: Estrenos cinematográficos en Colombia
A7: =+[1]a3_ind!X13 -> 1998 | B7: =+[1]a3_ind!Y13 -> 241 | C7: =+[1]a3_ind!Z13 -> 4 | D7: =+[1]a3_ind!AA13 -> 1.659751037 | F7: 1996 – Junio 2011
A8: =+[1]a3_ind!X14 -> 1999 | B8: =+[1]a3_ind!Y14 -> 246 | C8: =+[1]a3_ind!Z14 -> 3 | D8: =+[1]a3_ind!AA14 -> 1.219512195
A9: =+[1]a3_ind!X15 -> 2000 | B9: =+[1]a3_ind!Y15 -> 204 | C9: =+[1]a3_ind!Z15 -> 4 | D9: =+[1]a3_ind!AA15 -> 1.960784314
A10: =+[1]a3_ind!X16 -> 2001 | B10: =+[1]a3_ind!Y16 -> 203 | C10: =+[1]a3_ind!Z16 -> 7 | D10: =+[1]a3_ind!AA16 -> 3.448275862
A11: =+[1]a3_ind!X17 -> 2002 | B11: =+[1]a3_ind!Y17 -> 180 | C11: =+[1]a3_ind!Z17 -> 4 | D11: =+[1]a3_ind!AA17 -> 2.222222222
A12: =+[1]a3_ind!X18 -> 2003 | B12: =+[1]a3_ind!Y18 -> 175 | C12: =+[1]a3_ind!Z18 -> 5 | D12: =+[1]a3_ind!AA18 -> 2.857142857
A13: =+[1]a3_ind!X19 -> 2004 | B13: =+[1]a3_ind!Y19 -> 167 | C13: =+[1]a3_ind!Z19 -> 8 | D13: =+[1]a3_ind!AA19 -> 4.790419162
A14: =+[1]a3_ind!X20 -> 2005 | B14: =+[1]a3_ind!Y20 -> 164 | C14: =+[1]a3_ind!Z20 -> 8 | D14: =+[1]a3_ind!AA20 -> 4.87804878
A15: =+[1]a3_ind!X21 -> 2006 | B15: =+[1]a3_ind!Y21 -> 162 | C15: =+[1]a3_ind!Z21 -> 8 | D15: =+[1]a3_ind!AA21 -> 4.938271605
A16: =+[1]a3_ind!X22 -> 2007 | B16: =+[1]a3_ind!Y22 -> 198 | C16: =+[1]a3_ind!Z22 -> 10 | D16: =+[1]a3_ind!AA22 -> 5.050505051
A17: =+[1]a3_ind!X23 -> 2008 | B17: =+[1]a3_ind!Y23 -> 200 | C17: =+[1]a3_ind!Z23 -> 13 | D17: =+[1]a3_ind!AA23 -> 6.5
A18: =+[1]a3_ind!X24 -> 2009 | B18: =+[1]a3_ind!Y24 -> 214 | C18: =+[1]a3_ind!Z24 -> 12 | D18: =+[1]a3_ind!AA24 -> 5.607476636
A19: =+[1]a3_ind!X25 -> 2010 | B19: =+[1]a3_ind!Y25 -> 207 | C19: =+[1]a3_ind!Z25 -> 10 | D19: =+[1]a3_ind!AA25 -> 4.830917874
A20: =+[1]a3_ind!X26 -> 2010* | B20: =+[1]a3_ind!Y26 -> 105 | C20: =+[1]a3_ind!Z26 -> 5 | D20: =+[1]a3_ind!AA26 -> 4.761904762
A21: =+[1]a3_ind!X27 -> 2011* | B21: =+[1]a3_ind!Y27 -> 101 | C21: =+[1]a3_ind!Z27 -> 6 | D21: =+[1]a3_ind!AA27 -> 5.940594059
B26: =360/7 -> 51.42857143
B27: =253/52 -> 4.865384615 | I27: a4 | J27: Estrenos (nacionales)
B29: =101/26 -> 3.884615385
F30: Estreno de películas colombianas
F31: 1996 – Junio 2011
I52: a4_2 | J52: Porcentaje de estrenos colombianos en total de estrenos
F55: Participación de las películas nacionales en el total de estrenos en Colombia
F56: 1996 – Junio 2011

Sheet Asistencia a películas Col.
J1: a5 | K1: Espectadores peliculas colombianas
B2: =+[1]a5_ind!AH2 -> Películas colombianas
B3: =+[1]a5_ind!AH3 -> Espectatores | D3: =+[1]a1_ind!AZ10 -> % cine Colombiano
A4: =+[1]a5_ind!AG4 -> 1996 | B4: =+[1]a5_ind!AH4 -> 987000
A5: =+[1]a5_ind!AG5 -> 1997 | B5: =+[1]a5_ind!AH5 -> 100000
A6: =+[1]a5_ind!AG6 -> 1998 | B6: =+[1]a5_ind!AH6 -> 1422000 | D6: =+[1]a1_ind!AZ13 -> 1996 | G6: Asistencia a películas colombianas
A7: =+[1]a5_ind!AG7 -> 1999 | B7: =+[1]a5_ind!AH7 -> 112000 | D7: =+[1]a1_ind!AZ14 -> 1997 | G7: 1996 – Junio 2011
A8: =+[1]a5_ind!AG8 -> 2000 | B8: =+[1]a5_ind!AH8 -> 618000 | D8: =+[1]a1_ind!AZ15 -> 1998
A9: =+[1]a5_ind!AG9 -> 2001 | B9: =+[1]a5_ind!AH9 -> 84000 | D9: =+[1]a1_ind!AZ16 -> 1999
A10: =+[1]a5_ind!AG10 -> 2002 | B10: =+[1]a5_ind!AH10 -> 854541 | D10: =+[1]a1_ind!AZ17 -> 2000
A11: =+[1]a5_ind!AG11 -> 2003 | B11: =+[1]a5_ind!AH11 -> 577304 | D11: =+[1]a1_ind!AZ18 -> 2001
A12: =+[1]a5_ind!AG12 -> 2004 | B12: =+[1]a5_ind!AH12 -> 944700 | D12: =+[1]a1_ind!AZ19 -> 2002
A13: =+[1]a5_ind!AG13 -> 2005 | B13: =+[1]a5_ind!AH13 -> 1979106 | D13: =+[1]a1_ind!AZ20 -> 2003
A14: =+[1]a5_ind!AG14 -> 2006 | B14: =+[1]a5_ind!AH14 -> 2806892 | D14: =+[1]a1_ind!AZ21 -> 2004
A15: =+[1]a5_ind!AG15 -> 2007 | B15: =+[1]a5_ind!AH15 -> 2387135 | D15: =+[1]a1_ind!AZ22 -> 2005
A16: =+[1]a5_ind!AG16 -> 2008 | B16: =+[1]a5_ind!AH16 -> 2278429 | D16: =+[1]a1_ind!AZ23 -> 2006
A17: =+[1]a5_ind!AG17 -> 2009 | B17: =+[1]a5_ind!AH17 -> 1208280 | D17: =+[1]a1_ind!AZ24 -> 2007
A18: =+[1]a5_ind!AG18 -> 2010 | B18: =+[1]a5_ind!AH18 -> 1530700 | D18: =+[1]a1_ind!AZ25 -> 2008
A19: =+[1]a5_ind!AG19 -> 2010* | B19: =+[1]a5_ind!AH19 -> 767323 | D19: =+[1]a1_ind!AZ26 -> 2009
A20: =+[1]a5_ind!AG20 -> 2011* | B20: =+[1]a5_ind!AH20 -> 2176843 | D20: =+[1]a1_ind!AZ27 -> 2010
D21: =+[1]a1_ind!AZ28 -> 2010*
B22: =+B20/B19-100% -> 1.836931774 | D22: =+[1]a1_ind!AZ29 -> 2011*

Sheet 5 más taquilleras en Colombia
E1: =+[1]a12_ind!L9 -> TAQUILLA | H1: =+[1]a12_ind!Q9 -> 0 | K1: Año | L1: Ranking | M1: Película | N1: Asistencia | O1: Taquilla
A2: =+[1]a12_ind!H10 -> AÑO | B2: =+[1]a12_ind!I10 -> RANKING | C2: =+[1]a12_ind!J10 -> PELICULA | D2: =+[1]a12_ind!K10 -> ESPECTADORES | E2: =+[1]a12_ind!L10 -> Millones corrientes | F2: =+[1]a12_ind!M10 -> COP Constantes | H2: =+[1]a12_ind!Q10 -> SI ES COLOMBIANA 1 | K2: Año | M2: Película | O2: $ Constantes (base junio 2011)
A3: =+[1]a12_ind!H11 -> 2007 | B3: =+[1]a12_ind!I11 -> 1 | C3: =+[1]a12_ind!J11 -> SHREK 3 | D3: =+[1]a12_ind!K11 -> 1102298 | E3: =+[1]a12_ind!L11 -> 7742.675624 | F3: =+[1]a12_ind!M11 -> 9093.661694 | H3: =+[1]a12_ind!Q11 -> 0 | K3: 2007 | L3: 1 | M3: Shrek 3 | N3: 1102298 | O3: 9093.661694
A4: =+[1]a12_ind!H12 -> 0 | B4: =+[1]a12_ind!I12 -> 2 | C4: =+[1]a12_ind!J12 -> SPIDER MAN 3 | D4: =+[1]a12_ind!K12 -> 1043491 | E4: =+[1]a12_ind!L12 -> 7407.0584 | F4: =+[1]a12_ind!M12 -> 8699.484068 | H4: =+[1]a12_ind!Q12 -> 0 | L4: 2 | M4: Spider man 3 | N4: 1043491 | O4: 8699.484068
A5: =+[1]a12_ind!H13 -> 0 | B5: =+[1]a12_ind!I13 -> 3 | C5: =+[1]a12_ind!J13 -> THE SIMPSON MOVIE | D5: =+[1]a12_ind!K13 -> 1015204 | E5: =+[1]a12_ind!L13 -> 7204.179981 | F5: =+[1]a12_ind!M13 -> 8461.206269 | H5: =+[1]a12_ind!Q13 -> 0 | L5: 3 | M5: The simpson movie | N5: 1015204 | O5: 8461.206269
A6: =+[1]a12_ind!H14 -> 0 | B6: =+[1]a12_ind!I14 -> 4 | C6: =+[1]a12_ind!J14 -> A NIGHT AT THE MUSEUM | D6: =+[1]a12_ind!K14 -> 884838 | E6: =+[1]a12_ind!L14 -> 6298.0568 | F6: =+[1]a12_ind!M14 -> 7396.977563 | H6: =+[1]a12_ind!Q14 -> 0 | L6: 4 | M6: A night at the museum | N6: 884838 | O6: 7396.977563
A7: =+[1]a12_ind!H15 -> 0 | B7: =+[1]a12_ind!I15 -> 5 | C7: =+[1]a12_ind!J15 -> PIRATES OF THE CARIBBEAN 3 | D7: =+[1]a12_ind!K15 -> 833621 | E7: =+[1]a12_ind!L15 -> 5986.207275 | F7: =+[1]a12_ind!M15 -> 7030.71476 | H7: =+[1]a12_ind!Q15 -> 0 | L7: 5 | M7: Pirates of the caribbean 3 | N7: 833621 | O7: 7030.71476
A8: =+[1]a12_ind!H16 -> 2008 | B8: =+[1]a12_ind!I16 -> 1 | C8: =+[1]a12_ind!J16 -> PARAISO TRAVEL | D8: =+[1]a12_ind!K16 -> 931245 | E8: =+[1]a12_ind!L16 -> 7285.578347 | F8: =+[1]a12_ind!M16 -> 7983.28327 | H8: =+[1]a12_ind!Q16 -> 1 | K8: 2008 | L8: 1 | M8: Paraíso travel** | N8: 931245 | O8: 7983.28327
A9: =+[1]a12_ind!H17 -> 0 | B9: =+[1]a12_ind!I17 -> 2 | C9: =+[1]a12_ind!J17 -> THE DARK KNIGHT | D9: =+[1]a12_ind!K17 -> 944789 | E9: =+[1]a12_ind!L17 -> 7093.413195 | F9: =+[1]a12_ind!M17 -> 7772.715383 | H9: =+[1]a12_ind!Q17 -> 0 | L9: 2 | M9: The dark knight | N9: 944789 | O9: 7772.715383
A10: =+[1]a12_ind!H18 -> 0 | B10: =+[1]a12_ind!I18 -> 3 | C10: =+[1]a12_ind!J18 -> KUNG FU PANDA | D10: =+[1]a12_ind!K18 -> 827091 | E10: =+[1]a12_ind!L18 -> 5764.034869 | F10: =+[1]a12_ind!M18 -> 6316.028865 | H10: =+[1]a12_ind!Q18 -> 0 | L10: 3 | M10: Kung fu panda | N10: 827091 | O10: 6316.028865
A11: =+[1]a12_ind!H19 -> 0 | B11: =+[1]a12_ind!I19 -> 4 | C11: =+[1]a12_ind!J19 -> WALL-E | D11: =+[1]a12_ind!K19 -> 818733 | E11: =+[1]a12_ind!L19 -> 5736.333739 | F11: =+[1]a12_ind!M19 -> 6285.674931 | H11: =+[1]a12_ind!Q19 -> 0 | L11: 4 | M11: Wall-e | N11: 818733 | O11: 6285.674931
A12: =+[1]a12_ind!H20 -> 0 | B12: =+[1]a12_ind!I20 -> 5 | C12: =+[1]a12_ind!J20 -> MADAGASCAR 2 | D12: =+[1]a12_ind!K20 -> 765749 | E12: =+[1]a12_ind!L20 -> 5376.95001 | F12: =+[1]a12_ind!M20 -> 5891.874744 | H12: =+[1]a12_ind!Q20 -> 0 | L12: 5 | M12: Madagascar 2 | N12: 765749 | O12: 5891.874744
A13: =+[1]a12_ind!H21 -> 2009 | B13: =+[1]a12_ind!I21 -> 1 | C13: =+[1]a12_ind!J21 -> ICE AGE 3 | D13: =+[1]a12_ind!K21 -> 2035362 | E13: =+[1]a12_ind!L21 -> 16088.90744 | F13: =+[1]a12_ind!M21 -> 16982.91051 | H13: =+[1]a12_ind!Q21 -> 0 | K13: 2009 | L13: 1 | M13: Ice age 3 | N13: 2035362 | O13: 16982.91051
A14: =+[1]a12_ind!H22 -> 0 | B14: =+[1]a12_ind!I22 -> 2 | C14: =+[1]a12_ind!J22 -> UP | D14: =+[1]a12_ind!K22 -> 1222254 | E14: =+[1]a12_ind!L22 -> 10267.44598 | F14: =+[1]a12_ind!M22 -> 10837.97125 | H14: =+[1]a12_ind!Q22 -> 0 | L14: 2 | M14: Up | N14: 1222254 | O14: 10837.97125
A15: =+[1]a12_ind!H23 -> 0 | B15: =+[1]a12_ind!I23 -> 3 | C15: =+[1]a12_ind!J23 -> 2012 | D15: =+[1]a12_ind!K23 -> 1335566 | E15: =+[1]a12_ind!L23 -> 8249.166182 | F15: =+[1]a12_ind!M23 -> 8707.542859 | H15: =+[1]a12_ind!Q23 -> 0 | L15: 3 | M15: 2012 | N15: 1335566 | O15: 8707.542859
A16: =+[1]a12_ind!H24 -> 0 | B16: =+[1]a12_ind!I24 -> 4 | C16: =+[1]a12_ind!J24 -> AVATAR | D16: =+[1]a12_ind!K24 -> 921576 | E16: =+[1]a12_ind!L24 -> 7776.031849 | F16: =+[1]a12_ind!M24 -> 8208.118142 | H16: =+[1]a12_ind!Q24 -> 0 | L16: 4 | M16: Avatar | N16: 921576 | O16: 8208.118142
A17: =+[1]a12_ind!H25 -> 0 | B17: =+[1]a12_ind!I25 -> 5 | C17: =+[1]a12_ind!J25 -> ANGELS & DEMONS | D17: =+[1]a12_ind!K25 -> 824141 | E17: =+[1]a12_ind!L25 -> 6004.15021 | F17: =+[1]a12_ind!M25 -> 6337.779374 | H17: =+[1]a12_ind!Q25 -> 0 | L17: 5 | M17: Angels & demons | N17: 824141 | O17: 6337.779374
A18: =+[1]a12_ind!H26 -> 2010 | B18: =+[1]a12_ind!I26 -> 1 | C18: =+[1]a12_ind!J26 -> TOY STORY 3 3D | D18: =+[1]a12_ind!K26 -> 2156531 | E18: =+[1]a12_ind!L26 -> 19308.81595 | F18: =+[1]a12_ind!M26 -> 19933.2304 | H18: =+[1]a12_ind!Q26 -> 0 | K18: 2010 | L18: 1 | M18: Toy Story 3 - 3D | N18: 2156531 | O18: 19933.2304
A19: =+[1]a12_ind!H27 -> 0 | B19: =+[1]a12_ind!I27 -> 2 | C19: =+[1]a12_ind!J27 -> AVATAR | D19: =+[1]a12_ind!K27 -> 1838589 | E19: =+[1]a12_ind!L27 -> 19084.62544 | F19: =+[1]a12_ind!M27 -> 19701.78994 | H19: =+[1]a12_ind!Q27 -> 0 | L19: 2 | M19: Avatar | N19: 1838589 | O19: 19701.78994
A20: =+[1]a12_ind!H28 -> 0 | B20: =+[1]a12_ind!I28 -> 3 | C20: =+[1]a12_ind!J28 -> ALICE IN WONDERLAND | D20: =+[1]a12_ind!K28 -> 1517848 | E20: =+[1]a12_ind!L28 -> 13350.73827 | F20: =+[1]a12_ind!M28 -> 13782.47856 | H20: =+[1]a12_ind!Q28 -> 0 | L20: 3 | M20: Alice in wonderland | N20: 1517848 | O20: 13782.47856
A21: =+[1]a12_ind!H29 -> 0 | B21: =+[1]a12_ind!I29 -> 4 | C21: =+[1]a12_ind!J29 -> SHREK FOREVER AFTER 3D | D21: =+[1]a12_ind!K29 -> 1392201 | E21: =+[1]a12_ind!L29 -> 12303.36706 | F21: =+[1]a12_ind!M29 -> 12701.23714 | H21: =+[1]a12_ind!Q29 -> 0 | L21: 4 | M21: Shrek forever after - 3D | N21: 1392201 | O21: 12701.23714
A22: =+[1]a12_ind!H30 -> 0 | B22: =+[1]a12_ind!I30 -> 5 | C22: =+[1]a12_ind!J30 -> CLASH OF THE TITANS 3D | D22: =+[1]a12_ind!K30 -> 1198732 | E22: =+[1]a12_ind!L30 -> 11035.38856 | F22: =+[1]a12_ind!M30 -> 11392.25436 | H22: =+[1]a12_ind!Q30 -> 0 | L22: 5 | M22: Clash of the titans -3D | N22: 1198732 | O22: 11392.25436
A23: =+[1]a12_ind!H31 -> 2011* | B23: =+[1]a12_ind!I31 -> 1 | C23: =+[1]a12_ind!J31 -> RIO 3D | D23: =+[1]a12_ind!K31 -> 1723577 | E23: =+[1]a12_ind!L31 -> 15003.07694 | F23: =+[1]a12_ind!M31 -> 15003.07694 | H23: =+[1]a12_ind!Q31 -> 0 | K23: Ene-Jun 2011 | L23: 1 | M23: Rio - 3D | N23: 1723577 | O23: 15003.07694
A24: =+[1]a12_ind!H32 -> 0 | B24: =+[1]a12_ind!I32 -> 2 | C24: =+[1]a12_ind!J32 -> PIRATES OF CARIBBEAN ON STRANGER TIDES3D | D24: =+[1]a12_ind!K32 -> 1391949 | E24: =+[1]a12_ind!L32 -> 12488.73952 | F24: =+[1]a12_ind!M32 -> 12488.73952 | H24: =+[1]a12_ind!Q32 -> 0 | L24: 2 | M24: Pirates of caribbean on stranger tides - 3D | N24: 1391949 | O24: 12488.73952
A25: =+[1]a12_ind!H33 -> 0 | B25: =+[1]a12_ind!I33 -> 3 | C25: =+[1]a12_ind!J33 -> TANGLED - RAPUNZEL 3D | D25: =+[1]a12_ind!K33 -> 1123812 | E25: =+[1]a12_ind!L33 -> 9943.77517 | F25: =+[1]a12_ind!M33 -> 9943.77517 | H25: =+[1]a12_ind!Q33 -> 0 | L25: 3 | M25: Tangled - Rapunzel - 3D | N25: 1123812 | O25: 9943.77517
A26: =+[1]a12_ind!H34 -> 0 | B26: =+[1]a12_ind!I34 -> 4 | C26: =+[1]a12_ind!J34 -> KUNG FU PANDA 2 3D | D26: =+[1]a12_ind!K34 -> 1073195 | E26: =+[1]a12_ind!L34 -> 8733.817534 | F26: =+[1]a12_ind!M34 -> 8733.817534 | H26: =+[1]a12_ind!Q34 -> 0 | L26: 4 | M26: Kung fu panda 2 - 3D | N26: 1073195 | O26: 8733.817534
A27: =+[1]a12_ind!H35 -> 0 | B27: =+[1]a12_ind!I35 -> 5 | C27: =+[1]a12_ind!J35 -> EL PASEO | D27: =+[1]a12_ind!K35 -> 1189607 | E27: =+[1]a12_ind!L35 -> 7949.123666 | F27: =+[1]a12_ind!M35 -> 7949.123666 | H27: =+[1]a12_ind!Q35 -> 1 | L27: 5 | M27: El paseo** | N27: 1189607 | O27: 7949.123666
K29: Las cinco películas más taquilleras por año en Colombia
K30: 2007 – Junio 2011

Sheet 5 más taquilleras Colombianas
A2: Año | B2: =+[1]a13_ind!O9 -> PELICULA | C2: =+[1]a13_ind!P9 -> POSICIÓN EN RANKING GENERAL | D2: =+[1]a13_ind!Q9 -> ESPECTADORES | E2: =+[1]a13_ind!R9 -> TAQUILLA | J2: Año | K2: Ranking | L2: Película | M2: Posición en Ranking general | O2: Espectadores
E3: =+[1]a13_ind!R10 -> MILLONES COP | F3: =+[1]a13_ind!S10 -> MILES USD | G3: =+[1]a13_ind!T10 -> 0 | P3: $ Constantes (base junio 2011)
A4: =+[1]a13_ind!N11 -> 2007 | B4: =+[1]a13_ind!O11 -> BLUFF | C4: =+[1]a13_ind!P11 -> 9 | D4: =+[1]a13_ind!Q11 -> 492947 | E4: =+[1]a13_ind!R11 -> 3809.04065 | F4: =+[1]a13_ind!S11 -> 1833.198956 | G4: =+[1]a13_ind!T11 -> 0 | J4: 2007 | K4: 1 | L4: Bluff | M4: 9 | N4: Total de estrenos 198 | O4: 492947 | P4: 4473.663722
A5: =+[1]a13_ind!N12 -> 0 | B5: =+[1]a13_ind!O12 -> SATANAS | C5: =+[1]a13_ind!P12 -> 11 | D5: =+[1]a13_ind!Q12 -> 465408 | E5: =+[1]a13_ind!R12 -> 3510.608107 | F5: =+[1]a13_ind!S12 -> 1689.570605 | G5: =+[1]a13_ind!T12 -> 0 | K5: 2 | L5: Satanás | M5: 11 | O5: 465408 | P5: 4123.158972
A6: =+[1]a13_ind!N13 -> 0 | B6: =+[1]a13_ind!O13 -> ESTO HUELE MAL | C6: =+[1]a13_ind!P13 -> 12 | D6: =+[1]a13_ind!Q13 -> 423363 | E6: =+[1]a13_ind!R13 -> 3238.388153 | F6: =+[1]a13_ind!S13 -> 1558.557738 | G6: =+[1]a13_ind!T13 -> 0 | K6: 3 | L6: Esto huele mal | M6: 12 | O6: 423363 | P6: 3803.440532
A7: =+[1]a13_ind!N14 -> 0 | B7: =+[1]a13_ind!O14 -> LAS CARTAS DEL GORDO | C7: =+[1]a13_ind!P14 -> 20 | D7: =+[1]a13_ind!Q14 -> 294338 | E7: =+[1]a13_ind!R14 -> 2095.83814 | F7: =+[1]a13_ind!S14 -> 1008.676106 | G7: =+[1]a13_ind!T14 -> 0 | K7: 4 | L7: Las cartas del gordo | M7: 20 | O7: 294338 | P7: 2461.531896
A8: =+[1]a13_ind!N15 -> 0 | B8: =+[1]a13_ind!O15 -> MUERTOS DE SUSTO | C8: =+[1]a13_ind!P15 -> 28 | D8: =+[1]a13_ind!Q15 -> 196196 | E8: =+[1]a13_ind!R15 -> 1502.81898 | F8: =+[1]a13_ind!S15 -> 723.2703555 | G8: =+[1]a13_ind!T15 -> 0 | K8: 5 | L8: Muertos de susto | M8: 28 | O8: 196196 | P8: 1765.039381
A9: =+[1]a13_ind!N16 -> 2008 | B9: =+[1]a13_ind!O16 -> PARAISO TRAVEL | C9: =+[1]a13_ind!P16 -> 1 | D9: =+[1]a13_ind!Q16 -> 931245 | E9: =+[1]a13_ind!R16 -> 7285.578347 | F9: =+[1]a13_ind!S16 -> 3707.414034 | G9: =+[1]a13_ind!T16 -> 0 | J9: 2008 | K9: 1 | L9: Paraíso travel | M9: 1 | N9: Total de estrenos 200 | O9: 931245 | P9: 7983.28327
A10: =+[1]a13_ind!N17 -> 0 | B10: =+[1]a13_ind!O17 -> MUERTOS DE SUSTO | C10: =+[1]a13_ind!P17 -> 13 | D10: =+[1]a13_ind!Q17 -> 471444 | E10: =+[1]a13_ind!R17 -> 3520.060031 | F10: =+[1]a13_ind!S17 -> 1791.253808 | G10: =+[1]a13_ind!T17 -> 0 | K10: 2 | L10: Muertos de susto | M10: 13 | O10: 471444 | P10: 3857.159311
A11: =+[1]a13_ind!N18 -> 0 | B11: =+[1]a13_ind!O18 -> PERRO COME PERRO | C11: =+[1]a13_ind!P18 -> 23 | D11: =+[1]a13_ind!Q18 -> 295681 | E11: =+[1]a13_ind!R18 -> 2328.623845 | F11: =+[1]a13_ind!S18 -> 1184.967385 | G11: =+[1]a13_ind!T18 -> 0 | K11: 3 | L11: Perro come perro | M11: 23 | O11: 295681 | P11: 2551.624991
A12: =+[1]a13_ind!N19 -> 0 | B12: =+[1]a13_ind!O19 -> LA MILAGROSA | C12: =+[1]a13_ind!P19 -> 32 | D12: =+[1]a13_ind!Q19 -> 181000 | E12: =+[1]a13_ind!R19 -> 1364.628951 | F12: =+[1]a13_ind!S19 -> 694.4190679 | G12: =+[1]a13_ind!T19 -> 0 | K12: 4 | L12: La milagrosa | M12: 32 | O12: 181000 | P12: 1495.312926
A13: =+[1]a13_ind!N20 -> 0 | B13: =+[1]a13_ind!O20 -> LOS ACTORES DEL CONFLICTO | C13: =+[1]a13_ind!P20 -> 58 | D13: =+[1]a13_ind!Q20 -> 90560 | E13: =+[1]a13_ind!R20 -> 652.491477 | F13: =+[1]a13_ind!S20 -> 332.0334974 | G13: =+[1]a13_ind!T20 -> 0 | K13: 5 | L13: Los actores del conflicto | M13: 58 | O13: 90560 | P13: 714.9774588
A14: =+[1]a13_ind!N21 -> 2009 | B14: =+[1]a13_ind!O21 -> EL ARRIERO | C14: =+[1]a13_ind!P21 -> 25 | D14: =+[1]a13_ind!Q21 -> 285814 | E14: =+[1]a13_ind!R21 -> 2035.071841 | F14: =+[1]a13_ind!S21 -> 943.2116301 | G14: =+[1]a13_ind!T21 -> 0 | J14: 2009 | K14: 1 | L14: El arriero | M14: 25 | N14: Total de estrenos 214 | O14: 285814 | P14: 2148.153509
A15: =+[1]a13_ind!N22 -> 0 | B15: =+[1]a13_ind!O22 -> LA PASION DE GABRIEL | C15: =+[1]a13_ind!P22 -> 33 | D15: =+[1]a13_ind!Q22 -> 220204 | E15: =+[1]a13_ind!R22 -> 1633.359562 | F15: =+[1]a13_ind!S22 -> 757.0267073 | G15: =+[1]a13_ind!T22 -> 0 | K15: 2 | L15: La pasión de Gabriel | M15: 33 | O15: 220204 | P15: 1724.119514
A16: =+[1]a13_ind!N23 -> 0 | B16: =+[1]a13_ind!O23 -> LOS VIAJES DEL VIENTO | C16: =+[1]a13_ind!P23 -> 42 | D16: =+[1]a13_ind!Q23 -> 162126 | E16: =+[1]a13_ind!R23 -> 1153.356544 | F16: =+[1]a13_ind!S23 -> 534.5557262 | G16: =+[1]a13_ind!T23 -> 0 | K16: 3 | L16: Los viajes del viento | M16: 42 | O16: 162126 | P16: 1217.444444
A17: =+[1]a13_ind!N24 -> 0 | B17: =+[1]a13_ind!O24 -> NI TE CASES NI TE EMBARQUES | C17: =+[1]a13_ind!P24 -> 51 | D17: =+[1]a13_ind!Q24 -> 121975 | E17: =+[1]a13_ind!R24 -> 934.674208 | F17: =+[1]a13_ind!S24 -> 433.2012097 | G17: =+[1]a13_ind!T24 -> 0 | K17: 4 | L17: Ni te cases ni te embarques | M17: 51 | O17: 121975 | P17: 986.6107126
A18: =+[1]a13_ind!N25 -> 0 | B18: =+[1]a13_ind!O25 -> INFRAGANTI | C18: =+[1]a13_ind!P25 -> 55 | D18: =+[1]a13_ind!Q25 -> 132777 | E18: =+[1]a13_ind!R25 -> 867.715625 | F18: =+[1]a13_ind!S25 -> 402.1673597 | G18: =+[1]a13_ind!T25 -> 0 | K18: 5 | L18: Infraganti | M18: 55 | O18: 132777 | P18: 915.9314805
A19: =+[1]a13_ind!N26 -> 2010 | B19: =+[1]a13_ind!O26 -> INFRAGANTI | C19: =+[1]a13_ind!P26 -> 23 | D19: =+[1]a13_ind!Q26 -> 463329 | E19: =+[1]a13_ind!R26 -> 2869.42954 | F19: =+[1]a13_ind!S26 -> 1511.023337 | G19: =+[1]a13_ind!T26 -> 0 | J19: 2010 | K19: 1 | L19: Infraganti | M19: 23 | N19: Total de estrenos 207 | O19: 463329 | P19: 2962.222038
A20: =+[1]a13_ind!N27 -> 0 | B20: =+[1]a13_ind!O27 -> SIN TETAS NO HAY PARAISO | C20: =+[1]a13_ind!P27 -> 33 | D20: =+[1]a13_ind!Q27 -> 328817 | E20: =+[1]a13_ind!R27 -> 2149.438786 | F20: =+[1]a13_ind!S27 -> 1131.880788 | G20: =+[1]a13_ind!T27 -> 0 | K20: 2 | L20: Sin tetas no hay paraíso | M20: 33 | O20: 328817 | P20: 2218.948
A21: =+[1]a13_ind!N28 -> 0 | B21: =+[1]a13_ind!O28 -> EL PASEO | C21: =+[1]a13_ind!P28 -> 34 | D21: =+[1]a13_ind!Q28 -> 312199 | E21: =+[1]a13_ind!R28 -> 2108.9035 | F21: =+[1]a13_ind!S28 -> 1110.535164 | G21: =+[1]a13_ind!T28 -> 0 | K21: 3 | L21: El paseo** | M21: 34 | O21: 312199 | P21: 2177.101872
A22: =+[1]a13_ind!N29 -> 0 | B22: =+[1]a13_ind!O29 -> CHANCE | C22: =+[1]a13_ind!P29 -> 70 | D22: =+[1]a13_ind!Q29 -> 117393 | E22: =+[1]a13_ind!R29 -> 649.15155 | F22: =+[1]a13_ind!S29 -> 341.8390756 | G22: =+[1]a13_ind!T29 -> 0 | K22: 4 | L22: Chance | M22: 70 | O22: 117393 | P22: 670.1440131
A23: =+[1]a13_ind!N30 -> 0 | B23: =+[1]a13_ind!O30 -> DEL AMOR Y OTROS DEMONIOS | C23: =+[1]a13_ind!P30 -> 72 | D23: =+[1]a13_ind!Q30 -> 76665 | E23: =+[1]a13_ind!R30 -> 615.2042 | F23: =+[1]a13_ind!S30 -> 323.9626171 | G23: =+[1]a13_ind!T30 -> 0 | K23: 5 | L23: Del amor y otros demonios | M23: 72 | O23: 76665 | P23: 635.0988632
A24: =+[1]a13_ind!N31 -> 2011* | B24: =+[1]a13_ind!O31 -> EL PASEO | C24: =+[1]a13_ind!P31 -> 2 | D24: =+[1]a13_ind!Q31 -> 1189607 | E24: =+[1]a13_ind!R31 -> 7949.123666 | F24: =+[1]a13_ind!S31 -> 4323.861371 | G24: =+[1]a13_ind!T31 -> 0 | J24: Ene-Jun 2011 | K24: 1 | L24: El paseo** | M24: 2 | N24: Total de estrenos 101 | O24: 1189607 | P24: 7949.123666
A25: =+[1]a13_ind!N32 -> 0 | B25: =+[1]a13_ind!O32 -> LOS COLORES DE LA MONTAQA | C25: =+[1]a13_ind!P32 -> 11 | D25: =+[1]a13_ind!Q32 -> 378177 | E25: =+[1]a13_ind!R32 -> 2782.97125 | F25: =+[1]a13_ind!S32 -> 1513.774649 | G25: =+[1]a13_ind!T32 -> 0 | K25: 2 | L25: Los colores de la montaña | M25: 11 | O25: 378177 | P25: 2782.97125
A26: =+[1]a13_ind!N33 -> 0 | B26: =+[1]a13_ind!O33 -> EL JEFE | C26: =+[1]a13_ind!P33 -> 13 | D26: =+[1]a13_ind!Q33 -> 318441 | E26: =+[1]a13_ind!R33 -> 2175.272566 | F26: =+[1]a13_ind!S33 -> 1183.221876 | G26: =+[1]a13_ind!T33 -> 0 | K26: 3 | L26: El jefe | M26: 13 | O26: 318441 | P26: 2175.272566
A27: =+[1]a13_ind!N34 -> 0 | B27: =+[1]a13_ind!O34 -> EN COMA | C27: =+[1]a13_ind!P34 -> 85 | D27: =+[1]a13_ind!Q34 -> 174360 | E27: =+[1]a13_ind!R34 -> 1209.61386 | F27: =+[1]a13_ind!S34 -> 657.9596522 | G27: =+[1]a13_ind!T34 -> 0 | K27: 4 | L27: En coma | M27: 85 | O27: 174360 | P27: 1209.61386
A28: =+[1]a13_ind!N35 -> 0 | B28: =+[1]a13_ind!O35 -> LECCIONES PARA UN BESO | C28: =+[1]a13_ind!P35 -> 86 | D28: =+[1]a13_ind!Q35 -> 95544 | E28: =+[1]a13_ind!R35 -> 615.627738 | F28: =+[1]a13_ind!S35 -> 334.8657169 | G28: =+[1]a13_ind!T35 -> 0 | K28: 5 | L28: Lecciones para un beso | M28: 86 | O28: 95544 | P28: 615.627738
J30: Las cinco películas colombianas más taquilleras por año
J31: 2007 – Junio 2011

Sheet Población
B1: Población
A2: Chile * | B2: 17.19
A3: Canada | B3: 34.059
A4: Argentina ** | B4: 40.519
A5: Colombia * | B5: 45.512
A6: España | B6: 46.018
A7: Mexico | B7: 108.627
A8: Brasil * | B8: 193.253
A9: Estados Unidos | B9: 309.997
E27: Población

Sheet PIB habitante
B1: PIB-habitante
A2: Colombia * | B2: 6273.372
A3: Argentina ** | B3: 9138.177
A4: México | B4: 9565.962
A5: Brasil * | B5: 10816.487
A6: Chile * | B6: 11827.958
A7: España | B7: 30639.295
A8: Canadá | B8: 46214.914
A9: Estados Unidos | B9: 47283.633
D27: PIB por habitante

Sheet Internacionales
A1: Asistencia | K1: Indice de asistencia | W1: Estrenos | X1: Argentina | Y1: Brasil | Z1: Chile | AA1: Colombia | AB1: España | AC1: EE.UU./Canadá (eje der.) | AD1: México | AI1: Asistentes a cine nacional | AT1: Participación asistencia cine nacional
B2: Argentina | C2: Brasil | D2: Chile | E2: Colombia | F2: España | G2: EE.UU./Canadá (eje der.) | H2: México | I2: Columna1 | L2: Argentina | M2: Brasil | N2: Chile | O2: Colombia | P2: España | Q2: EE.UU./Canadá | R2: México | W2: 2000 | X2: 45 | Y2: 24 | Z2: 8 | AA2: =+'Estrenos de películas Col.'!C9 -> 4 | AD2: 16 | AG2: Colombia | AJ2: 2007 | AK2: 2008 | AL2: 2009 | AM2: 2010 | AU2: 2007 | AV2: 2008 | AW2: 2009 | AX2: 2010 | BA2: Prom. 2007-2010 | BD2: Prom. 2007-2010
A3: 2000 | B3: 33.572678 | C3: 72 | D3: 11.1 | E3: =+'Asistencia a Cine en Colombia'!B13/10^6 -> 17.2 | F3: 135.3 | G3: 1421 | H3: 90 | K3: 2000 | L3: =+Tabla14[[#This Row],[Argentina]]/B41 -> 0.9126978578 | M3: =+Tabla14[[#This Row],[Brasil]]/C41 -> 0.4203643157 | N3: =+Tabla14[[#This Row],[Chile]]/D41 -> 0.7297350602 | O3: =+'Ind de Asistencia a Cine en Col'!B12 -> 0.4268460029 | P3: =+Tabla14[[#This Row],[España]]/F41 -> 3.360405335 | Q3: =+Tabla14[[#This Row],[EE.UU./Canadá (eje der.)]]/G41 -> 4.540763014 | R3: =+Tabla14[[#This Row],[México]]/H41 -> 0.9186860748 | W3: 2001 | X3: 45 | Y3: 30 | Z3: 19 | AA3: =+'Estrenos de películas Col.'!C10 -> 7 | AB3: 106 | AC3: 454 | AD3: 19 | AG3: =+'Asistencia a Cine en Colombia'!C20 -> 2387135 | AI3: Chile | AJ3: 0.9408 | AK3: 0.9401 | AL3: 0.41366 | AM3: 0.2793 | AT3: Chile | AU3: =+AJ3/AJ35 -> 0.084 | AV3: =+AK3/AK35 -> 0.079 | AW3: 0.03699734599 | AX3: 0.021 | AZ3: Chile | BA3: 0.0552493365 | BC3: Chile | BD3: =+AVERAGE(AU3:AX3) -> 0.0552493365
A4: 2001 | B4: 31.346269 | C4: 75 | D4: 11.4 | E4: =+'Asistencia a Cine en Colombia'!B14/10^6 -> 17.798 | F4: 146.8 | G4: 1430 | H4: 139 | K4: 2001 | L4: =+Tabla14[[#This Row],[Argentina]]/B42 -> 0.8436394929 | M4: =+Tabla14[[#This Row],[Brasil]]/C42 -> 0.4314758776 | N4: =+Tabla14[[#This Row],[Chile]]/D42 -> 0.7401636151 | O4: =+'Ind de Asistencia a Cine en Col'!B13 -> 0.4360807605 | P4: =+Tabla14[[#This Row],[España]]/F42 -> 3.605108055 | Q4: =+Tabla14[[#This Row],[EE.UU./Canadá (eje der.)]]/G42 -> 4.522640083 | R4: =+Tabla14[[#This Row],[México]]/H42 -> 1.393749185 | W4: 2002 | X4: 37 | Y4: 35 | Z4: 8 | AA4: =+'Estrenos de películas Col.'!C11 -> 4 | AB4: 137 | AC4: 475 | AD4: 17 | AG4: =+'Asistencia a Cine en Colombia'!C21 -> 2278429 | AI4: Colombia | AJ4: 2.387135 | AK4: 2.278429 | AL4: 1.20828 | AM4: 1.5307 | AT4: Colombia | AU4: =+AJ4/AJ36 -> 0.1154937274 | AV4: 0.105664425 | AW4: 0.04463920723 | AX4: 0.04548197478 | AZ4: Argentina | BA4: 0.06926380673 | BC4: Colombia | BD4: =+AVERAGE(AU4:AX4) -> 0.0778198336
A5: 2002 | B5: 31.883803 | C5: 90.8 | D5: 11.9 | E5: =+'Asistencia a Cine en Colombia'!B15/10^6 -> 18.399 | F5: 140.71 | G5: 1570 | H5: 132 | K5: 2002 | L5: =+Tabla14[[#This Row],[Argentina]]/B43 -> 0.8498721346 | M5: =+Tabla14[[#This Row],[Brasil]]/C43 -> 0.5147654926 | N5: =+Tabla14[[#This Row],[Chile]]/D43 -> 0.7633587786 | O5: =+'Ind de Asistencia a Cine en Col'!B14 -> 0.4451856651 | P5: =+Tabla14[[#This Row],[España]]/F43 -> 3.434967288 | Q5: =+Tabla14[[#This Row],[EE.UU./Canadá (eje der.)]]/G43 -> 4.916620997 | R5: =+Tabla14[[#This Row],[México]]/H43 -> 1.307953746 | W5: 2003 | X5: 46 | Y5: 26 | Z5: 8 | AA5: =+'Estrenos de películas Col.'!C12 -> 5 | AB5: 110 | AC5: 455 | AD5: 25 | AG5: =+'Asistencia a Cine en Colombia'!C22 -> 1208280 | AI5: Argentina | AJ5: 3.40754 | AK5: 3.63748 | AL5: 5.21478 | AM5: 3.496 | AT5: México | AU5: 0.0993946956 | AV5: 0.1079224408 | AW5: 0.1553183207 | AX5: 0.09089176626 | AZ5: Colombia | BA5: 0.0778198336 | BC5: México | BD5: 0.1133818058
A6: 2003 | B6: 33.378781 | C6: 104.6 | D6: 11.5 | E6: =+'Asistencia a Cine en Colombia'!B16/10^6 -> 17.086 | F6: 137.47 | G6: 1520 | H6: 137 | K6: 2003 | L6: =+Tabla14[[#This Row],[Argentina]]/B44 -> 0.8814043042 | M6: =+Tabla14[[#This Row],[Brasil]]/C44 -> 0.5844065145 | N6: =+Tabla14[[#This Row],[Chile]]/D44 -> 0.7302050924 | O6: =+'Ind de Asistencia a Cine en Col'!B15 -> 0.4082777782 | P6: =+Tabla14[[#This Row],[España]]/F44 -> 3.299491167 | Q6: =+Tabla14[[#This Row],[EE.UU./Canadá (eje der.)]]/G44 -> 4.715620182 | R6: =+Tabla14[[#This Row],[México]]/H44 -> 1.343045085 | W6: 2004 | X6: 54 | Y6: 46 | Z6: 12 | AA6: =+'Estrenos de películas Col.'!C13 -> 8 | AB6: 133 | AC6: 489 | AD6: 18 | AG6: =+'Asistencia a Cine en Colombia'!C23 -> 1530700 | AI6: México | AJ6: 13.39598 | AK6: 13.195 | AL6: 12.4066 | AM6: 11.4 | AT6: Argentina | AU6: 0.07534296963 | AV6: 0.07234100877 | AW6: 0.06911754875 | AX6: 0.06025369979 | AZ6: México | BA6: 0.1133818058 | BC6: Argentina | BD6: 0.06926380673
A7: 2004 | B7: 44.507697 | C7: 117.4 | D7: 9.9 | E7: =+'Asistencia a Cine en Colombia'!B17/10^6 -> 17.122 | F7: 143.93 | G7: 1500 | H7: 164 | K7: 2004 | L7: =+Tabla14[[#This Row],[Argentina]]/B45 -> 1.164330482 | M7: =+Tabla14[[#This Row],[Brasil]]/C45 -> 0.6465256132 | N7: =+Tabla14[[#This Row],[Chile]]/D45 -> 0.6190982428 | O7: =+'Ind de Asistencia a Cine en Col'!B16 -> 0.404121091 | P7: =+Tabla14[[#This Row],[España]]/F45 -> 3.398984532 | Q7: =+Tabla14[[#This Row],[EE.UU./Canadá (eje der.)]]/G45 -> 4.61128412 | R7: =+Tabla14[[#This Row],[México]]/H45 -> 1.592155721 | W7: 2005 | X7: 65 | Y7: 51 | Z7: 19 | AA7: =+'Estrenos de películas Col.'!C14 -> 8 | AB7: 128 | AC7: 507 | AD7: 25 | AI7: España | AJ7: 15.797243 | AK7: 14.36 | AL7: 17.48 | AM7: 12.93368 | AT7: España | AU7: 0.1351 | AV7: 0.1331972915 | AW7: 0.1589235385 | AX7: 0.1273 | AZ7: Brasil | BA7: 0.1362378378 | BC7: España | BD7: 0.1386302075
A8: 2005 | B8: 37.617695 | C8: 93.6 | D8: 11.185207 | E8: =+'Asistencia a Cine en Colombia'!B18/10^6 -> 15.94 | F8: 127.65 | G8: 1380 | H8: 165.9 | K8: 2005 | L8: =+Tabla14[[#This Row],[Argentina]]/B46 -> 0.9747537054 | M8: =+Tabla14[[#This Row],[Brasil]]/C46 -> 0.5081874647 | N8: =+Tabla14[[#This Row],[Chile]]/D46 -> 0.6893385308 | O8: =+'Ind de Asistencia a Cine en Col'!B17 -> 0.3716606038 | P8: =+Tabla14[[#This Row],[España]]/F46 -> 2.965983549 | Q8: =+Tabla14[[#This Row],[EE.UU./Canadá (eje der.)]]/G46 -> 4.203216374 | R8: =+Tabla14[[#This Row],[México]]/H46 -> 1.596021011 | W8: 2006 | X8: 58 | Y8: 70 | Z8: 11 | AA8: =+'Estrenos de películas Col.'!C15 -> 8 | AB8: 142 | AC8: 594 | AD8: 33 | AI8: Brasil | AJ8: 10.3 | AK8: 8.8 | AL8: 15.90197 | AM8: 25.6 | AT8: Brasil | AU8: 0.1153157188 | AV8: 0.0987654321 | AW8: 0.1411 | AX8: 0.1897702001 | AZ8: España | BA8: 0.1386302075 | BC8: Brasil | BD8: 0.1362378378
A9: 2006 | B9: 35.767819 | C9: 90.2 | D9: 11.5 | E9: =+'Asistencia a Cine en Colombia'!B19/10^6 -> 20.216614 | F9: 121.65 | G9: 1400 | H9: 168.4 | K9: 2006 | L9: =+Tabla14[[#This Row],[Argentina]]/B47 -> 0.9178060353 | M9: =+Tabla14[[#This Row],[Brasil]]/C47 -> 0.4860856632 | N9: =+Tabla14[[#This Row],[Chile]]/D47 -> 0.7006214207 | O9: =+'Ind de Asistencia a Cine en Col'!B18 -> 0.4657566809 | P9: =+Tabla14[[#This Row],[España]]/F47 -> 2.780063074 | Q9: =+Tabla14[[#This Row],[EE.UU./Canadá (eje der.)]]/G47 -> 4.223699176 | R9: =+Tabla14[[#This Row],[México]]/H47 -> 1.605996738 | W9: 2007 | X9: 68 | Y9: 82 | Z9: 12 | AA9: =+'Estrenos de películas Col.'!C16 -> 10 | AB9: 137 | AC9: 609 | AD9: 43 | AI9: EEUU | AJ9: 1260 | AK9: 1248.06 | AL9: 1199.826 | AM9: 1233.72 | AT9: EEUU | AU9: 0.9 | AV9: 0.9313880597 | AW9: 0.8449478873 | AX9: 0.9206865672 | AZ9: EEUU | BA9: 0.8992556285 | BC9: EEUU | BD9: 0.8992556285
A10: 2007 | B10: 34.282916 | C10: 89.32 | D10: 11.2 | E10: =+'Asistencia a Cine en Colombia'!B20/10^6 -> 20.668958 | F10: 116.93 | G10: 1400 | H10: 177.8 | K10: 2007 | L10: =+Tabla14[[#This Row],[Argentina]]/B48 -> 0.8710975709 | M10: =+Tabla14[[#This Row],[Brasil]]/C48 -> 0.4760128329 | N10: =+Tabla14[[#This Row],[Chile]]/D48 -> 0.6753497347 | O10: =+'Ind de Asistencia a Cine en Col'!B19 -> 0.4705304575 | P10: =+Tabla14[[#This Row],[España]]/F48 -> 2.629117482 | Q10: =+Tabla14[[#This Row],[EE.UU./Canadá (eje der.)]]/G48 -> 4.181775821 | R10: =+Tabla14[[#This Row],[México]]/H48 -> 1.680672269 | W10: 2008 | X10: 71 | Y10: 79 | Z10: 24 | AA10: =+'Estrenos de películas Col.'!C17 -> 13 | AB10: 139 | AC10: 634 | AD10: 46
A11: 2008 | B11: 33.704575 | C11: 89.1 | D11: 11.9 | E11: =+'Asistencia a Cine en Colombia'!B21/10^6 -> 21.562877 | F11: 107.81 | G11: 1340 | H11: 182.4 | K11: 2008 | L11: =+Tabla14[[#This Row],[Argentina]]/B49 -> 0.8479991697 | M11: =+Tabla14[[#This Row],[Brasil]]/C49 -> 0.4699044897 | N11: =+Tabla14[[#This Row],[Chile]]/D49 -> 0.7104477612 | O11: =+'Ind de Asistencia a Cine en Col'!B20 -> 0.4850915771 | P11: =+Tabla14[[#This Row],[España]]/F49 -> 2.380805159 | Q11: =+Tabla14[[#This Row],[EE.UU./Canadá (eje der.)]]/G49 -> 3.96471991 | R11: =+Tabla14[[#This Row],[México]]/H49 -> 1.709738196 | W11: 2009 | X11: 77 | Y11: 84 | Z11: 15 | AA11: =+'Estrenos de películas Col.'!C18 -> 12 | AB11: 137 | AC11: 655 | AD11: 54
A12: 2009 | B12: 33.57479 | C12: 112.7 | D12: 11.180802 | E12: =+'Asistencia a Cine en Colombia'!B22/10^6 -> 27.067685 | F12: 109.99 | G12: 1420 | H12: 179.5 | K12: 2009 | L12: =+Tabla14[[#This Row],[Argentina]]/B50 -> 0.8365672497 | M12: =+Tabla14[[#This Row],[Brasil]]/C50 -> 0.5885701453 | N12: =+Tabla14[[#This Row],[Chile]]/D50 -> 0.6583138248 | O12: =+'Ind de Asistencia a Cine en Col'!B21 -> 0.6017871918 | P12: =+Tabla14[[#This Row],[España]]/F50 -> 2.400061098 | Q12: =+Tabla14[[#This Row],[EE.UU./Canadá (eje der.)]]/G50 -> 4.163697833 | R12: =+Tabla14[[#This Row],[México]]/H50 -> 1.668975649 | W12: 2010 | X12: 84 | Y12: 75 | AA12: =+'Estrenos de películas Col.'!C19 -> 10 | AC12: 560 | AD12: 54
A13: 2010 | B13: 38.46333 | C13: 134.9 | D13: 13.3 | E13: =+'Asistencia a Cine en Colombia'!B23/10^6 -> 33.655091 | F13: 101.6 | G13: 1340 | H13: 189.2 | K13: 2010 | L13: =+Tabla14[[#This Row],[Argentina]]/B51 -> 0.9492665169 | M13: =+Tabla14[[#This Row],[Brasil]]/C51 -> 0.6980486719 | N13: =+Tabla14[[#This Row],[Chile]]/D51 -> 0.7737056428 | O13: =+'Ind de Asistencia a Cine en Col'!B22 -> 0.7395165599 | P13: =+Tabla14[[#This Row],[España]]/F51 -> 2.207831718 | Q13: =+Tabla14[[#This Row],[EE.UU./Canadá (eje der.)]]/G51 -> 3.894714814 | R13: =+Tabla14[[#This Row],[México]]/H51 -> 1.741740083
C15: =+C13-C3 -> 62.9 | G15: =+G5-G13 -> 230 | H15: =+H13-H3 -> 99.2
AI32: Asistencia a largometrajes nacionales en algunos países iberoamericanos
AI33: 2007 – 2010
AJ34: 2007 | AK34: 2008 | AL34: 2009 | AM34: 2010 | AU34: Participación promedio de los espectadores de largometrajes nacionales en el total de espectadores en algunos países iberoamericanos
W35: Estrenos de largometrajes nacionales en algunos países iberoamericanos y Estados Unidos/Canadá. 2000-2010 | AI35: Chile | AJ35: 11.2 | AK35: 11.9 | AL35: 11.180802 | AM35: 13.3 | AU35: 2007 – 2010
K36: Índice de asistencia en algunos países iberoamericanos y Estados Unidos/Canadá. 2000-2010 | AI36: Colombia | AJ36: 20.668958 | AK36: 21.562877 | AL36: 27.067685 | AM36: 33.655091
A37: Asistencia a cine en algunos países iberoamericanos y Estados Unidos/Canadá. 2000-2010 | AI37: Argentina | AJ37: 34.282916 | AK37: 33.704575 | AL37: 33.57479 | AM37: 38.46333
AI38: México | AJ38: 177.8 | AK38: 182.4 | AL38: 179.5 | AM38: 189.2
AI39: España | AJ39: 116.93 | AK39: 107.81 | AL39: 109.99 | AM39: 101.6
A40: Población | B40: Argentina | C40: Brasil | D40: Chile | E40: Colombia | F40: España | G40: EE.UU./Canadá (eje der.) | H40: México | AI40: Brasil | AJ40: 89.32 | AK40: 89.1 | AL40: 112.7 | AM40: 134.9
A41: 2000 | B41: 36.784 | C41: 171.28 | D41: 15.211 | F41: 40.263 | G41: 312.943 | H41: 97.966 | AI41: EE.UU./Canadá (eje der.) | AJ41: 1400 | AK41: 1340 | AL41: 1420 | AM41: 1340
A42: 2001 | B42: 37.156 | C42: 173.822 | D42: 15.402 | F42: 40.72 | G42: 316.187 | H42: 99.731
A43: 2002 | B43: 37.516 | C43: 176.391 | D43: 15.589 | F43: 40.964 | G43: 319.325 | H43: 100.921
A44: 2003 | B44: 37.87 | C44: 178.985 | D44: 15.749 | F44: 41.664 | G44: 322.333 | H44: 102.007
A45: 2004 | B45: 38.226 | C45: 181.586 | D45: 15.991 | F45: 42.345 | G45: 325.289 | H45: 103.005
A46: 2005 | B46: 38.592 | C46: 184.184 | D46: 16.226 | F46: 43.038 | G46: 328.32 | H46: 103.946
A47: 2006 | B47: 38.971 | C47: 185.564 | D47: 16.414 | F47: 43.758 | G47: 331.463 | H47: 104.857
A48: 2007 | B48: 39.356 | C48: 187.642 | D48: 16.584 | F48: 44.475 | G48: 334.786 | H48: 105.791
A49: 2008 | B49: 39.746 | C49: 189.613 | D49: 16.75 | F49: 45.283 | G49: 337.981 | H49: 106.683
A50: 2009 | B50: 40.134 | C50: 191.481 | D50: 16.984 | F50: 45.828 | G50: 341.043 | H50: 107.551
A51: 2010 | B51: 40.519 | C51: 193.253 | D51: 17.19 | F51: 46.018 | G51: 344.056 | H51: 108.627
B55: Country | C55: Subject Descriptor | D55: Units | E55: Scale | F55: Country/Series-specific Notes | G55: 2000 | H55: 2001 | I55: 2002 | J55: 2003 | K55: 2004 | L55: 2005 | M55: 2006 | N55: 2007 | O55: 2008 | P55: 2009 | Q55: 2010
B56: Argentina | C56: Population | D56: Persons | E56: Millions | G56: 36.784 | H56: 37.156 | I56: 37.516 | J56: 37.87 | K56: 38.226 | L56: 38.592 | M56: 38.971 | N56: 39.356 | O56: 39.746 | P56: 40.134 | Q56: 40.519
B57: Brazil | C57: Population | D57: Persons | E57: Millions | G57: 171.28 | H57: 173.822 | I57: 176.391 | J57: 178.985 | K57: 181.586 | L57: 184.184 | M57: 185.564 | N57: 187.642 | O57: 189.613 | P57: 191.481 | Q57: 193.253
B58: Canada | C58: Population | D58: Persons | E58: Millions | G58: 30.647 | H58: 30.971 | I58: 31.306 | J58: 31.6 | K58: 31.9 | L58: 32.205 | M58: 32.533 | N58: 32.883 | O58: 33.263 | P58: 33.669 | Q58: 34.059
B59: Chile | C59: Population | D59: Persons | E59: Millions | G59: 15.211 | H59: 15.402 | I59: 15.589 | J59: 15.749 | K59: 15.991 | L59: 16.226 | M59: 16.414 | N59: 16.584 | O59: 16.75 | P59: 16.984 | Q59: 17.19
B60: Colombia | C60: Population | D60: Persons | E60: Millions | G60: 40.282 | H60: 40.806 | I60: 41.327 | J60: 41.847 | K60: 42.368 | L60: 42.889 | M60: 43.405 | N60: 43.926 | O60: 44.45 | P60: 44.978 | Q60: 45.512
B61: Mexico | C61: Population | D61: Persons | E61: Millions | G61: 97.966 | H61: 99.731 | I61: 100.921 | J61: 102.007 | K61: 103.005 | L61: 103.946 | M61: 104.857 | N61: 105.791 | O61: 106.683 | P61: 107.551 | Q61: 108.627
B62: Spain | C62: Population | D62: Persons | E62: Millions | G62: 40.263 | H62: 40.72 | I62: 40.964 | J62: 41.664 | K62: 42.345 | L62: 43.038 | M62: 43.758 | N62: 44.475 | O62: 45.283 | P62: 45.828 | Q62: 46.018
B63: United States | C63: Population | D63: Persons | E63: Millions | G63: 282.296 | H63: 285.216 | I63: 288.019 | J63: 290.733 | K63: 293.389 | L63: 296.115 | M63: 298.93 | N63: 301.903 | O63: 304.718 | P63: 307.374 | Q63: 309.997
F64: EE.UU./Canadá (eje der.) | G64: =+G58+G63 -> 312.943 | H64: =+H58+H63 -> 316.187 | I64: 319.325 | J64: 322.333 | K64: 325.289 | L64: 328.32 | M64: 331.463 | N64: 334.786 | O64: 337.981 | P64: 341.043 | Q64: 344.056

Sheet Aprobado FDC
B4: P. Aprobado
A5: 2004 | B5: 4369957731
A6: 2005 | B6: 7861454127
A7: 2006 | B7: 7362028401
A8: 2007 | B8: 7246592791
A9: 2008 | B9: 8113957849
A10: 2009 | B10: 9859475293
A11: 2010 | B11: 13648556653
A12: 2011 | B12: 17886632672 | D12: =+Tabla15[[#This Row],[P. Aprobado]]/B5 -> 4.093090545
B14: =+B12/B5*100 -> 409.3090545
D27: Recursos aprobados para el FDC
D28: Millones de pesos corrientes. 2004 - 2011*
B30: P. Aprobado | C30: Producción - 70% | D30: Otros estimulos - 30% | E30: P. Aprobado2
A31: 2004 | B31: 4369957731 | C31: 2623200000 | D31: 1746757731 | E31: 4369957731
A32: 2005 | B32: 7861454127 | C32: 5015366930 | D32: 2846087197 | E32: 7861454127
A33: 2006 | B33: 7362028401 | C33: 5230193835 | D33: 2131834566 | E33: 7362028401
A34: 2007 | B34: 7246592791 | C34: 5329280406 | D34: 1917312385 | E34: 7246592791
A35: 2008 | B35: 8113957849 | C35: 5858513148 | D35: 2255444701 | E35: 8113957849
A36: 2009 | B36: 9859475293 | C36: 6897261282 | D36: 2962214011 | E36: 9859475293
A37: 2010 | B37: 13648556653 | C37: 9518067751 | D37: 4130488902 | E37: 13648556653
A38: 2011 | B38: 17886632672 | C38: 13365000000 | D38: 4521632672 | E38: 17886632672
B40: 2004 | C40: =+C31/B31 -> 0.6002804058 | E40: =+E38/E31*100 -> 409.3090545
B41: 2005 | C41: =+C32/B32 -> 0.6379693691
B42: 2006 | C42: 0.7104283698
B43: 2007 | C43: 0.7354187768
B44: 2008 | C44: 0.722029034
B45: 2009 | C45: 0.6995566272
B46: 2010 | C46: 0.6973680802
B47: 2011 | C47: 0.7472060418
C74: Asignación de los estímulos aprobados para el FDC
C75: Millones de pesos corrientes. 2004 - 2011*

Sheet Destino FDC y ANEXO 2
A1: Columna1 | B1: 2004 | C1: 2005 | D1: 2006 | E1: 2007 | F1: 2008 | G1: 2009 | H1: 2010 | I1: 2011
A2: Escritura de guiones | B2: 0 | C2: 130 | D2: 75 | E2: 136 | F2: 180 | G2: 340 | H2: 400 | I2: 460
A3: Producción de largometrajes | B3: 1090 | C3: 3101.6 | D3: 3070 | E3: 3480 | F3: 3306 | G3: 3891.6 | H3: 6220 | I3: 7550
A4: Realización de cortometrajes | B4: 540 | C4: 400 | D4: 324 | E4: 250 | F4: 250 | G4: 250 | H4: 455 | I4: 640
A5: Realización de documentales | B5: 340 | C5: 400 | D5: 420 | E5: 100 | F5: 325 | G5: 500 | H5: 240 | I5: 1150
A6: Promoción largometrajes en territorio nacional | B6: 400 | C6: 588.9 | D6: 838.6 | E6: 734.9 | F6: 1186 | G6: 1000 | H6: 906.6 | I6: 1400
A7: Otros | B7: 253.2 | C7: 394.9 | D7: 502.6 | E7: 628.5 | F7: 611.6 | G7: 915.6 | H7: 1296.5 | I7: 2165
B11: 2004 | C11: 2005 | D11: 2006 | E11: 2007 | F11: 2008 | G11: 2009 | H11: 2010 | I11: 2011
A12: Escritura de guiones | B12: =+B25 -> 0 | C12: =+C25 -> 130 | D12: 75 | E12: 136 | F12: 180 | G12: 340 | H12: 400 | I12: 460
A13: Producción de largometrajes | B13: =+B26+B27 -> 1090 | C13: =+C26+C27 -> 3101.6 | D13: 3070 | E13: 3480 | F13: 3306 | G13: 3891.6 | H13: 6220 | I13: 7550
A14: Realización de cortometrajes | B14: =+B28 -> 540 | C14: =+C28 -> 400 | D14: 324 | E14: 250 | F14: 250 | G14: 250 | H14: 455 | I14: 640
A15: Realización de documentales | B15: =+B29 -> 340 | C15: 400 | D15: 420 | E15: 100 | F15: 325 | G15: 500 | H15: 240 | I15: 1150
A16: Promoción largometrajes en territorio nacional | B16: =+B30 -> 400 | C16: 588.9 | D16: 838.6 | E16: 734.9 | F16: 1186 | G16: 1000 | H16: 906.6 | I16: 1400
A17: Otros | B17: =+SUM(B31:B36) -> 253.2 | C17: =+SUM(C31:C36) -> 394.9 | D17: 502.6 | E17: 628.5 | F17: 611.6 | G17: 915.6 | H17: 1296.5 | I17: 2165
A23: Descripción del estimulo | B23: 2004 | C23: 2005 | D23: 2006 | E23: 2007 | F23: 2008 | G23: 2009 | H23: 2010 | I23: 2011
A24: Producción 70% | B24: 2623.2 | C24: 5015.4 | D24: 5230.2 | E24: 5329.3 | F24: 5858.5 | G24: 6897.3 | H24: 9518.1 | I24: 13365
A25: Escritura de guiones | B25: 0 | C25: 130 | D25: 75 | E25: 136 | F25: 180 | G25: 340 | H25: 400 | I25: 460
A26: Producción de largometrajes (rodaje y postproducción) | B26: 1090 | C26: 3101.6 | D26: 3070 | E26: 3480 | F26: 3306 | G26: 3491.6 | H26: 5620 | I26: 7550
A27: Producción de largometrajes para finalizar en digital | B27: 0 | C27: 0 | D27: 0 | E27: 0 | F27: 0 | G27: 400 | H27: 600 | I27: 0
A28: Realización de cortometrajes | B28: 540 | C28: 400 | D28: 324 | E28: 250 | F28: 250 | G28: 250 | H28: 455 | I28: 640
A29: Realización de documentales | B29: 340 | C29: 400 | D29: 420 | E29: 100 | F29: 325 | G29: 500 | H29: 240 | I29: 1150
A30: Promoción largometrajes en territorio nacional | B30: 400 | C30: 588.9 | D30: 838.6 | E30: 734.9 | F30: 1186 | G30: 1000 | H30: 906.6 | I30: 1400
A31: Promoción y divulgación de cortometrajes y documentales | B31: 0 | C31: 0 | D31: 17.5 | E31: 0 | F31: 0 | G31: 0 | H31: 0 | I31: 200
A32: Participación de proyectos en eventos y festivales internacionales | B32: 77 | C32: 18.2 | D32: 58.5 | E32: 100.3 | F32: 81.7 | G32: 188.6 | H32: 130.9 | I32: 280
A33: Participación de proyectos de largometrajes en encuentros | B33: 6.2 | C33: 9 | D33: 32.7 | E33: 41.2 | F33: 80 | G33: 72.6 | H33: 138.3 | I33: 150
A34: Participación de largometrajes en mercados cinematográficos | B34: 0 | C34: 0 | D34: 0 | E34: 0 | F34: 14.4 | G34: 18.7 | H34: 66.5 | I34: 100
A35: Participación en talleres de formación | B35: 0 | C35: 54.1 | D35: 50.8 | E35: 214.9 | F35: 95.9 | G35: 156.7 | H35: 418.6 | I35: 700
A36: Gastos para la realización de convocatorias | B36: 170 | C36: 313.6 | D36: 343.1 | E36: 272.1 | F36: 339.6 | G36: 479 | H36: 542.2 | I36: 735
A37: Otros estímulos 30% | B37: 1746.8 | C37: 2846.1 | D37: 2131.8 | E37: 1917.3 | F37: 2255.4 | G37: 2962.2 | H37: 4130.5 | I37: 4521.6
A38: Otros programas de formación | B38: 400 | C38: 279.8 | D38: 476.7 | E38: 250.3 | F38: 225.9 | G38: 280 | H38: 1032 | I38: 520
A39: Preservación del patrimonio fílmico | B39: 590.4 | C39: 1330 | D39: 600 | E39: 550 | F39: 550 | G39: 900 | H39: 590 | I39: 600
A40: Proyecto antipiratería | B40: 0 | C40: 300 | D40: 300 | E40: 400 | F40: 400 | G40: 400 | H40: 290 | I40: 320
A41: Promoción internacional | B41: 0 | C41: 0 | D41: 0 | E41: 0 | F41: 149.6 | G41: 264.3 | H41: 528 | I41: 486.5
A42: Resto (otros estímulos) | B42: 756.4 | C42: 936.3 | D42: 755.1 | E42: 717 | F42: 929.9 | G42: 1118 | H42: 1690.5 | I42: 2595.1
A43: Totales | B43: 4370 | C43: 7861.5 | D43: 7362 | E43: 7246.6 | F43: 8114 | G43: 9859.5 | H43: 13648.6 | I43: 17886.6
A72: Estímulos aprobados para el FDC*- Producción 70%
A73: Millones de pesos corrientes. 2004 - 2011*

Sheet Tributarios
A2: Año* | B2: Número de certificados otorgados | D2: Monto | E2: Número de proyectos beneficiados
B3: Inversión | C3: Donación | D3: (Millones de pesos)
A4: 2004 | B4: 16 | C4: 0 | D4: 505 | E4: 2
A5: 2005 | B5: 93 | C5: 1 | D5: 1956 | E5: 12
A6: 2006 | B6: 79 | C6: 4 | D6: 8609.5 | E6: 15
A7: 2007 | B7: 54 | C7: 1 | D7: 6466 | E7: 22
A8: 2008 | B8: 85 | C8: 0 | D8: 20613.6 | E8: 21
A9: 2009 | B9: 92 | C9: 2 | D9: 10883.3 | E9: 25
A10: 2010 | B10: 92 | C10: 1 | D10: 17121.3 | E10: 25
A11: Totales | B11: 517 | C11: 9 | D11: 66154.7 | E11: 80**
A38: Estímulos tributarios
A39: Millones de pesos corrientes. 2004 - 2010*

Sheet Informe Especial 1
A1: Columna1 | B1: Espectadores por habitante | C1: PIB real - variación anual (eje derecho) | N1: city | O1: SI INFORME | P1: date_mes | Q1: date_aqo | R1: boxoffice | S1: admissions | U1: ciudades seleccionadas | X1: Suma de admissions | Y1: Etiquetas de columna | AF1: Variación anual
A2: 2000 | B2: =+'Ind de Asistencia a Cine en Col'!B12 -> 0.4268460029 | N2: ARMENIA | O2: =+VLOOKUP(N2,$U$2:$V$16,2,FALSE) ->  | P2: 9 | Q2: 2006 | R2: 69911250 | S2: 10737 | U2: VALLEDUPAR | V2: SI | X2: Etiquetas de fila | Y2: 2007 | Z2: 2008 | AA2: 2009 | AB2: 2010 | AC2: 2010* | AD2: 2011*
A3: 2001 | B3: =+'Ind de Asistencia a Cine en Col'!B13 -> 0.4360807605 | C3: 1.677898308 | N3: BARRANQUILLA | O3: =+VLOOKUP(N3,$U$2:$V$16,2,FALSE) -> SI | P3: 9 | Q3: 2006 | R3: 273119900 | S3: 40518 | U3: NEIVA | V3: SI | AG3: 2008 | AH3: 2009 | AI3: 2010 | AJ3: 2011* | AN3: 2008 | AO3: 2009 | AP3: 2010 | AQ3: 2011*
A4: 2002 | B4: =+'Ind de Asistencia a Cine en Col'!B14 -> 0.4451856651 | C4: 2.503980465 | N4: BELLO | P4: 9 | Q4: 2006 | R4: 118849600 | S4: 20609 | U4: MANIZALES | V4: SI | X4: BARRANQUILLA | Y4: 929241 | Z4: 1128151 | AA4: 1256435 | AB4: 1472241 | AC4: 711428 | AD4: 818750 | AF4: Barranquilla | AG4: =+Z4/Y4*100-100 -> 21.40564181 | AH4: =+AA4/Z4*100-100 -> 11.37117283 | AI4: 17.17605766 | AJ4: =+AD4/AC4*100-100 -> 15.0854338 | AM4: Floridablanca | AN4: -2.609774223 | AO4: 23.2453982 | AP4: -0.03155475198 | AQ4: 5.559188058
A5: 2003 | B5: =+'Ind de Asistencia a Cine en Col'!B15 -> 0.4082777782 | C5: 3.918271904 | N5: BOGOTA | O5: SI | P5: 9 | Q5: 2006 | R5: 2610435870 | S5: 362828 | U5: SANTA MARTA | V5: SI | X5: BOGOTA | Y5: 9493415 | Z5: 9594614 | AA5: 12465304 | AB5: 14907415 | AC5: 7588803 | AD5: 8171870 | AF5: Bogotá | AG5: =+Z5/Y5*100-100 -> 1.065991532 | AH5: 29.91980709 | AI5: 19.59126709 | AJ5: 7.683253868 | AM5: Cartagena | AN5: 7.635044749 | AO5: 59.16898938 | AP5: 12.28000632 | AQ5: 5.188511551
A6: 2004 | B6: =+'Ind de Asistencia a Cine en Col'!B16 -> 0.404121091 | C6: 5.333022067 | N6: BUCARAMANGA | O6: SI | P6: 9 | Q6: 2006 | R6: 35170900 | S6: 6314 | U6: IBAGUE | V6: SI | X6: BUCARAMANGA | Y6: 234845 | Z6: 295109 | AA6: 357072 | AB6: 914707 | AC6: 410057 | AD6: 542013 | AF6: Bucaramanga | AG6: 25.66118078 | AH6: 20.9966487 | AI6: 156.1687839 | AJ6: 32.17991645 | AM6: Medellín | AN6: 3.219764785 | AO6: 11.27605802 | AP6: 13.87681136 | AQ6: 8.916124682
A7: 2005 | B7: =+'Ind de Asistencia a Cine en Col'!B17 -> 0.3716606038 | C7: 4.706555934 | N7: BUGA | P7: 9 | Q7: 2006 | R7: 4760000 | S7: 1016 | U7: FLORIDABLANCA | V7: SI | X7: CALI | Y7: 2165068 | Z7: 2129496 | AA7: 2325329 | AB7: 3338962 | AC7: 1586129 | AD7: 1936524 | AF7: Cali | AG7: -1.642996894 | AH7: 9.196213564 | AI7: 43.59094993 | AJ7: 22.09120444 | AM7: Cúcuta | AN7: 82.56699935 | AO7: 36.48573951 | AP7: 14.50158368 | AQ7: 1.683811275
A8: 2006 | B8: =+'Ind de Asistencia a Cine en Col'!B18 -> 0.4657566809 | C8: 6.697515258 | N8: CALI | O8: SI | P8: 9 | Q8: 2006 | R8: 690778550 | S8: 92090 | U8: PEREIRA | V8: SI | X8: CARTAGENA | Y8: 535989 | Z8: 576912 | AA8: 918265 | AB8: 1031028 | AC8: 556942 | AD8: 585839 | AF8: Cartagena | AG8: 7.635044749 | AH8: 59.16898938 | AI8: 12.28000632 | AJ8: 5.188511551 | AM8: Barranquilla | AN8: 21.40564181 | AO8: 11.37117283 | AP8: 17.17605766 | AQ8: 15.0854338
A9: 2007 | B9: =+'Ind de Asistencia a Cine en Col'!B19 -> 0.4705304575 | C9: 6.900627655 | N9: CARTAGENA | O9: SI | P9: 9 | Q9: 2006 | R9: 151816600 | S9: 29555 | U9: VILLAVICENCIO | V9: SI | X9: CUCUTA | Y9: 315115 | Z9: 575296 | AA9: 785197 | AB9: 899063 | AC9: 452426 | AD9: 460044 | AF9: Cúcuta | AG9: 82.56699935 | AH9: 36.48573951 | AI9: 14.50158368 | AJ9: 1.683811275 | AM9: Bogotá | AN9: 1.065991532 | AO9: 29.91980709 | AP9: 19.59126709 | AQ9: 7.683253868
A10: 2008 | B10: =+'Ind de Asistencia a Cine en Col'!B20 -> 0.4850915771 | C10: 3.546804886 | N10: CARTAGO | P10: 9 | Q10: 2006 | R10: 1075000 | S10: 273 | U10: CUCUTA | V10: SI | X10: FLORIDABLANCA | Y10: 557098 | Z10: 542559 | AA10: 668679 | AB10: 668468 | AC10: 342586 | AD10: 361631 | AF10: Floridablanca | AG10: -2.609774223 | AH10: 23.2453982 | AI10: -0.03155475198 | AJ10: 5.559188058 | AM10: Villavicencio | AN10: 22.53055914 | AO10: 65.35354134 | AP10: 23.49775491 | AQ10: 17.39602739
A11: 2009 | B11: =+'Ind de Asistencia a Cine en Col'!B21 -> 0.6017871918 | C11: 1.45191963 | N11: CHIA | P11: 9 | Q11: 2006 | R11: 69858550 | S11: 10550 | U11: BUCARAMANGA | V11: SI | X11: IBAGUE | Y11: 323264 | Z11: 334313 | AA11: 386467 | AB11: 491159 | AC11: 241287 | AD11: 261054 | AF11: Ibagué | AG11: 3.417949416 | AH11: 15.60035057 | AI11: 27.0895057 | AJ11: 8.192318691 | AM11: Valledupar | AN11: 105.9802267 | AO11: 804.2417857 | AP11: 25.65887425 | AQ11: 18.44619523
A12: 2010 | B12: =+'Ind de Asistencia a Cine en Col'!B22 -> 0.7395165599 | C12: 4.307652296 | N12: CUCUTA | O12: SI | P12: 9 | Q12: 2006 | R12: 54550000 | S12: 9453 | U12: CARTAGENA | V12: SI | X12: MANIZALES | Y12: 261974 | Z12: 235223 | AA12: 313466 | AB12: 423529 | AC12: 186160 | AD12: 284659 | AF12: Manizales | AG12: -10.21131868 | AH12: 33.26332884 | AI12: 35.11162295 | AJ12: 52.91093683 | AM12: Ibagué | AN12: 3.417949416 | AO12: 15.60035057 | AP12: 27.0895057 | AQ12: 8.192318691
N13: DUITAMA | P13: 9 | Q13: 2006 | R13: 1119000 | S13: 373 | U13: BARRANQUILLA | V13: SI | X13: MEDELLIN | Y13: 2748120 | Z13: 2836603 | AA13: 3156460 | AB13: 3594476 | AC13: 1826926 | AD13: 1989817 | AF13: Medellín | AG13: 3.219764785 | AH13: 11.27605802 | AI13: 13.87681136 | AJ13: 8.916124682 | AM13: Neiva | AN13: 3.681887907 | AO13: 15.68914689 | AP13: 27.70408822 | AQ13: 35.59257815
N14: ENVIGADO | P14: 9 | Q14: 2006 | R14: 870000 | S14: 174 | U14: CALI | V14: SI | X14: NEIVA | Y14: 264674 | Z14: 274419 | AA14: 317473 | AB14: 405426 | AC14: 179470 | AD14: 243348 | AF14: Neiva | AG14: 3.681887907 | AH14: 15.68914689 | AI14: 27.70408822 | AJ14: 35.59257815 | AM14: Santa marta | AN14: 3.727673662 | AO14: 19.15963427 | AP14: 34.0925063 | AQ14: 24.0303659
N15: FACATATIVA | P15: 9 | Q15: 2006 | R15: 24000 | S15: 6 | U15: MEDELLIN | V15: SI | X15: PEREIRA | Y15: 532311 | Z15: 496377 | AA15: 511301 | AB15: 686142 | AC15: 345722 | AD15: 448820 | AF15: Pereira | AG15: -6.750564989 | AH15: 3.00658572 | AI15: 34.19531744 | AJ15: 29.82107011 | AM15: Pereira | AN15: -6.750564989 | AO15: 3.00658572 | AP15: 34.19531744 | AQ15: 29.82107011
N16: FLORENCIA | P16: 9 | Q16: 2006 | R16: 2630500 | S16: 780 | U16: BOGOTA | V16: SI | X16: SANTA MARTA | Y16: 268237 | Z16: 278236 | AA16: 331545 | AB16: 444577 | AC16: 214978 | AD16: 266638 | AF16: Santa marta | AG16: 3.727673662 | AH16: 19.15963427 | AI16: 34.0925063 | AJ16: 24.0303659 | AM16: Manizales | AN16: -10.21131868 | AO16: 33.26332884 | AP16: 35.11162295 | AQ16: 52.91093683
C17: Para cambiar el tamaño del rango de datos del gráfico, arrastre la esquina inferior derecha del rango. | N17: FLORIDABLANCA | O17: SI | P17: 9 | Q17: 2006 | R17: 116189702 | S17: 19724 | X17: VALLEDUPAR | Y17: 12441 | Z17: 25626 | AA17: 231721 | AB17: 291178 | AC17: 136066 | AD17: 161165 | AF17: Valledupar | AG17: 105.9802267 | AH17: 804.2417857 | AI17: 25.65887425 | AJ17: 18.44619523 | AM17: Resto | AN17: 8.26823971 | AO17: 29.66858036 | AP17: 37.18669681 | AQ17: 39.88566122
N18: FUSAGASUGA | P18: 9 | Q18: 2006 | R18: 1676000 | S18: 346 | X18: VILLAVICENCIO | Y18: 316681 | Z18: 388031 | AA18: 641623 | AB18: 792390 | AC18: 387554 | AD18: 454973 | AF18: Villavicencio | AG18: 22.53055914 | AH18: 65.35354134 | AI18: 23.49775491 | AJ18: 17.39602739 | AM18: Cali | AN18: -1.642996894 | AO18: 9.196213564 | AP18: 43.59094993 | AQ18: 22.09120444
N19: GIRARDOT | P19: 9 | Q19: 2006 | R19: 1150000 | S19: 235 | X19: RESTO | Y19: 1710485 | Z19: 1851912 | AA19: 2401348 | AB19: 3294330 | AC19: 1473166 | AD19: 2060748 | AF19: Resto | AG19: 8.26823971 | AH19: 29.66858036 | AI19: 37.18669681 | AJ19: 39.88566122 | AM19: Bucaramanga | AN19: 25.66118078 | AO19: 20.9966487 | AP19: 156.1687839 | AQ19: 32.17991645
N20: IBAGUE | O20: SI | P20: 9 | Q20: 2006 | R20: 43803875 | S20: 7562
N21: MANIZALES | O21: SI | P21: 9 | Q21: 2006 | R21: 46215320 | S21: 7240
N22: MEDELLIN | O22: SI | P22: 9 | Q22: 2006 | R22: 733307564 | S22: 106676 | X22: Suma de admissions | Y22: Etiquetas de columna
N23: MONTERIA | P23: 9 | Q23: 2006 | R23: 57172500 | S23: 7913 | Y23: 2010 | AE23: Total 2010 | AF23: 2011 | AL23: Total 2011 | AM23: Total general
N24: NEIVA | O24: SI | P24: 9 | Q24: 2006 | R24: 43564077 | S24: 7330 | X24: Etiquetas de fila | Y24: 1 | Z24: 2 | AA24: 3 | AB24: 4 | AC24: 5 | AD24: 6 | AF24: 1 | AG24: 2 | AH24: 3 | AI24: 4 | AJ24: 5 | AK24: 6
N25: PALMIRA | P25: 9 | Q25: 2006 | R25: 33141795 | S25: 5294 | X25: SI | Y25: 3649257 | Z25: 1795385 | AA25: 2413255 | AB25: 2123038 | AC25: 2149154 | AD25: 3036445 | AE25: 15166534 | AF25: 3767955 | AG25: 1823721 | AH25: 2363418 | AI25: 2871155 | AJ25: 2863124 | AK25: 3297772 | AL25: 16987145 | AM25: 32153679
N26: PASTO | P26: 9 | Q26: 2006 | R26: 13785500 | S26: 2249 | X26: BARRANQUILLA | Y26: 151756 | Z26: 73417 | AA26: 116941 | AB26: 108778 | AC26: 110757 | AD26: 149779 | AE26: 711428 | AF26: 168357 | AG26: 72296 | AH26: 111037 | AI26: 144809 | AJ26: 157767 | AK26: 164484 | AL26: 818750 | AM26: 1530178
N27: PEREIRA | O27: SI | P27: 9 | Q27: 2006 | R27: 150976150 | S27: 23695 | X27: BOGOTA | Y27: 1829435 | Z27: 899557 | AA27: 1236675 | AB27: 1046921 | AC27: 1049412 | AD27: 1526803 | AE27: 7588803 | AF27: 1822187 | AG27: 899945 | AH27: 1123616 | AI27: 1360743 | AJ27: 1317808 | AK27: 1647571 | AL27: 8171870 | AM27: 15760673
N28: POPAYAN | P28: 9 | Q28: 2006 | R28: 3300000 | S28: 721 | X28: BUCARAMANGA | Y28: 63423 | Z28: 32184 | AA28: 71091 | AB28: 64418 | AC28: 71930 | AD28: 107011 | AE28: 410057 | AF28: 125701 | AG28: 56794 | AH28: 69383 | AI28: 89736 | AJ28: 90296 | AK28: 110103 | AL28: 542013 | AM28: 952070
N29: SAN ANDRES | P29: 9 | Q29: 2006 | R29: 3109000 | S29: 583 | X29: CALI | Y29: 408010 | Z29: 202636 | AA29: 246394 | AB29: 213045 | AC29: 223753 | AD29: 292291 | AE29: 1586129 | AF29: 418480 | AG29: 220368 | AH29: 276706 | AI29: 340281 | AJ29: 338723 | AK29: 341966 | AL29: 1936524 | AM29: 3522653
N30: SANTA MARTA | O30: SI | P30: 9 | Q30: 2006 | R30: 66302353 | S30: 10981 | X30: CARTAGENA | Y30: 159176 | Z30: 73665 | AA30: 83821 | AB30: 76993 | AC30: 71363 | AD30: 91924 | AE30: 556942 | AF30: 121939 | AG30: 52578 | AH30: 78267 | AI30: 102533 | AJ30: 114056 | AK30: 116466 | AL30: 585839 | AM30: 1142781
N31: SINCELEJO | P31: 9 | Q31: 2006 | R31: 7947000 | S31: 1673 | X31: CUCUTA | Y31: 111538 | Z31: 48629 | AA31: 65137 | AB31: 65592 | AC31: 68865 | AD31: 92665 | AE31: 452426 | AF31: 116526 | AG31: 49632 | AH31: 60396 | AI31: 78694 | AJ31: 73410 | AK31: 81386 | AL31: 460044 | AM31: 912470
N32: SOGAMOSO | P32: 9 | Q32: 2006 | R32: 1771000 | S32: 470 | X32: FLORIDABLANCA | Y32: 93232 | Z32: 44788 | AA32: 50425 | AB32: 45313 | AC32: 43545 | AD32: 65283 | AE32: 342586 | AF32: 90607 | AG32: 36294 | AH32: 52696 | AI32: 58500 | AJ32: 55664 | AK32: 67870 | AL32: 361631 | AM32: 704217
N33: TULUA | P33: 9 | Q33: 2006 | R33: 31995500 | S33: 6729 | X33: IBAGUE | Y33: 58589 | Z33: 27103 | AA33: 34469 | AB33: 35107 | AC33: 34964 | AD33: 51055 | AE33: 241287 | AF33: 65425 | AG33: 25322 | AH33: 33392 | AI33: 45625 | AJ33: 40637 | AK33: 50653 | AL33: 261054 | AM33: 502341
N34: TUNJA | P34: 9 | Q34: 2006 | R34: 3344500 | S34: 943 | X34: MANIZALES | Y34: 44041 | Z34: 21026 | AA34: 27206 | AB34: 24658 | AC34: 29915 | AD34: 39314 | AE34: 186160 | AF34: 68534 | AG34: 31059 | AH34: 41069 | AI34: 50434 | AJ34: 45396 | AK34: 48167 | AL34: 284659 | AM34: 470819
N35: VALLEDUPAR | O35: SI | P35: 9 | Q35: 2006 | R35: 1655000 | S35: 461 | X35: MEDELLIN | Y35: 434990 | Z35: 231588 | AA35: 291956 | AB35: 254277 | AC35: 250106 | AD35: 364009 | AE35: 1826926 | AF35: 418541 | AG35: 220788 | AH35: 301712 | AI35: 333402 | AJ35: 345105 | AK35: 370269 | AL35: 1989817 | AM35: 3816743
N36: VILLAVICENCIO | O36: SI | P36: 9 | Q36: 2006 | R36: 39927084 | S36: 7132 | X36: NEIVA | Y36: 42947 | Z36: 18132 | AA36: 24244 | AB36: 28599 | AC36: 28014 | AD36: 37534 | AE36: 179470 | AF36: 59793 | AG36: 24234 | AH36: 35639 | AI36: 39944 | AJ36: 40019 | AK36: 43719 | AL36: 243348 | AM36: 422818
N37: YOPAL | P37: 9 | Q37: 2006 | R37: 1707000 | S37: 574 | X37: PEREIRA | Y37: 85337 | Z37: 41276 | AA37: 51988 | AB37: 49372 | AC37: 49313 | AD37: 68436 | AE37: 345722 | AF37: 85638 | AG37: 46047 | AH37: 66700 | AI37: 79880 | AJ37: 86932 | AK37: 83623 | AL37: 448820 | AM37: 794542
N38: ARMENIA | P38: 10 | Q38: 2006 | R38: 105795800 | S38: 21923 | X38: SANTA MARTA | Y38: 46848 | Z38: 23237 | AA38: 31614 | AB38: 31758 | AC38: 36958 | AD38: 44563 | AE38: 214978 | AF38: 62705 | AG38: 23738 | AH38: 34026 | AI38: 44163 | AJ38: 50035 | AK38: 51971 | AL38: 266638 | AM38: 481616
N39: BARRANQUILLA | O39: SI | P39: 10 | Q39: 2006 | R39: 293708100 | S39: 57835 | X39: VALLEDUPAR | Y39: 34054 | Z39: 14759 | AA39: 19630 | AB39: 18242 | AC39: 21030 | AD39: 28351 | AE39: 136066 | AF39: 35189 | AG39: 15678 | AH39: 20457 | AI39: 25212 | AJ39: 30604 | AK39: 34025 | AL39: 161165 | AM39: 297231
N40: BELLO | P40: 10 | Q40: 2006 | R40: 91843748 | S40: 20378 | X40: VILLAVICENCIO | Y40: 85881 | Z40: 43388 | AA40: 61664 | AB40: 59965 | AC40: 59229 | AD40: 77427 | AE40: 387554 | AF40: 108333 | AG40: 48948 | AH40: 58322 | AI40: 77199 | AJ40: 76672 | AK40: 85499 | AL40: 454973 | AM40: 842527
N41: BOGOTA | O41: SI | P41: 10 | Q41: 2006 | R41: 3830608302 | S41: 702361 | X41: Total general | Y41: 3649257 | Z41: 1795385 | AA41: 2413255 | AB41: 2123038 | AC41: 2149154 | AD41: 3036445 | AE41: 15166534 | AF41: 3767955 | AG41: 1823721 | AH41: 2363418 | AI41: 2871155 | AJ41: 2863124 | AK41: 3297772 | AL41: 16987145 | AM41: 32153679
N42: BUCARAMANGA | O42: SI | P42: 10 | Q42: 2006 | R42: 89439050 | S42: 21471
N43: BUGA | P43: 10 | Q43: 2006 | R43: 2310000 | S43: 512
N44: CALI | O44: SI | P44: 10 | Q44: 2006 | R44: 1075019150 | S44: 195779
N45: CARTAGENA | O45: SI | P45: 10 | Q45: 2006 | R45: 164988150 | S45: 40934
N46: CARTAGO | P46: 10 | Q46: 2006 | R46: 4255000 | S46: 1171
N47: CHIA | P47: 10 | Q47: 2006 | R47: 102620100 | S47: 21641 | X47: Suma de admissions | Y47: Etiquetas de columna
N48: CUCUTA | O48: SI | P48: 10 | Q48: 2006 | R48: 68569000 | S48: 15009 | X48: Etiquetas de fila | Y48: 2006 | Z48: 2007 | AA48: 2008 | AB48: 2009 | AC48: 2010 | AD48: 2011 | AE48: Total general
N49: DUITAMA | P49: 10 | Q49: 2006 | R49: 2976000 | S49: 992 | X49: SI | Y49: 4987380 | Z49: 18958473 | AA49: 19710965 | AB49: 24666337 | AC49: 30360761 | AD49: 16987145 | AE49: 115671061
N50: ENVIGADO | P50: 10 | Q50: 2006 | R50: 5020000 | S50: 1004 | X50: #N/A | Y50: 410553 | Z50: 1710485 | AA50: 1851912 | AB50: 2401348 | AC50: 3294330 | AD50: 2060748 | AE50: 11729376
N51: FLORENCIA | P51: 10 | Q51: 2006 | R51: 8469500 | S51: 3091 | X51: Total general | Y51: 5397933 | Z51: 20668958 | AA51: 21562877 | AB51: 27067685 | AC51: 33655091 | AD51: 19047893 | AE51: 127400437
G52: Etiquetas de fila | H52: Espectadores | I52: Taquilla | N52: FLORIDABLANCA | O52: SI | P52: 10 | Q52: 2006 | R52: 208682578 | S52: 38884
G53: Valledupar | H53: 291178 | I53: 1606284900 | N53: FUSAGASUGA | P53: 10 | Q53: 2006 | R53: 5267000 | S53: 1152
G54: Neiva | H54: 405426 | I54: 2547704000 | N54: GIRARDOT | P54: 10 | Q54: 2006 | R54: 1550000 | S54: 332
G55: Manizales | H55: 423529 | I55: 2868776400 | N55: IBAGUE | O55: SI | P55: 10 | Q55: 2006 | R55: 117335729 | S55: 22354
G56: Santa marta | H56: 444577 | I56: 2625922000 | N56: LORICA | P56: 10 | Q56: 2006 | R56: 225000 | S56: 45
G57: Ibagué | H57: 491159 | I57: 3368197200 | N57: MANIZALES | O57: SI | P57: 10 | Q57: 2006 | R57: 119872776 | S57: 22000
G58: Floridablanca | H58: 668468 | I58: 5233671500 | N58: MEDELLIN | O58: SI | P58: 10 | Q58: 2006 | R58: 1155525277 | S58: 218967 | X58: Suma de admissions | Y58: Etiquetas de columna
G59: Pereira | H59: 686142 | I59: 5374565050 | N59: MONTERIA | P59: 10 | Q59: 2006 | R59: 56543550 | S59: 10225 | Y59: 2010 | AE59: Total 2010 | AF59: 2011 | AL59: Total 2011 | AM59: Total general
G60: Villavicencio | H60: 792390 | I60: 4270644800 | N60: NEIVA | O60: SI | P60: 10 | Q60: 2006 | R60: 114288150 | S60: 22228 | X60: Etiquetas de fila | Y60: 1 | Z60: 2 | AA60: 3 | AB60: 4 | AC60: 5 | AD60: 6 | AF60: 1 | AG60: 2 | AH60: 3 | AI60: 4 | AJ60: 5 | AK60: 6
G61: Cúcuta | H61: 899063 | I61: 6090242800 | N61: PALMIRA | P61: 10 | Q61: 2006 | R61: 86939694 | S61: 16105 | X61: SI | Y61: 3649257 | Z61: 1795385 | AA61: 2413255 | AB61: 2123038 | AC61: 2149154 | AD61: 3036445 | AE61: 15166534 | AF61: 3767955 | AG61: 1823721 | AH61: 2363418 | AI61: 2871155 | AJ61: 2863124 | AK61: 3297772 | AL61: 16987145 | AM61: 32153679
G62: Bucaramanga | H62: 914707 | I62: 4925368050 | N62: PASTO | P62: 10 | Q62: 2006 | R62: 20015500 | S62: 4138 | X62: #N/A | Y62: 344066 | Z62: 154657 | AA62: 209004 | AB62: 203713 | AC62: 225552 | AD62: 336174 | AE62: 1473166 | AF62: 491658 | AG62: 214577 | AH62: 256089 | AI62: 343335 | AJ62: 354289 | AK62: 400800 | AL62: 2060748 | AM62: 3533914
G63: Cartagena | H63: 1031028 | I63: 6025308450 | N63: PEREIRA | O63: SI | P63: 10 | Q63: 2006 | R63: 225302200 | S63: 44932 | X63: Total general | Y63: 3993323 | Z63: 1950042 | AA63: 2622259 | AB63: 2326751 | AC63: 2374706 | AD63: 3372619 | AE63: 16639700 | AF63: 4259613 | AG63: 2038298 | AH63: 2619507 | AI63: 3214490 | AJ63: 3217413 | AK63: 3698572 | AL63: 19047893 | AM63: 35687593
G64: Barranquilla | H64: 1472241 | I64: 11473320950 | N64: POPAYAN | P64: 10 | Q64: 2006 | R64: 2596000 | S64: 619
G65: Cali | H65: 3338962 | I65: 26773781800 | N65: SAN ANDRES | P65: 10 | Q65: 2006 | R65: 4909000 | S65: 797
G66: Medellín | H66: 3594476 | I66: 31276043723 | N66: SANTA MARTA | O66: SI | P66: 10 | Q66: 2006 | R66: 91181785 | S66: 18469
G67: Bogotá | H67: 14907415 | I67: 122173970670 | N67: SINCELEJO | O67: =+VLOOKUP(N67,$U$2:$V$16,2,FALSE) ->  | P67: 10 | Q67: 2006 | R67: 2885000 | S67: 627
N68: SOGAMOSO | P68: 10 | Q68: 2006 | R68: 6886500 | S68: 1780
N69: TULUA | P69: 10 | Q69: 2006 | R69: 31761000 | S69: 8598
N70: TUNJA | P70: 10 | Q70: 2006 | R70: 4869500 | S70: 1378
N71: VALLEDUPAR | O71: SI | P71: 10 | Q71: 2006 | R71: 1443000 | S71: 423
N72: VILLAVICENCIO | O72: SI | P72: 10 | Q72: 2006 | R72: 106845591 | S72: 18274
N73: YOPAL | P73: 10 | Q73: 2006 | R73: 888000 | S73: 299
N74: ARMENIA | P74: 11 | Q74: 2006 | R74: 101446850 | S74: 15617
N75: BARRANQUILLA | O75: SI | P75: 11 | Q75: 2006 | R75: 395004250 | S75: 58554
N76: BELLO | P76: 11 | Q76: 2006 | R76: 84358008 | S76: 14522
N77: BOGOTA | O77: SI | P77: 11 | Q77: 2006 | R77: 4740800350 | S77: 646654
N78: BUCARAMANGA | O78: SI | P78: 11 | Q78: 2006 | R78: 81283700 | S78: 14265
N79: BUGA | P79: 11 | Q79: 2006 | R79: 3168000 | S79: 727
N80: CALI | O80: SI | P80: 11 | Q80: 2006 | R80: 1153610850 | S80: 152441
N81: CARTAGENA | O81: SI | P81: 11 | Q81: 2006 | R81: 186693600 | S81: 34024
N82: CARTAGO | P82: 11 | Q82: 2006 | R82: 864000 | S82: 231
N83: CHIA | P83: 11 | Q83: 2006 | R83: 110971200 | S83: 16128
N84: CUCUTA | O84: SI | P84: 11 | Q84: 2006 | R84: 83306000 | S84: 14019
N85: DUITAMA | P85: 11 | Q85: 2006 | R85: 947000 | S85: 307
N86: FLORENCIA | P86: 11 | Q86: 2006 | R86: 5844500 | S86: 1501
N87: FLORIDABLANCA | O87: SI | P87: 11 | Q87: 2006 | R87: 206743900 | S87: 33385
N88: FUSAGASUGA | P88: 11 | Q88: 2006 | R88: 672000 | S88: 147
N89: GIRARDOT | P89: 11 | Q89: 2006 | R89: 3972000 | S89: 874
N90: IBAGUE | O90: SI | P90: 11 | Q90: 2006 | R90: 138712850 | S90: 21961
N91: MANIZALES | O91: SI | P91: 11 | Q91: 2006 | R91: 119156100 | S91: 17911
N92: MEDELLIN | O92: SI | P92: 11 | Q92: 2006 | R92: 1380246314 | S92: 197027
N93: MONTERIA | P93: 11 | Q93: 2006 | R93: 71164100 | S93: 9672
N94: NEIVA | O94: SI | P94: 11 | Q94: 2006 | R94: 106732700 | S94: 16467
N95: PALMIRA | P95: 11 | Q95: 2006 | R95: 76066200 | S95: 12058
N96: PASTO | P96: 11 | Q96: 2006 | R96: 21738000 | S96: 3473
N97: PEREIRA | O97: SI | P97: 11 | Q97: 2006 | R97: 212636800 | S97: 32688
N98: POPAYAN | P98: 11 | Q98: 2006 | R98: 1293000 | S98: 304
N99: SAN ANDRES | P99: 11 | Q99: 2006 | R99: 7194000 | S99: 1233
N100: SANTA MARTA | O100: SI | P100: 11 | Q100: 2006 | R100: 100133000 | S100: 16466
N101: SINCELEJO | P101: 11 | Q101: 2006 | R101: 3147000 | S101: 673
N102: SOGAMOSO | P102: 11 | Q102: 2006 | R102: 1899000 | S102: 494
N103: TULUA | P103: 11 | Q103: 2006 | R103: 37558500 | S103: 7974
N104: TUNJA | P104: 11 | Q104: 2006 | R104: 2422000 | S104: 692
N105: VALLEDUPAR | O105: SI | P105: 11 | Q105: 2006 | R105: 670000 | S105: 176
N106: VILLAVICENCIO | O106: SI | P106: 11 | Q106: 2006 | R106: 86523800 | S106: 14777
N107: YOPAL | P107: 11 | Q107: 2006 | R107: 83000 | S107: 31
N108: ARMENIA | P108: 12 | Q108: 2006 | R108: 172239050 | S108: 26517
N109: BARRANQUILLA | O109: SI | P109: 12 | Q109: 2006 | R109: 521313650 | S109: 78460
N110: BELLO | P110: 12 | Q110: 2006 | R110: 99139128 | S110: 17537
N111: BOGOTA | O111: SI | P111: 12 | Q111: 2006 | R111: 5421171570 | S111: 753740
N112: BUCARAMANGA | O112: SI | P112: 12 | Q112: 2006 | R112: 117753850 | S112: 20476
N113: BUGA | P113: 12 | Q113: 2006 | R113: 6926000 | S113: 1979
N114: CALI | O114: SI | P114: 12 | Q114: 2006 | R114: 1355443500 | S114: 178197
N115: CARTAGENA | O115: SI | P115: 12 | Q115: 2006 | R115: 280071050 | S115: 51011
N116: CARTAGO | P116: 12 | Q116: 2006 | R116: 2593000 | S116: 609
N117: CHIA | P117: 12 | Q117: 2006 | R117: 189130750 | S117: 27200
N118: CUCUTA | O118: SI | P118: 12 | Q118: 2006 | R118: 107525000 | S118: 18230
N119: DUITAMA | P119: 12 | Q119: 2006 | R119: 1959000 | S119: 653
N120: ENVIGADO | P120: 12 | Q120: 2006 | R120: 2324000 | S120: 397
N121: FLORENCIA | P121: 12 | Q121: 2006 | R121: 9542000 | S121: 1943
N122: FLORIDABLANCA | O122: SI | P122: 12 | Q122: 2006 | R122: 316911200 | S122: 51203
N123: FUSAGASUGA | P123: 12 | Q123: 2006 | R123: 1524000 | S123: 339
N124: GIRARDOT | P124: 12 | Q124: 2006 | R124: 3921000 | S124: 731
N125: IBAGUE | O125: SI | P125: 12 | Q125: 2006 | R125: 189849350 | S125: 30988
N126: LORICA | P126: 12 | Q126: 2006 | R126: 75000 | S126: 15
N127: MANIZALES | O127: SI | P127: 12 | Q127: 2006 | R127: 143887170 | S127: 22756
N128: MEDELLIN | O128: SI | P128: 12 | Q128: 2006 | R128: 1516641095 | S128: 222357
N129: MONTERIA | P129: 12 | Q129: 2006 | R129: 112202350 | S129: 15487
N130: NEIVA | O130: SI | P130: 12 | Q130: 2006 | R130: 157551500 | S130: 25997
N131: PALMIRA | O131: =+VLOOKUP(N131,$U$2:$V$16,2,FALSE) ->  | P131: 12 | Q131: 2006 | R131: 108026550 | S131: 17206
N132: PASTO | P132: 12 | Q132: 2006 | R132: 39479500 | S132: 6504
N133: PEREIRA | O133: SI | P133: 12 | Q133: 2006 | R133: 318672600 | S133: 49102
N134: POPAYAN | P134: 12 | Q134: 2006 | R134: 4428000 | S134: 1052
N135: SAN ANDRES | P135: 12 | Q135: 2006 | R135: 15934000 | S135: 2485
N136: SANTA MARTA | O136: SI | P136: 12 | Q136: 2006 | R136: 149521900 | S136: 24834
N137: SINCELEJO | P137: 12 | Q137: 2006 | R137: 6265500 | S137: 1425
N138: SOGAMOSO | P138: 12 | Q138: 2006 | R138: 4148000 | S138: 1102
N139: TULUA | P139: 12 | Q139: 2006 | R139: 43546500 | S139: 9420
N140: TUNJA | P140: 12 | Q140: 2006 | R140: 6912500 | S140: 1891
N141: VALLEDUPAR | O141: SI | P141: 12 | Q141: 2006 | R141: 3697500 | S141: 889
N142: VILLAVICENCIO | O142: SI | P142: 12 | Q142: 2006 | R142: 94821500 | S142: 16846
N143: YOPAL | P143: 12 | Q143: 2006 | R143: 997500 | S143: 348
N144: ARMENIA | P144: 1 | Q144: 2007 | R144: 225720050 | S144: 31709
N145: BARRANQUILLA | O145: SI | P145: 1 | Q145: 2007 | R145: 613413550 | S145: 88389
N146: BELLO | P146: 1 | Q146: 2007 | R146: 145079700 | S146: 23575
N147: BOGOTA | O147: SI | P147: 1 | Q147: 2007 | R147: 7765143000 | S147: 1035824
N148: BUCARAMANGA | O148: SI | P148: 1 | Q148: 2007 | R148: 157823200 | S148: 25156
N149: BUGA | P149: 1 | Q149: 2007 | R149: 13661000 | S149: 3020
N150: CALI | O150: SI | P150: 1 | Q150: 2007 | R150: 1991421800 | S150: 247012
N151: CARTAGENA | O151: SI | P151: 1 | Q151: 2007 | R151: 320969700 | S151: 50945
N152: CARTAGO | P152: 1 | Q152: 2007 | R152: 3912000 | S152: 1070
N153: CHIA | P153: 1 | Q153: 2007 | R153: 248174200 | S153: 33958
N154: CUCUTA | O154: SI | P154: 1 | Q154: 2007 | R154: 182545000 | S154: 27521
N155: DUITAMA | P155: 1 | Q155: 2007 | R155: 1563000 | S155: 521
N156: ENVIGADO | P156: 1 | Q156: 2007 | R156: 6097000 | S156: 1026
N157: FLORENCIA | P157: 1 | Q157: 2007 | R157: 11193000 | S157: 2494
N158: FLORIDABLANCA | O158: SI | P158: 1 | Q158: 2007 | R158: 454486950 | S158: 66971
N159: FUSAGASUGA | P159: 1 | Q159: 2007 | R159: 1598000 | S159: 351
N160: GIRARDOT | P160: 1 | Q160: 2007 | R160: 5980000 | S160: 1281
N161: IBAGUE | O161: SI | P161: 1 | Q161: 2007 | R161: 289502300 | S161: 43204
N162: LORICA | P162: 1 | Q162: 2007 | R162: 679000 | S162: 148
N163: MANIZALES | O163: SI | P163: 1 | Q163: 2007 | R163: 199562600 | S163: 29638
N164: MARINILLA | P164: 1 | Q164: 2007 | R164: 672000 | S164: 224
N165: MEDELLIN | O165: SI | P165: 1 | Q165: 2007 | R165: 2113737200 | S165: 297193
N166: MELGAR | P166: 1 | Q166: 2007 | R166: 0 | S166: 0
N167: MONTERIA | P167: 1 | Q167: 2007 | R167: 135301550 | S167: 16696
N168: NEIVA | O168: SI | P168: 1 | Q168: 2007 | R168: 202578650 | S168: 30949
N169: PALMIRA | P169: 1 | Q169: 2007 | R169: 163783900 | S169: 24789
N170: PASTO | P170: 1 | Q170: 2007 | R170: 65432500 | S170: 11090
N171: PEREIRA | O171: SI | P171: 1 | Q171: 2007 | R171: 452158050 | S171: 63207
N172: POPAYAN | P172: 1 | Q172: 2007 | R172: 6586000 | S172: 1458
N173: SAN ANDRES | P173: 1 | Q173: 2007 | R173: 25140000 | S173: 3620
N174: SANTA MARTA | O174: SI | P174: 1 | Q174: 2007 | R174: 197526850 | S174: 30506
N175: SINCELEJO | P175: 1 | Q175: 2007 | R175: 5720000 | S175: 1257
N176: SOGAMOSO | P176: 1 | Q176: 2007 | R176: 7290500 | S176: 1983
N177: TULUA | P177: 1 | Q177: 2007 | R177: 74337000 | S177: 12947
N178: TUNJA | P178: 1 | Q178: 2007 | R178: 7790500 | S178: 2180
N179: VALLEDUPAR | O179: SI | P179: 1 | Q179: 2007 | R179: 3714000 | S179: 968
N180: VILLAVICENCIO | O180: SI | P180: 1 | Q180: 2007 | R180: 136193000 | S180: 24393
N181: YOPAL | P181: 1 | Q181: 2007 | R181: 2411000 | S181: 839
N182: ARMENIA | P182: 2 | Q182: 2007 | R182: 77100100 | S182: 10861
N183: BARRANQUILLA | O183: SI | P183: 2 | Q183: 2007 | R183: 295416450 | S183: 40354
N184: BELLO | P184: 2 | Q184: 2007 | R184: 65435005 | S184: 10098
N185: BOGOTA | O185: SI | P185: 2 | Q185: 2007 | R185: 4268542950 | S185: 540656
N186: BUCARAMANGA | O186: SI | P186: 2 | Q186: 2007 | R186: 61219950 | S186: 9530
N187: BUGA | P187: 2 | Q187: 2007 | R187: 5109000 | S187: 1202
N188: CALI | O188: SI | P188: 2 | Q188: 2007 | R188: 1059563800 | S188: 130644
N189: CARTAGENA | O189: SI | P189: 2 | Q189: 2007 | R189: 149290900 | S189: 23188
N190: CARTAGO | P190: 2 | Q190: 2007 | R190: 2820000 | S190: 814
N191: CHIA | P191: 2 | Q191: 2007 | R191: 108073000 | S191: 14329
N192: CUCUTA | O192: SI | P192: 2 | Q192: 2007 | R192: 62805000 | S192: 9243
N193: DUITAMA | P193: 2 | Q193: 2007 | R193: 1365000 | S193: 455
N194: ENVIGADO | P194: 2 | Q194: 2007 | R194: 1466000 | S194: 248
N195: FLORENCIA | O195: =+VLOOKUP(N195,$U$2:$V$16,2,FALSE) ->  | P195: 2 | Q195: 2007 | R195: 6554500 | S195: 1625
N196: FLORIDABLANCA | O196: SI | P196: 2 | Q196: 2007 | R196: 188679200 | S196: 28448
N197: FUSAGASUGA | P197: 2 | Q197: 2007 | R197: 2026000 | S197: 429
N198: GIRARDOT | P198: 2 | Q198: 2007 | R198: 1861000 | S198: 404
N199: IBAGUE | O199: SI | P199: 2 | Q199: 2007 | R199: 93905600 | S199: 14282
N200: LORICA | P200: 2 | Q200: 2007 | R200: 452000 | S200: 115
... 2062 more rows

Sheet Salas de Exhibición
B1: =+[1]a14_ind!T6 -> COMPLEJOS | C1: =+[1]a14_ind!U6 -> SALAS | D1: =+[1]a14_ind!V6 -> Población | E1: =+[1]a14_ind!W6 -> Salas por millón de habitantes
B2: Complejos | C2: Salas | E2: Salas por millón de habitantes
A3: =+[1]a14_ind!S7 -> 2006 | B3: =+[1]a14_ind!T7 -> 123 | C3: =+[1]a14_ind!U7 -> 424 | D3: =+[1]a14_ind!V7 -> 43405956 | E3: =+[1]a14_ind!W7 -> 9.768244708
A4: =+[1]a14_ind!S8 -> 2007 | B4: =+[1]a14_ind!T8 -> 127 | C4: =+[1]a14_ind!U8 -> 462 | D4: =+[1]a14_ind!V8 -> 43926929 | E4: =+[1]a14_ind!W8 -> 10.5174664 | AF4: Salas por ciudad
A5: =+[1]a14_ind!S9 -> 2008 | B5: =+[1]a14_ind!T9 -> 138 | C5: =+[1]a14_ind!U9 -> 536 | D5: =+[1]a14_ind!V9 -> 44451147 | E5: =+[1]a14_ind!W9 -> 12.05818154 | AF5: Etiquetas de fila | AG5: 0
A6: =+[1]a14_ind!S10 -> 2009 | B6: =+[1]a14_ind!T10 -> 125 | C6: =+[1]a14_ind!U10 -> 530 | D6: =+[1]a14_ind!V10 -> 44978832 | E6: =+[1]a14_ind!W10 -> 11.78332065 | AH6: CINE COLOMBIA | AI6: CINEMARK | AJ6: PROCINAL | AK6: RESTO | AL6: ROYAL FILMS LTDA | AM6: Total general
A7: =+[1]a14_ind!S11 -> 2010 | B7: =+[1]a14_ind!T11 -> 128 | C7: =+[1]a14_ind!U11 -> 588 | D7: =+[1]a14_ind!V11 -> 45509584 | E7: =+[1]a14_ind!W11 -> 12.92035541 | AF7: 2011 | AH7: =+PROPER(AH6) -> Cine Colombia | AI7: =+PROPER(AI6) -> Cinemark | AJ7: Procinal | AK7: Resto | AL7: Royal Films Ltda | AM7: Total General
A8: =+[1]a14_ind!S12 -> 2011* | B8: =+[1]a14_ind!T12 -> 127 | C8: =+[1]a14_ind!U12 -> 591 | D8: =+[1]a14_ind!V12 -> 46044601 | E8: =+[1]a14_ind!W12 -> 12.83538107 | AF8: BARRANQUILLA | AG8: =+PROPER(AF8) -> Barranquilla | AH8: 8 | AL8: 23 | AM8: 31
AF9: CALI | AG9: =+PROPER(AF9) -> Cali | AH9: 38 | AK9: 17 | AL9: 13 | AM9: 68
AF10: MEDELLIN | AG10: =+PROPER(AF10) -> Medellin | AH10: 30 | AI10: 10 | AJ10: 23 | AK10: 2 | AL10: 12 | AM10: 77
AF11: RESTO | AG11: =+PROPER(AF11) -> Resto | AH11: 44 | AI11: 50 | AJ11: 23 | AK11: 50 | AL11: 37 | AM11: 204
AF12: BOGOTA | AG12: =+PROPER(AF12) -> Bogota | AH12: 105 | AI12: 26 | AJ12: 63 | AK12: 17 | AM12: 211
AH13: 225 | AI13: 86 | AJ13: 109 | AK13: 86 | AL13: 85 | AM13: 591
A14: =+[1]a14_ind!S18 -> 2011*
A15: =+[1]a14_ind!S19 -> EXHIBIDOR | B15: =+[1]a14_ind!T19 -> COMPLEJOS | C15: =+[1]a14_ind!U19 -> SALAS | D15: =+[1]a14_ind!V19 -> PARTICIPACIÓN COMPLEJOS | E15: =+[1]a14_ind!W19 -> PARTICIPACIÓN SALAS
A16: =+[1]a14_ind!S20 -> CINE COLOMBIA | B16: =+[1]a14_ind!T20 -> 35 | C16: =+[1]a14_ind!U20 -> 225 | AF16: Distribución de salas de cine por ciudad
A17: =+[1]a14_ind!S21 -> PROCINAL | B17: =+[1]a14_ind!T21 -> 23 | C17: =+[1]a14_ind!U21 -> 109
A18: =+[1]a14_ind!S22 -> CINEMARK | B18: =+[1]a14_ind!T22 -> 16 | C18: =+[1]a14_ind!U22 -> 86
A19: =+[1]a14_ind!S23 -> ROYAL FILMS LTDA | B19: =+[1]a14_ind!T23 -> 19 | C19: =+[1]a14_ind!U23 -> 85
A20: =+[1]a14_ind!S24 -> RESTO | B20: =+[1]a14_ind!T24 -> 34 | C20: =+[1]a14_ind!U24 -> 86
A21: =+[1]a14_ind!S25 -> TOTALES | B21: =+[1]a14_ind!T25 -> 127 | C21: =+[1]a14_ind!U25 -> 591
A23: 2011*
A24: EXHIBIDOR | B24: Complejos | C24: Salas
A25: Cine Colombia | B25: 35 | C25: 225
A26: Procinal | B26: 23 | C26: 109
A27: Cine Mark | B27: 16 | C27: 86
A28: Royal Films | B28: 19 | C28: 85
A29: Resto | B29: 34 | C29: 86
F31: Salas de exhibición en Colombia
F32: 2006 – 2011*
J54: a14 | K54: Complejos
W55: a14 | X55: Salas

Sheet Asistencia cine por ciudades
B1: =+'[1]a1_1 ind'!Z2 -> Admisiones
A2: =+'[1]a1_1 ind'!Y3 -> 0 | B2: =+'[1]a1_1 ind'!Z3 -> BARRANQUILLA | C2: =+'[1]a1_1 ind'!AA3 -> BOGOTA | D2: =+'[1]a1_1 ind'!AB3 -> CALI | E2: =+'[1]a1_1 ind'!AC3 -> MEDELLIN | F2: =+'[1]a1_1 ind'!AD3 -> RESTO | G2: =+'[1]a1_1 ind'!AE3 -> TOTAL | H2: Espectadores
B3: =PROPER(B2) -> Barranquilla | C3: =PROPER(C2) -> Bogota | D3: Cali | E3: Medellin | F3: Resto | G3: Total
A4: =+'[1]a1_1 ind'!Y4 -> 2007 | B4: =+'[1]a1_1 ind'!Z4 -> 929241 | C4: =+'[1]a1_1 ind'!AA4 -> 9493415 | D4: =+'[1]a1_1 ind'!AB4 -> 2165068 | E4: =+'[1]a1_1 ind'!AC4 -> 2748120 | F4: =+'[1]a1_1 ind'!AD4 -> 5333114 | G4: =+'[1]a1_1 ind'!AE4 -> 20668958
A5: =+'[1]a1_1 ind'!Y5 -> 2008 | B5: =+'[1]a1_1 ind'!Z5 -> 1128151 | C5: =+'[1]a1_1 ind'!AA5 -> 9594614 | D5: =+'[1]a1_1 ind'!AB5 -> 2129496 | E5: =+'[1]a1_1 ind'!AC5 -> 2836603 | F5: =+'[1]a1_1 ind'!AD5 -> 5874013 | G5: =+'[1]a1_1 ind'!AE5 -> 21562877
A6: =+'[1]a1_1 ind'!Y6 -> 2009 | B6: =+'[1]a1_1 ind'!Z6 -> 1256435 | C6: =+'[1]a1_1 ind'!AA6 -> 12465304 | D6: =+'[1]a1_1 ind'!AB6 -> 2325329 | E6: =+'[1]a1_1 ind'!AC6 -> 3156460 | F6: =+'[1]a1_1 ind'!AD6 -> 7864157 | G6: =+'[1]a1_1 ind'!AE6 -> 27067685
A7: =+'[1]a1_1 ind'!Y7 -> 2010 | B7: =+'[1]a1_1 ind'!Z7 -> 1472241 | C7: =+'[1]a1_1 ind'!AA7 -> 14907415 | D7: =+'[1]a1_1 ind'!AB7 -> 3338962 | E7: =+'[1]a1_1 ind'!AC7 -> 3594476 | F7: =+'[1]a1_1 ind'!AD7 -> 10341997 | G7: =+'[1]a1_1 ind'!AE7 -> 33655091
A8: =+'[1]a1_1 ind'!Y8 -> 2010* | B8: =+'[1]a1_1 ind'!Z8 -> 711428 | C8: =+'[1]a1_1 ind'!AA8 -> 7588803 | D8: =+'[1]a1_1 ind'!AB8 -> 1586129 | E8: =+'[1]a1_1 ind'!AC8 -> 1826926 | F8: =+'[1]a1_1 ind'!AD8 -> 4926414 | G8: =+'[1]a1_1 ind'!AE8 -> 16639700
A9: =+'[1]a1_1 ind'!Y9 -> 2011* | B9: =+'[1]a1_1 ind'!Z9 -> 818750 | C9: =+'[1]a1_1 ind'!AA9 -> 8171870 | D9: =+'[1]a1_1 ind'!AB9 -> 1936524 | E9: =+'[1]a1_1 ind'!AC9 -> 1989817 | F9: =+'[1]a1_1 ind'!AD9 -> 6130932 | G9: =+'[1]a1_1 ind'!AE9 -> 19047893
C11: =+C4/G4*100 -> 45.93078664 | G11: Asistencia a cine en las principales ciudades
C12: =+C5/G5*100 -> 44.49598261 | G12: 2007 - 2011*
C13: 46.05234618
C14: 44.29468041
C15: 45.60660949
C16: 42.90170047
B21: Barranquilla | C21: Cali | D21: Medellín | E21: Resto | F21: Bogotá | G21: Total
A22: 2007 | B22: 929241 | C22: 2165068 | D22: 2748120 | E22: 5333114 | F22: 9493415 | G22: 20668958
A23: 2008 | B23: 1128151 | C23: 2129496 | D23: 2836603 | E23: 5874013 | F23: 9594614 | G23: 21562877
A24: 2009 | B24: 1256435 | C24: 2325329 | D24: 3156460 | E24: 7864157 | F24: 12465304 | G24: 27067685
A25: 2010 | B25: 1472241 | C25: 3338962 | D25: 3594476 | E25: 10341997 | F25: 14907415 | G25: 33655091
A26: 2010* | B26: 711428 | C26: 1586129 | D26: 1826926 | E26: 4926414 | F26: 7588803 | G26: 16639700
A27: 2011* | B27: 818750 | C27: 1936524 | D27: 1989817 | E27: 6130932 | F27: 8171870 | G27: 19047893
I57: Espectadores 2011*

Sheet Evo. prom boleta en Col.
B1: =+[1]a2_ind!AH1 -> Precio promedio | H1: =+[1]a2_ind!AN1 -> Precio real boleta | L1: Gráfico 8
B2: =+[1]a2_ind!AH2 -> COP$ | C2: =+[1]a2_ind!AI2 -> USD$ | H2: =+[1]a2_ind!AN2 -> COP$ (Base junio 2011) | L2: Evolución real del precio promedio de la boleta en Colombia | U2: Precio real en pesos
A3: =+[1]a2_ind!AG3 -> 1990 | B3: =+[1]a2_ind!AH3 -> 423.1439394 | C3: =+[1]a2_ind!AI3 -> 0.8424798698 | G3: =+[1]a2_ind!AM3 -> 1990 | H3: =+[1]a2_ind!AN3 -> 4682.792929 | L3: 1996 - 2011*
A4: =+[1]a2_ind!AG4 -> 1991 | B4: =+[1]a2_ind!AH4 -> 574.4444444 | C4: =+[1]a2_ind!AI4 -> 0.9159565567 | G4: =+[1]a2_ind!AM4 -> 1991 | H4: =+[1]a2_ind!AN4 -> 4849.965223
A5: =+[1]a2_ind!AG5 -> 1992 | B5: =+[1]a2_ind!AH5 -> 772.4064171 | C5: =+[1]a2_ind!AI5 -> 1.135247648 | G5: =+[1]a2_ind!AM5 -> 1992 | H5: =+[1]a2_ind!AN5 -> 5091.182187
A6: =+[1]a2_ind!AG6 -> 1993 | B6: =+[1]a2_ind!AH6 -> 1140.738636 | C6: =+[1]a2_ind!AI6 -> 1.450681595 | G6: =+[1]a2_ind!AM6 -> 1993 | H6: =+[1]a2_ind!AN6 -> 6194.549515
A7: =+[1]a2_ind!AG7 -> 1994 | B7: =+[1]a2_ind!AH7 -> 1621.942857 | C7: =+[1]a2_ind!AI7 -> 1.962328329 | G7: =+[1]a2_ind!AM7 -> 1994 | H7: =+[1]a2_ind!AN7 -> 7154.850134
A8: =+[1]a2_ind!AG8 -> 1995 | B8: =+[1]a2_ind!AH8 -> 1918.285714 | C8: =+[1]a2_ind!AI8 -> 2.101321307 | G8: =+[1]a2_ind!AM8 -> 1995 | H8: =+[1]a2_ind!AN8 -> 6955.074885
A9: =+[1]a2_ind!AG9 -> 1996 | B9: =+[1]a2_ind!AH9 -> 2326.537396 | C9: =+[1]a2_ind!AI9 -> 2.244343911 | G9: =+[1]a2_ind!AM9 -> 1996 | H9: =+[1]a2_ind!AN9 -> 7047.540288
A10: =+[1]a2_ind!AG10 -> 1997 | B10: =+[1]a2_ind!AH10 -> 3007.843137 | C10: =+[1]a2_ind!AI10 -> 2.635876966 | G10: =+[1]a2_ind!AM10 -> 1997 | H10: =+[1]a2_ind!AN10 -> 7676.118129
A11: =+[1]a2_ind!AG11 -> 1998 | B11: =+[1]a2_ind!AH11 -> 3400.108992 | C11: =+[1]a2_ind!AI11 -> 2.383659133 | G11: =+[1]a2_ind!AM11 -> 1998 | H11: =+[1]a2_ind!AN11 -> 7189.334905
A12: =+[1]a2_ind!AG12 -> 1999 | B12: =+[1]a2_ind!AH12 -> 3913.445904 | C12: =+[1]a2_ind!AI12 -> 2.22774376 | G12: =+[1]a2_ind!AM12 -> 1999 | H12: =+[1]a2_ind!AN12 -> 7594.618939
A13: =+[1]a2_ind!AG13 -> 2000 | B13: =+[1]a2_ind!AH13 -> 4404.94186 | C13: =+[1]a2_ind!AI13 -> 2.109729001 | G13: =+[1]a2_ind!AM13 -> 2000 | H13: =+[1]a2_ind!AN13 -> 7794.247733
A14: =+[1]a2_ind!AG14 -> 2001 | B14: =+[1]a2_ind!AH14 -> 5181.256321 | C14: =+[1]a2_ind!AI14 -> 2.252824618 | G14: =+[1]a2_ind!AM14 -> 2001 | H14: =+[1]a2_ind!AN14 -> 8493.733774
A15: =+[1]a2_ind!AG15 -> 2002 | B15: =+[1]a2_ind!AH15 -> 6059.133649 | C15: =+[1]a2_ind!AI15 -> 2.419124053 | G15: =+[1]a2_ind!AM15 -> 2002 | H15: =+[1]a2_ind!AN15 -> 9349.070795
A16: =+[1]a2_ind!AG16 -> 2003 | B16: =+[1]a2_ind!AH16 -> 6682.839752 | C16: =+[1]a2_ind!AI16 -> 2.322411508 | G16: =+[1]a2_ind!AM16 -> 2003 | H16: =+[1]a2_ind!AN16 -> 9618.22608
A17: =+[1]a2_ind!AG17 -> 2004 | B17: =+[1]a2_ind!AH17 -> 7456.663941 | C17: =+[1]a2_ind!AI17 -> 2.836993524 | G17: =+[1]a2_ind!AM17 -> 2004 | H17: =+[1]a2_ind!AN17 -> 10117.88279
A18: =+[1]a2_ind!AG18 -> 2005 | B18: =+[1]a2_ind!AH18 -> 7596.925972 | C18: =+[1]a2_ind!AI18 -> 3.272940558 | G18: =+[1]a2_ind!AM18 -> 2005 | H18: =+[1]a2_ind!AN18 -> 9833.353076
A19: =+[1]a2_ind!AG19 -> 2006 | B19: =+[1]a2_ind!AH19 -> 6847.437459 | C19: =+[1]a2_ind!AI19 -> 2.90318493 | G19: =+[1]a2_ind!AM19 -> 2006 | H19: =+[1]a2_ind!AN19 -> 8527.683539
A20: =+[1]a2_ind!AG20 -> 2007 | B20: =+[1]a2_ind!AH20 -> 7194.167479 | C20: =+[1]a2_ind!AI20 -> 3.462378463 | G20: =+[1]a2_ind!AM20 -> 2007 | H20: =+[1]a2_ind!AN20 -> 8449.446729
A21: =+[1]a2_ind!AG21 -> 2008 | B21: =+[1]a2_ind!AH21 -> 7418.758706 | C21: =+[1]a2_ind!AI21 -> 3.775185556 | G21: =+[1]a2_ind!AM21 -> 2008 | H21: =+[1]a2_ind!AN21 -> 8129.217674
A22: =+[1]a2_ind!AG22 -> 2009 | B22: =+[1]a2_ind!AH22 -> 7317.899365 | C22: =+[1]a2_ind!AI22 -> 3.391687532 | G22: =+[1]a2_ind!AM22 -> 2009 | H22: =+[1]a2_ind!AN22 -> 7724.528874
A23: =+[1]a2_ind!AG23 -> 2010 | B23: =+[1]a2_ind!AH23 -> 7668.533975 | C23: =+[1]a2_ind!AI23 -> 4.038201195 | G23: =+[1]a2_ind!AM23 -> 2010 | H23: =+[1]a2_ind!AN23 -> 7916.521392
A24: =+[1]a2_ind!AG24 -> 2011* | B24: =+[1]a2_ind!AH24 -> 7805.95326 | C24: =+[1]a2_ind!AI24 -> 4.245984989 | G24: =+[1]a2_ind!AM24 -> 2011* | H24: =+[1]a2_ind!AN24 -> 7805.95326
H26: =+H17/H3 -> 2.160651334
H27: =+H24*100/H17-100 -> -22.84993389
H29: =+H17-H24 -> 2311.929528
H40: =+H17/H9 -> 1.435661575

Sheet Evo. prom boleta por Ciudad
A1: =+[1]a2_1ind!AC3 -> PRECIO PESOS TERMINOS REALES
A2: =+[1]a2_1ind!AC4 -> Fecha | B2: =+[1]a2_1ind!AD4 -> BARRANQUILLA | C2: =+[1]a2_1ind!AE4 -> BOGOTA | D2: =+[1]a2_1ind!AF4 -> CALI | E2: =+[1]a2_1ind!AG4 -> MEDELLIN | F2: =+[1]a2_1ind!AH4 -> RESTO | G2: =+[1]a2_1ind!AI4 -> NACIONAL
B3: =+PROPER((B2)) -> Barranquilla | C3: =+PROPER((C2)) -> Bogota | D3: Cali | E3: Medellin | F3: Resto | G3: Nacional
A4: =+[1]a2_1ind!AC5 -> 2006-09-01 | B4: =+[1]a2_1ind!AD5 -> 8303.711713 | C4: =+[1]a2_1ind!AE5 -> 8862.967401 | D4: =+[1]a2_1ind!AF5 -> 9240.453561 | E4: =+[1]a2_1ind!AG5 -> 8464.794388 | F4: =+[1]a2_1ind!AH5 -> 7198.830329 | G4: =+[1]a2_1ind!AI5 -> 8407.610785
A5: =+[1]a2_1ind!AC6 -> 2006-10-01 | B5: =+[1]a2_1ind!AD6 -> 6265.231973 | C5: =+[1]a2_1ind!AE6 -> 6726.142735 | D5: =+[1]a2_1ind!AF6 -> 6774.263203 | E5: =+[1]a2_1ind!AG6 -> 6510.476168 | F5: =+[1]a2_1ind!AH6 -> 5999.365915 | G5: =+[1]a2_1ind!AI6 -> 6506.488838
A6: =+[1]a2_1ind!AC7 -> 2006-11-01 | B6: =+[1]a2_1ind!AD7 -> 8302.629116 | C6: =+[1]a2_1ind!AE7 -> 8997.132068 | D6: =+[1]a2_1ind!AF7 -> 9313.823017 | E6: =+[1]a2_1ind!AG7 -> 8616.56942 | F6: =+[1]a2_1ind!AH7 -> 7463.773256 | G6: =+[1]a2_1ind!AI7 -> 8605.79919
A7: =+[1]a2_1ind!AC8 -> 2006-12-01 | B7: =+[1]a2_1ind!AD8 -> 8126.887931 | C7: =+[1]a2_1ind!AE8 -> 8825.502859 | D7: =+[1]a2_1ind!AF8 -> 9340.322018 | E7: =+[1]a2_1ind!AG8 -> 8375.540283 | F7: =+[1]a2_1ind!AH8 -> 7437.434133 | G7: =+[1]a2_1ind!AI8 -> 8418.47205
A8: =+[1]a2_1ind!AC9 -> 2007-01-01 | B8: =+[1]a2_1ind!AD9 -> 8457.4039 | C8: =+[1]a2_1ind!AE9 -> 9135.775433 | D8: =+[1]a2_1ind!AF9 -> 9824.877225 | E8: =+[1]a2_1ind!AG9 -> 8622.137198 | F8: =+[1]a2_1ind!AH9 -> 8027.318661 | G8: =+[1]a2_1ind!AI9 -> 8834.722176
A9: =+[1]a2_1ind!AC10 -> 2007-02-01 | B9: =+[1]a2_1ind!AD10 -> 8817.764015 | C9: =+[1]a2_1ind!AE10 -> 9509.748144 | D9: =+[1]a2_1ind!AF10 -> 9768.953217 | E9: =+[1]a2_1ind!AG10 -> 8842.050857 | F9: =+[1]a2_1ind!AH10 -> 7904.921189 | G9: =+[1]a2_1ind!AI10 -> 9070.590282
A10: =+[1]a2_1ind!AC11 -> 2007-03-01 | B10: =+[1]a2_1ind!AD11 -> 8906.045381 | C10: =+[1]a2_1ind!AE11 -> 9363.828465 | D10: =+[1]a2_1ind!AF11 -> 9665.098367 | E10: =+[1]a2_1ind!AG11 -> 8740.536523 | F10: =+[1]a2_1ind!AH11 -> 7946.637931 | G10: =+[1]a2_1ind!AI11 -> 8979.128686
A11: =+[1]a2_1ind!AC12 -> 2007-04-01 | B11: =+[1]a2_1ind!AD12 -> 8373.344579 | C11: =+[1]a2_1ind!AE12 -> 8705.601508 | D11: =+[1]a2_1ind!AF12 -> 9207.384096 | E11: =+[1]a2_1ind!AG12 -> 8389.440134 | F11: =+[1]a2_1ind!AH12 -> 7645.825962 | G11: =+[1]a2_1ind!AI12 -> 8446.25802
A12: =+[1]a2_1ind!AC13 -> 2007-05-01 | B12: =+[1]a2_1ind!AD13 -> 8556.039207 | C12: =+[1]a2_1ind!AE13 -> 8857.577952 | D12: =+[1]a2_1ind!AF13 -> 9328.572085 | E12: =+[1]a2_1ind!AG13 -> 8483.790102 | F12: =+[1]a2_1ind!AH13 -> 7592.315931 | G12: =+[1]a2_1ind!AI13 -> 8489.586999
A13: =+[1]a2_1ind!AC14 -> 2007-06-01 | B13: =+[1]a2_1ind!AD14 -> 8317.236754 | C13: =+[1]a2_1ind!AE14 -> 8753.636749 | D13: =+[1]a2_1ind!AF14 -> 9200.343299 | E13: =+[1]a2_1ind!AG14 -> 8351.695806 | F13: =+[1]a2_1ind!AH14 -> 7659.874953 | G13: =+[1]a2_1ind!AI14 -> 8453.093178
A14: =+[1]a2_1ind!AC15 -> 2007-07-01 | B14: =+[1]a2_1ind!AD15 -> 8195.015414 | C14: =+[1]a2_1ind!AE15 -> 8705.028691 | D14: =+[1]a2_1ind!AF15 -> 9060.78346 | E14: =+[1]a2_1ind!AG15 -> 8331.277198 | F14: =+[1]a2_1ind!AH15 -> 7525.990516 | G14: =+[1]a2_1ind!AI15 -> 8362.958599
A15: =+[1]a2_1ind!AC16 -> 2007-08-01 | B15: =+[1]a2_1ind!AD16 -> 8345.365185 | C15: =+[1]a2_1ind!AE16 -> 8988.408566 | D15: =+[1]a2_1ind!AF16 -> 9023.525425 | E15: =+[1]a2_1ind!AG16 -> 8482.204106 | F15: =+[1]a2_1ind!AH16 -> 7663.95489 | G15: =+[1]a2_1ind!AI16 -> 8533.984989
A16: =+[1]a2_1ind!AC17 -> 2007-09-01 | B16: =+[1]a2_1ind!AD17 -> 8329.782738 | C16: =+[1]a2_1ind!AE17 -> 8863.702858 | D16: =+[1]a2_1ind!AF17 -> 8824.783206 | E16: =+[1]a2_1ind!AG17 -> 8436.974265 | F16: =+[1]a2_1ind!AH17 -> 7613.558662 | G16: =+[1]a2_1ind!AI17 -> 8457.849028
A17: =+[1]a2_1ind!AC18 -> 2007-10-01 | B17: =+[1]a2_1ind!AD18 -> 6906.943933 | C17: =+[1]a2_1ind!AE18 -> 7196.725876 | D17: =+[1]a2_1ind!AF18 -> 7054.217393 | E17: =+[1]a2_1ind!AG18 -> 7060.35777 | F17: =+[1]a2_1ind!AH18 -> 6370.084723 | G17: =+[1]a2_1ind!AI18 -> 6946.81903
A18: =+[1]a2_1ind!AC19 -> 2007-11-01 | B18: =+[1]a2_1ind!AD19 -> 8384.973624 | C18: =+[1]a2_1ind!AE19 -> 9081.476385 | D18: =+[1]a2_1ind!AF19 -> 8819.631826 | E18: =+[1]a2_1ind!AG19 -> 8824.997607 | F18: =+[1]a2_1ind!AH19 -> 7887.399497 | G18: =+[1]a2_1ind!AI19 -> 8668.521312
A19: =+[1]a2_1ind!AC20 -> 2007-12-01 | B19: =+[1]a2_1ind!AD20 -> 8152.140632 | C19: =+[1]a2_1ind!AE20 -> 8924.59559 | D19: =+[1]a2_1ind!AF20 -> 9072.47304 | E19: =+[1]a2_1ind!AG20 -> 8513.80414 | F19: =+[1]a2_1ind!AH20 -> 7846.645902 | G19: =+[1]a2_1ind!AI20 -> 8524.150888
A20: =+[1]a2_1ind!AC21 -> 2008-01-01 | B20: =+[1]a2_1ind!AD21 -> 7772.927963 | C20: =+[1]a2_1ind!AE21 -> 9058.335129 | D20: =+[1]a2_1ind!AF21 -> 9486.158282 | E20: =+[1]a2_1ind!AG21 -> 8323.688493 | F20: =+[1]a2_1ind!AH21 -> 7924.056297 | G20: =+[1]a2_1ind!AI21 -> 8629.446979
A21: =+[1]a2_1ind!AC22 -> 2008-02-01 | B21: =+[1]a2_1ind!AD22 -> 7587.84859 | C21: =+[1]a2_1ind!AE22 -> 9134.813423 | D21: =+[1]a2_1ind!AF22 -> 9326.529683 | E21: =+[1]a2_1ind!AG22 -> 8206.181362 | F21: =+[1]a2_1ind!AH22 -> 7657.648374 | G21: =+[1]a2_1ind!AI22 -> 8574.629287
A22: =+[1]a2_1ind!AC23 -> 2008-03-01 | B22: =+[1]a2_1ind!AD23 -> 7538.552498 | C22: =+[1]a2_1ind!AE23 -> 8944.397426 | D22: =+[1]a2_1ind!AF23 -> 9168.953419 | E22: =+[1]a2_1ind!AG23 -> 8310.85121 | F22: =+[1]a2_1ind!AH23 -> 7814.475729 | G22: =+[1]a2_1ind!AI23 -> 8515.631194
A23: =+[1]a2_1ind!AC24 -> 2008-04-01 | B23: =+[1]a2_1ind!AD24 -> 7271.868688 | C23: =+[1]a2_1ind!AE24 -> 8505.960774 | D23: =+[1]a2_1ind!AF24 -> 8830.716981 | E23: =+[1]a2_1ind!AG24 -> 8110.830361 | F23: =+[1]a2_1ind!AH24 -> 7481.026295 | G23: =+[1]a2_1ind!AI24 -> 8179.435336
A24: =+[1]a2_1ind!AC25 -> 2008-05-01 | B24: =+[1]a2_1ind!AD25 -> 7530.577392 | C24: =+[1]a2_1ind!AE25 -> 8937.220427 | D24: =+[1]a2_1ind!AF25 -> 9097.531466 | E24: =+[1]a2_1ind!AG25 -> 8268.032005 | F24: =+[1]a2_1ind!AH25 -> 7810.435897 | G24: =+[1]a2_1ind!AI25 -> 8496.901677
A25: =+[1]a2_1ind!AC26 -> 2008-06-01 | B25: =+[1]a2_1ind!AD26 -> 7347.337638 | C25: =+[1]a2_1ind!AE26 -> 8487.545855 | D25: =+[1]a2_1ind!AF26 -> 8834.041352 | E25: =+[1]a2_1ind!AG26 -> 7914.597687 | F25: =+[1]a2_1ind!AH26 -> 7523.588445 | G25: =+[1]a2_1ind!AI26 -> 8122.575206
A26: =+[1]a2_1ind!AC27 -> 2008-07-01 | B26: =+[1]a2_1ind!AD27 -> 7300.775176 | C26: =+[1]a2_1ind!AE27 -> 8260.240752 | D26: =+[1]a2_1ind!AF27 -> 8474.99867 | E26: =+[1]a2_1ind!AG27 -> 7838.803148 | F26: =+[1]a2_1ind!AH27 -> 7212.334783 | G26: =+[1]a2_1ind!AI27 -> 7881.553294
A27: =+[1]a2_1ind!AC28 -> 2008-08-01 | B27: =+[1]a2_1ind!AD28 -> 7453.872449 | C27: =+[1]a2_1ind!AE28 -> 8401.75362 | D27: =+[1]a2_1ind!AF28 -> 8783.66275 | E27: =+[1]a2_1ind!AG28 -> 7929.830802 | F27: =+[1]a2_1ind!AH28 -> 7398.745517 | G27: =+[1]a2_1ind!AI28 -> 8052.920399
A28: =+[1]a2_1ind!AC29 -> 2008-09-01 | B28: =+[1]a2_1ind!AD29 -> 7406.383121 | C28: =+[1]a2_1ind!AE29 -> 8429.031474 | D28: =+[1]a2_1ind!AF29 -> 8859.597628 | E28: =+[1]a2_1ind!AG29 -> 7819.360145 | F28: =+[1]a2_1ind!AH29 -> 7305.817123 | G28: =+[1]a2_1ind!AI29 -> 8029.110578 | J28: Evolución real del precio promedio de la boleta por ciudad
A29: =+[1]a2_1ind!AC30 -> 2008-10-01 | B29: =+[1]a2_1ind!AD30 -> 7251.115218 | C29: =+[1]a2_1ind!AE30 -> 8398.82836 | D29: =+[1]a2_1ind!AF30 -> 8669.433986 | E29: =+[1]a2_1ind!AG30 -> 7356.007939 | F29: =+[1]a2_1ind!AH30 -> 6672.851579 | G29: =+[1]a2_1ind!AI30 -> 7729.948128
A30: =+[1]a2_1ind!AC31 -> 2008-11-01 | B30: =+[1]a2_1ind!AD31 -> 7536.902139 | C30: =+[1]a2_1ind!AE31 -> 8267.277451 | D30: =+[1]a2_1ind!AF31 -> 8871.881436 | E30: =+[1]a2_1ind!AG31 -> 7734.368344 | F30: =+[1]a2_1ind!AH31 -> 7237.370043 | G30: =+[1]a2_1ind!AI31 -> 7935.58273
A31: =+[1]a2_1ind!AC32 -> 2008-12-01 | B31: =+[1]a2_1ind!AD32 -> 7612.776487 | C31: =+[1]a2_1ind!AE32 -> 8502.975608 | D31: =+[1]a2_1ind!AF32 -> 9182.007548 | E31: =+[1]a2_1ind!AG32 -> 8143.7908 | F31: =+[1]a2_1ind!AH32 -> 7387.162076 | G31: =+[1]a2_1ind!AI32 -> 8125.266155
A32: =+[1]a2_1ind!AC33 -> 2009-01-01 | B32: =+[1]a2_1ind!AD33 -> 7860.326772 | C32: =+[1]a2_1ind!AE33 -> 9072.314821 | D32: =+[1]a2_1ind!AF33 -> 9858.939334 | E32: =+[1]a2_1ind!AG33 -> 8461.179787 | F32: =+[1]a2_1ind!AH33 -> 7492.863413 | G32: =+[1]a2_1ind!AI33 -> 8560.205969
A33: =+[1]a2_1ind!AC34 -> 2009-02-01 | B33: =+[1]a2_1ind!AD34 -> 7792.177116 | C33: =+[1]a2_1ind!AE34 -> 8921.719191 | D33: =+[1]a2_1ind!AF34 -> 9614.798717 | E33: =+[1]a2_1ind!AG34 -> 8227.302357 | F33: =+[1]a2_1ind!AH34 -> 7225.748613 | G33: =+[1]a2_1ind!AI34 -> 8406.084178
A34: =+[1]a2_1ind!AC35 -> 2009-03-01 | B34: =+[1]a2_1ind!AD35 -> 7811.706176 | C34: =+[1]a2_1ind!AE35 -> 8450.946877 | D34: =+[1]a2_1ind!AF35 -> 9542.376999 | E34: =+[1]a2_1ind!AG35 -> 8049.417296 | F34: =+[1]a2_1ind!AH35 -> 7145.171205 | G34: =+[1]a2_1ind!AI35 -> 8137.271472
A35: =+[1]a2_1ind!AC36 -> 2009-04-01 | B35: =+[1]a2_1ind!AD36 -> 6715.591354 | C35: =+[1]a2_1ind!AE36 -> 8313.770497 | D35: =+[1]a2_1ind!AF36 -> 9070.441052 | E35: =+[1]a2_1ind!AG36 -> 7866.127149 | F35: =+[1]a2_1ind!AH36 -> 6960.950742 | G35: =+[1]a2_1ind!AI36 -> 7861.827633
A36: =+[1]a2_1ind!AC37 -> 2009-05-01 | B36: =+[1]a2_1ind!AD37 -> 7346.170675 | C36: =+[1]a2_1ind!AE37 -> 8123.123209 | D36: =+[1]a2_1ind!AF37 -> 9091.076178 | E36: =+[1]a2_1ind!AG37 -> 7814.842325 | F36: =+[1]a2_1ind!AH37 -> 6837.337641 | G36: =+[1]a2_1ind!AI37 -> 7760.487224
A37: =+[1]a2_1ind!AC38 -> 2009-06-01 | B37: =+[1]a2_1ind!AD38 -> 7527.883599 | C37: =+[1]a2_1ind!AE38 -> 8375.031246 | D37: =+[1]a2_1ind!AF38 -> 9549.223633 | E37: =+[1]a2_1ind!AG38 -> 8376.622919 | F37: =+[1]a2_1ind!AH38 -> 6910.613804 | G37: =+[1]a2_1ind!AI38 -> 8005.73182
A38: =+[1]a2_1ind!AC39 -> 2009-07-01 | B38: =+[1]a2_1ind!AD39 -> 7507.943153 | C38: =+[1]a2_1ind!AE39 -> 8207.771953 | D38: =+[1]a2_1ind!AF39 -> 9257.92278 | E38: =+[1]a2_1ind!AG39 -> 8662.952153 | F38: =+[1]a2_1ind!AH39 -> 6811.686505 | G38: =+[1]a2_1ind!AI39 -> 7910.013505
A39: =+[1]a2_1ind!AC40 -> 2009-08-01 | B39: =+[1]a2_1ind!AD40 -> 7708.76131 | C39: =+[1]a2_1ind!AE40 -> 8215.691885 | D39: =+[1]a2_1ind!AF40 -> 9418.529388 | E39: =+[1]a2_1ind!AG40 -> 8578.104137 | F39: =+[1]a2_1ind!AH40 -> 6862.085054 | G39: =+[1]a2_1ind!AI40 -> 7968.59018
A40: =+[1]a2_1ind!AC41 -> 2009-09-01 | B40: =+[1]a2_1ind!AD41 -> 7352.490033 | C40: =+[1]a2_1ind!AE41 -> 7759.873645 | D40: =+[1]a2_1ind!AF41 -> 9191.913396 | E40: =+[1]a2_1ind!AG41 -> 8258.615949 | F40: =+[1]a2_1ind!AH41 -> 6367.196193 | G40: =+[1]a2_1ind!AI41 -> 7517.77214
A41: =+[1]a2_1ind!AC42 -> 2009-10-01 | B41: =+[1]a2_1ind!AD42 -> 7602.831992 | C41: =+[1]a2_1ind!AE42 -> 7463.628193 | D41: =+[1]a2_1ind!AF42 -> 9454.063216 | E41: =+[1]a2_1ind!AG42 -> 8283.16469 | F41: =+[1]a2_1ind!AH42 -> 5916.337232 | G41: =+[1]a2_1ind!AI42 -> 7237.633032
A42: =+[1]a2_1ind!AC43 -> 2009-11-01 | B42: =+[1]a2_1ind!AD43 -> 7255.112671 | C42: =+[1]a2_1ind!AE43 -> 6817.65899 | D42: =+[1]a2_1ind!AF43 -> 9009.178881 | E42: =+[1]a2_1ind!AG43 -> 7960.676007 | F42: =+[1]a2_1ind!AH43 -> 5572.323373 | G42: =+[1]a2_1ind!AI43 -> 6739.395729
A43: =+[1]a2_1ind!AC44 -> 2009-12-01 | B43: =+[1]a2_1ind!AD44 -> 7966.219458 | C43: =+[1]a2_1ind!AE44 -> 7484.968314 | D43: =+[1]a2_1ind!AF44 -> 9037.575809 | E43: =+[1]a2_1ind!AG44 -> 8668.244168 | F43: =+[1]a2_1ind!AH44 -> 5857.660928 | G43: =+[1]a2_1ind!AI44 -> 7223.832615
A44: =+[1]a2_1ind!AC45 -> 2010-01-01 | B44: =+[1]a2_1ind!AD45 -> 8341.923269 | C44: =+[1]a2_1ind!AE45 -> 8050.686951 | D44: =+[1]a2_1ind!AF45 -> 9024.636333 | E44: =+[1]a2_1ind!AG45 -> 9275.827457 | F44: =+[1]a2_1ind!AH45 -> 6332.279503 | G44: =+[1]a2_1ind!AI45 -> 7791.617828
A45: =+[1]a2_1ind!AC46 -> 2010-02-01 | B45: =+[1]a2_1ind!AD46 -> 8223.794965 | C45: =+[1]a2_1ind!AE46 -> 8226.964757 | D45: =+[1]a2_1ind!AF46 -> 8533.291979 | E45: =+[1]a2_1ind!AG46 -> 9419.843295 | F45: =+[1]a2_1ind!AH46 -> 6197.915086 | G45: =+[1]a2_1ind!AI46 -> 7835.506071
A46: =+[1]a2_1ind!AC47 -> 2010-03-01 | B46: =+[1]a2_1ind!AD47 -> 8653.775578 | C46: =+[1]a2_1ind!AE47 -> 8580.689759 | D46: =+[1]a2_1ind!AF47 -> 9147.475351 | E46: =+[1]a2_1ind!AG47 -> 9396.637468 | F46: =+[1]a2_1ind!AH47 -> 6324.79885 | G46: =+[1]a2_1ind!AI47 -> 8099.790957
A47: =+[1]a2_1ind!AC48 -> 2010-04-01 | B47: =+[1]a2_1ind!AD48 -> 8175.096938 | C47: =+[1]a2_1ind!AE48 -> 8661.604744 | D47: =+[1]a2_1ind!AF48 -> 8871.612632 | E47: =+[1]a2_1ind!AG48 -> 9217.659539 | F47: =+[1]a2_1ind!AH48 -> 6258.8535 | G47: =+[1]a2_1ind!AI48 -> 7992.140584
A48: =+[1]a2_1ind!AC49 -> 2010-05-01 | B48: =+[1]a2_1ind!AD49 -> 7328.274974 | C48: =+[1]a2_1ind!AE49 -> 8086.22459 | D48: =+[1]a2_1ind!AF49 -> 7934.084166 | E48: =+[1]a2_1ind!AG49 -> 8554.573188 | F48: =+[1]a2_1ind!AH49 -> 6218.181505 | G48: =+[1]a2_1ind!AI49 -> 7503.216957
A49: =+[1]a2_1ind!AC50 -> 2010-06-01 | B49: =+[1]a2_1ind!AD50 -> 7955.777457 | C49: =+[1]a2_1ind!AE50 -> 8466.671446 | D49: =+[1]a2_1ind!AF50 -> 8139.809265 | E49: =+[1]a2_1ind!AG50 -> 8703.125629 | F49: =+[1]a2_1ind!AH50 -> 6381.889607 | G49: =+[1]a2_1ind!AI50 -> 7798.461409
A50: =+[1]a2_1ind!AC51 -> 2010-07-01 | B50: =+[1]a2_1ind!AD51 -> 7972.317223 | C50: =+[1]a2_1ind!AE51 -> 8783.996261 | D50: =+[1]a2_1ind!AF51 -> 8099.409399 | E50: =+[1]a2_1ind!AG51 -> 9126.426582 | F50: =+[1]a2_1ind!AH51 -> 6898.107663 | G50: =+[1]a2_1ind!AI51 -> 8114.49164
A51: =+[1]a2_1ind!AC52 -> 2010-08-01 | B51: =+[1]a2_1ind!AD52 -> 7936.906918 | C51: =+[1]a2_1ind!AE52 -> 8619.537538 | D51: =+[1]a2_1ind!AF52 -> 7895.472508 | E51: =+[1]a2_1ind!AG52 -> 8850.429067 | F51: =+[1]a2_1ind!AH52 -> 6850.865678 | G51: =+[1]a2_1ind!AI52 -> 7970.808045
A52: =+[1]a2_1ind!AC53 -> 2010-09-01 | B52: =+[1]a2_1ind!AD53 -> 8139.914025 | C52: =+[1]a2_1ind!AE53 -> 8722.18244 | D52: =+[1]a2_1ind!AF53 -> 7918.905116 | E52: =+[1]a2_1ind!AG53 -> 9074.711867 | F52: =+[1]a2_1ind!AH53 -> 6943.06505 | G52: =+[1]a2_1ind!AI53 -> 8064.321105
A53: =+[1]a2_1ind!AC54 -> 2010-10-01 | B53: =+[1]a2_1ind!AD54 -> 8027.784499 | C53: =+[1]a2_1ind!AE54 -> 8711.036195 | D53: =+[1]a2_1ind!AF54 -> 8024.896554 | E53: =+[1]a2_1ind!AG54 -> 8952.697286 | F53: =+[1]a2_1ind!AH54 -> 7075.100649 | G53: =+[1]a2_1ind!AI54 -> 8154.767474
A54: =+[1]a2_1ind!AC55 -> 2010-11-01 | B54: =+[1]a2_1ind!AD55 -> 7867.801494 | C54: =+[1]a2_1ind!AE55 -> 8447.162325 | D54: =+[1]a2_1ind!AF55 -> 7906.061846 | E54: =+[1]a2_1ind!AG55 -> 8655.955683 | F54: =+[1]a2_1ind!AH55 -> 6811.808074 | G54: =+[1]a2_1ind!AI55 -> 7877.64668
A55: =+[1]a2_1ind!AC56 -> 2010-12-01 | B55: =+[1]a2_1ind!AD56 -> 8234.138586 | C55: =+[1]a2_1ind!AE56 -> 8532.354115 | D55: =+[1]a2_1ind!AF56 -> 8087.51361 | E55: =+[1]a2_1ind!AG56 -> 8824.582747 | F55: =+[1]a2_1ind!AH56 -> 7168.502108 | G55: =+[1]a2_1ind!AI56 -> 8043.045978
A56: =+[1]a2_1ind!AC57 -> 2011-01-01 | B56: =+[1]a2_1ind!AD57 -> 8148.0204 | C56: =+[1]a2_1ind!AE57 -> 8302.218957 | D56: =+[1]a2_1ind!AF57 -> 8045.388217 | E56: =+[1]a2_1ind!AG57 -> 8544.222616 | F56: =+[1]a2_1ind!AH57 -> 7497.333567 | G56: =+[1]a2_1ind!AI57 -> 8024.075146
A57: =+[1]a2_1ind!AC58 -> 2011-02-01 | B57: =+[1]a2_1ind!AD58 -> 7933.505954 | C57: =+[1]a2_1ind!AE58 -> 8317.617096 | D57: =+[1]a2_1ind!AF58 -> 7931.219711 | E57: =+[1]a2_1ind!AG58 -> 8540.614378 | F57: =+[1]a2_1ind!AH58 -> 7345.227332 | G57: =+[1]a2_1ind!AI58 -> 7988.258224
A58: =+[1]a2_1ind!AC59 -> 2011-03-01 | B58: =+[1]a2_1ind!AD59 -> 7630.462799 | C58: =+[1]a2_1ind!AE59 -> 7795.985138 | D58: =+[1]a2_1ind!AF59 -> 7360.769124 | E58: =+[1]a2_1ind!AG59 -> 7932.450569 | F58: =+[1]a2_1ind!AH59 -> 6753.310296 | G58: =+[1]a2_1ind!AI59 -> 7437.718007
A59: =+[1]a2_1ind!AC60 -> 2011-04-01 | B59: =+[1]a2_1ind!AD60 -> 7951.65267 | C59: =+[1]a2_1ind!AE60 -> 8090.026401 | D59: =+[1]a2_1ind!AF60 -> 7938.6867 | E59: =+[1]a2_1ind!AG60 -> 8633.308987 | F59: =+[1]a2_1ind!AH60 -> 7396.584551 | G59: =+[1]a2_1ind!AI60 -> 7900.791584
A60: =+[1]a2_1ind!AC61 -> 2011-05-01 | B60: =+[1]a2_1ind!AD61 -> 7863.217257 | C60: =+[1]a2_1ind!AE61 -> 8327.386778 | D60: =+[1]a2_1ind!AF61 -> 7893.67188 | E60: =+[1]a2_1ind!AG61 -> 8675.019189 | F60: =+[1]a2_1ind!AH61 -> 7268.454523 | G60: =+[1]a2_1ind!AI61 -> 7948.035082
A61: =+[1]a2_1ind!AC62 -> 2011-06-01 | B61: =+[1]a2_1ind!AD62 -> 7888.74389 | C61: =+[1]a2_1ind!AE62 -> 8071.297201 | D61: =+[1]a2_1ind!AF62 -> 7599.628179 | E61: =+[1]a2_1ind!AG62 -> 8593.778037 | F61: =+[1]a2_1ind!AH62 -> 7218.259616 | G61: =+[1]a2_1ind!AI62 -> 7801.038817
A62: =+[1]a2_1ind!AC63 -> 2011-07-01 | B62: =+[1]a2_1ind!AD63 -> 0 | C62: =+[1]a2_1ind!AE63 -> 0 | D62: =+[1]a2_1ind!AF63 -> 0 | E62: =+[1]a2_1ind!AG63 -> 0 | F62: =+[1]a2_1ind!AH63 -> 0 | G62: =+[1]a2_1ind!AI63 -> 0
A63: =+[1]a2_1ind!AC64 -> 2011-08-01 | B63: =+[1]a2_1ind!AD64 -> 0 | C63: =+[1]a2_1ind!AE64 -> 0 | D63: =+[1]a2_1ind!AF64 -> 0 | E63: =+[1]a2_1ind!AG64 -> 0 | F63: =+[1]a2_1ind!AH64 -> 0 | G63: =+[1]a2_1ind!AI64 -> 0
A64: =+[1]a2_1ind!AC65 -> 2011-09-01 | B64: =+[1]a2_1ind!AD65 -> 0 | C64: =+[1]a2_1ind!AE65 -> 0 | D64: =+[1]a2_1ind!AF65 -> 0 | E64: =+[1]a2_1ind!AG65 -> 0 | F64: =+[1]a2_1ind!AH65 -> 0 | G64: =+[1]a2_1ind!AI65 -> 0
A65: =+[1]a2_1ind!AC66 -> 2011-10-01 | B65: =+[1]a2_1ind!AD66 -> 0 | C65: =+[1]a2_1ind!AE66 -> 0 | D65: =+[1]a2_1ind!AF66 -> 0 | E65: =+[1]a2_1ind!AG66 -> 0 | F65: =+[1]a2_1ind!AH66 -> 0 | G65: =+[1]a2_1ind!AI66 -> 0
A66: =+[1]a2_1ind!AC67 -> 2011-11-01 | B66: =+[1]a2_1ind!AD67 -> 0 | C66: =+[1]a2_1ind!AE67 -> 0 | D66: =+[1]a2_1ind!AF67 -> 0 | E66: =+[1]a2_1ind!AG67 -> 0 | F66: =+[1]a2_1ind!AH67 -> 0 | G66: =+[1]a2_1ind!AI67 -> 0
A67: =+[1]a2_1ind!AC68 -> 2011-12-01 | B67: =+[1]a2_1ind!AD68 -> 0 | C67: =+[1]a2_1ind!AE68 -> 0 | D67: =+[1]a2_1ind!AF68 -> 0 | E67: =+[1]a2_1ind!AG68 -> 0 | F67: =+[1]a2_1ind!AH68 -> 0 | G67: =+[1]a2_1ind!AI68 -> 0
A68: =+[1]a2_1ind!AC69 -> 00:00:00 | B68: =+[1]a2_1ind!AD69 -> 0 | C68: =+[1]a2_1ind!AE69 -> 0 | D68: =+[1]a2_1ind!AF69 -> 0 | E68: =+[1]a2_1ind!AG69 -> 0 | F68: =+[1]a2_1ind!AH69 -> 0 | G68: =+[1]a2_1ind!AI69 -> 0
A69: =+[1]a2_1ind!AC70 -> 00:00:00 | B69: =+[1]a2_1ind!AD70 -> 0 | C69: =+[1]a2_1ind!AE70 -> 0 | D69: =+[1]a2_1ind!AF70 -> 0 | E69: =+[1]a2_1ind!AG70 -> 0 | F69: =+[1]a2_1ind!AH70 -> 0 | G69: =+[1]a2_1ind!AI70 -> 0
A70: =+[1]a2_1ind!AC71 -> 00:00:00 | B70: =+[1]a2_1ind!AD71 -> 0 | C70: =+[1]a2_1ind!AE71 -> 0 | D70: =+[1]a2_1ind!AF71 -> 0 | E70: =+[1]a2_1ind!AG71 -> 0 | F70: =+[1]a2_1ind!AH71 -> 0 | G70: =+[1]a2_1ind!AI71 -> 0
A71: =+[1]a2_1ind!AC72 -> 00:00:00 | B71: =+[1]a2_1ind!AD72 -> 0 | C71: =+[1]a2_1ind!AE72 -> 0 | D71: =+[1]a2_1ind!AF72 -> 0 | E71: =+[1]a2_1ind!AG72 -> 0 | F71: =+[1]a2_1ind!AH72 -> 0 | G71: =+[1]a2_1ind!AI72 -> 0
A72: =+[1]a2_1ind!AC73 -> 00:00:00 | B72: =+[1]a2_1ind!AD73 -> 0 | C72: =+[1]a2_1ind!AE73 -> 0 | D72: =+[1]a2_1ind!AF73 -> 0 | E72: =+[1]a2_1ind!AG73 -> 0 | F72: =+[1]a2_1ind!AH73 -> 0 | G72: =+[1]a2_1ind!AI73 -> 0
A73: =+[1]a2_1ind!AC74 -> 00:00:00 | B73: =+[1]a2_1ind!AD74 -> 0 | C73: =+[1]a2_1ind!AE74 -> 0 | D73: =+[1]a2_1ind!AF74 -> 0 | E73: =+[1]a2_1ind!AG74 -> 0 | F73: =+[1]a2_1ind!AH74 -> 0 | G73: =+[1]a2_1ind!AI74 -> 0
A74: =+[1]a2_1ind!AC75 -> 00:00:00 | B74: =+[1]a2_1ind!AD75 -> 0 | C74: =+[1]a2_1ind!AE75 -> 0 | D74: =+[1]a2_1ind!AF75 -> 0 | E74: =+[1]a2_1ind!AG75 -> 0 | F74: =+[1]a2_1ind!AH75 -> 0 | G74: =+[1]a2_1ind!AI75 -> 0
A75: =+[1]a2_1ind!AC76 -> 00:00:00 | B75: =+[1]a2_1ind!AD76 -> 0 | C75: =+[1]a2_1ind!AE76 -> 0 | D75: =+[1]a2_1ind!AF76 -> 0 | E75: =+[1]a2_1ind!AG76 -> 0 | F75: =+[1]a2_1ind!AH76 -> 0 | G75: =+[1]a2_1ind!AI76 -> 0
A76: =+[1]a2_1ind!AC77 -> 00:00:00 | B76: =+[1]a2_1ind!AD77 -> 0 | C76: =+[1]a2_1ind!AE77 -> 0 | D76: =+[1]a2_1ind!AF77 -> 0 | E76: =+[1]a2_1ind!AG77 -> 0 | F76: =+[1]a2_1ind!AH77 -> 0 | G76: =+[1]a2_1ind!AI77 -> 0
A77: =+[1]a2_1ind!AC78 -> 00:00:00 | B77: =+[1]a2_1ind!AD78 -> 0 | C77: =+[1]a2_1ind!AE78 -> 0 | D77: =+[1]a2_1ind!AF78 -> 0 | E77: =+[1]a2_1ind!AG78 -> 0 | F77: =+[1]a2_1ind!AH78 -> 0 | G77: =+[1]a2_1ind!AI78 -> 0
A78: =+[1]a2_1ind!AC79 -> 00:00:00 | B78: =+[1]a2_1ind!AD79 -> 0 | C78: =+[1]a2_1ind!AE79 -> 0 | D78: =+[1]a2_1ind!AF79 -> 0 | E78: =+[1]a2_1ind!AG79 -> 0 | F78: =+[1]a2_1ind!AH79 -> 0 | G78: =+[1]a2_1ind!AI79 -> 0
A79: =+[1]a2_1ind!AC80 -> 00:00:00 | B79: =+[1]a2_1ind!AD80 -> 0 | C79: =+[1]a2_1ind!AE80 -> 0 | D79: =+[1]a2_1ind!AF80 -> 0 | E79: =+[1]a2_1ind!AG80 -> 0 | F79: =+[1]a2_1ind!AH80 -> 0 | G79: =+[1]a2_1ind!AI80 -> 0

Sheet Evo. prom boleta por Exhibidor
A1: =+[1]a2_2ind!AC5 -> PRECIO PESOS TERMINOS REALES
A2: =+[1]a2_2ind!AC6 -> Fecha | B2: =+[1]a2_2ind!AD6 -> CINE COLOMBIA | C2: =+[1]a2_2ind!AE6 -> CINEMARK | D2: =+[1]a2_2ind!AF6 -> PROCINAL | E2: =+[1]a2_2ind!AG6 -> ROYAL FILMS | F2: =+[1]a2_2ind!AH6 -> RESTO | G2: =+[1]a2_2ind!AI6 -> NACIONAL
B3: =+PROPER(B2) -> Cine Colombia | C3: =+PROPER(C2) -> Cinemark | D3: Procinal | E3: Royal Films | F3: Resto | G3: Nacional
A4: =+[1]a2_2ind!AC7 -> 2006-09-01 | B4: =+[1]a2_2ind!AD7 -> 8810.268727 | C4: =+[1]a2_2ind!AE7 -> 8291.516002 | D4: =+[1]a2_2ind!AF7 -> 8117.691112 | E4: =+[1]a2_2ind!AG7 -> 6963.990384 | F4: =+[1]a2_2ind!AH7 -> 6633.759161 | G4: =+[1]a2_2ind!AI7 -> 8407.610785
A5: =+[1]a2_2ind!AC8 -> 2006-10-01 | B5: =+[1]a2_2ind!AD8 -> 6474.515531 | C5: =+[1]a2_2ind!AE8 -> 7264.833584 | D5: =+[1]a2_2ind!AF8 -> 6271.503713 | E5: =+[1]a2_2ind!AG8 -> 5375.031319 | F5: =+[1]a2_2ind!AH8 -> 6445.345741 | G5: =+[1]a2_2ind!AI8 -> 6506.488838
A6: =+[1]a2_2ind!AC9 -> 2006-11-01 | B6: =+[1]a2_2ind!AD9 -> 8938.388052 | C6: =+[1]a2_2ind!AE9 -> 8678.215167 | D6: =+[1]a2_2ind!AF9 -> 8158.060071 | E6: =+[1]a2_2ind!AG9 -> 7115.303388 | F6: =+[1]a2_2ind!AH9 -> 7244.09646 | G6: =+[1]a2_2ind!AI9 -> 8605.79919
A7: =+[1]a2_2ind!AC10 -> 2006-12-01 | B7: =+[1]a2_2ind!AD10 -> 8907.195463 | C7: =+[1]a2_2ind!AE10 -> 8453.818936 | D7: =+[1]a2_2ind!AF10 -> 7487.493742 | E7: =+[1]a2_2ind!AG10 -> 6881.028715 | F7: =+[1]a2_2ind!AH10 -> 6736.472394 | G7: =+[1]a2_2ind!AI10 -> 8418.47205
A8: =+[1]a2_2ind!AC11 -> 2007-01-01 | B8: =+[1]a2_2ind!AD11 -> 9313.877795 | C8: =+[1]a2_2ind!AE11 -> 8852.961167 | D8: =+[1]a2_2ind!AF11 -> 7971.738304 | E8: =+[1]a2_2ind!AG11 -> 7547.660819 | F8: =+[1]a2_2ind!AH11 -> 6773.232599 | G8: =+[1]a2_2ind!AI11 -> 8834.722176
A9: =+[1]a2_2ind!AC12 -> 2007-02-01 | B9: =+[1]a2_2ind!AD12 -> 9556.079677 | C9: =+[1]a2_2ind!AE12 -> 8960.26951 | D9: =+[1]a2_2ind!AF12 -> 8415.035154 | E9: =+[1]a2_2ind!AG12 -> 7654.340115 | F9: =+[1]a2_2ind!AH12 -> 7158.579694 | G9: =+[1]a2_2ind!AI12 -> 9070.590282
A10: =+[1]a2_2ind!AC13 -> 2007-03-01 | B10: =+[1]a2_2ind!AD13 -> 9389.379928 | C10: =+[1]a2_2ind!AE13 -> 9005.811903 | D10: =+[1]a2_2ind!AF13 -> 8385.152711 | E10: =+[1]a2_2ind!AG13 -> 7676.149511 | F10: =+[1]a2_2ind!AH13 -> 6943.474371 | G10: =+[1]a2_2ind!AI13 -> 8979.128686
A11: =+[1]a2_2ind!AC14 -> 2007-04-01 | B11: =+[1]a2_2ind!AD14 -> 8837.056389 | C11: =+[1]a2_2ind!AE14 -> 8620.594694 | D11: =+[1]a2_2ind!AF14 -> 7618.677338 | E11: =+[1]a2_2ind!AG14 -> 7286.298971 | F11: =+[1]a2_2ind!AH14 -> 6593.140475 | G11: =+[1]a2_2ind!AI14 -> 8446.25802
A12: =+[1]a2_2ind!AC15 -> 2007-05-01 | B12: =+[1]a2_2ind!AD15 -> 9007.381255 | C12: =+[1]a2_2ind!AE15 -> 8625.438581 | D12: =+[1]a2_2ind!AF15 -> 8024.796914 | E12: =+[1]a2_2ind!AG15 -> 7443.204213 | F12: =+[1]a2_2ind!AH15 -> 5988.883924 | G12: =+[1]a2_2ind!AI15 -> 8489.586999
A13: =+[1]a2_2ind!AC16 -> 2007-06-01 | B13: =+[1]a2_2ind!AD16 -> 8819.21381 | C13: =+[1]a2_2ind!AE16 -> 8583.200876 | D13: =+[1]a2_2ind!AF16 -> 8119.17018 | E13: =+[1]a2_2ind!AG16 -> 7418.452891 | F13: =+[1]a2_2ind!AH16 -> 5918.629305 | G13: =+[1]a2_2ind!AI16 -> 8453.093178
A14: =+[1]a2_2ind!AC17 -> 2007-07-01 | B14: =+[1]a2_2ind!AD17 -> 8770.588123 | C14: =+[1]a2_2ind!AE17 -> 8326.297766 | D14: =+[1]a2_2ind!AF17 -> 8188.107793 | E14: =+[1]a2_2ind!AG17 -> 7230.597465 | F14: =+[1]a2_2ind!AH17 -> 5845.29339 | G14: =+[1]a2_2ind!AI17 -> 8362.958599
A15: =+[1]a2_2ind!AC18 -> 2007-08-01 | B15: =+[1]a2_2ind!AD18 -> 8892.939097 | C15: =+[1]a2_2ind!AE18 -> 8537.042734 | D15: =+[1]a2_2ind!AF18 -> 8413.819137 | E15: =+[1]a2_2ind!AG18 -> 7391.762571 | F15: =+[1]a2_2ind!AH18 -> 5871.414934 | G15: =+[1]a2_2ind!AI18 -> 8533.984989
A16: =+[1]a2_2ind!AC19 -> 2007-09-01 | B16: =+[1]a2_2ind!AD19 -> 8803.873031 | C16: =+[1]a2_2ind!AE19 -> 8590.760098 | D16: =+[1]a2_2ind!AF19 -> 8017.937373 | E16: =+[1]a2_2ind!AG19 -> 7265.973495 | F16: =+[1]a2_2ind!AH19 -> 5739.784776 | G16: =+[1]a2_2ind!AI19 -> 8457.849028
A17: =+[1]a2_2ind!AC20 -> 2007-10-01 | B17: =+[1]a2_2ind!AD20 -> 7159.436677 | C17: =+[1]a2_2ind!AE20 -> 7343.563618 | D17: =+[1]a2_2ind!AF20 -> 5984.267621 | E17: =+[1]a2_2ind!AG20 -> 6158.76517 | F17: =+[1]a2_2ind!AH20 -> 5582.723387 | G17: =+[1]a2_2ind!AI20 -> 6946.81903
A18: =+[1]a2_2ind!AC21 -> 2007-11-01 | B18: =+[1]a2_2ind!AD21 -> 8814.970155 | C18: =+[1]a2_2ind!AE21 -> 9396.224201 | D18: =+[1]a2_2ind!AF21 -> 8128.414795 | E18: =+[1]a2_2ind!AG21 -> 7491.077931 | F18: =+[1]a2_2ind!AH21 -> 6296.038165 | G18: =+[1]a2_2ind!AI21 -> 8668.521312
A19: =+[1]a2_2ind!AC22 -> 2007-12-01 | B19: =+[1]a2_2ind!AD22 -> 8797.894571 | C19: =+[1]a2_2ind!AE22 -> 9113.633967 | D19: =+[1]a2_2ind!AF22 -> 8007.77804 | E19: =+[1]a2_2ind!AG22 -> 7103.112473 | F19: =+[1]a2_2ind!AH22 -> 6243.606789 | G19: =+[1]a2_2ind!AI22 -> 8524.150888
A20: =+[1]a2_2ind!AC23 -> 2008-01-01 | B20: =+[1]a2_2ind!AD23 -> 8942.840473 | C20: =+[1]a2_2ind!AE23 -> 9165.601885 | D20: =+[1]a2_2ind!AF23 -> 8046.949712 | E20: =+[1]a2_2ind!AG23 -> 6812.286282 | F20: =+[1]a2_2ind!AH23 -> 6601.020872 | G20: =+[1]a2_2ind!AI23 -> 8629.446979
A21: =+[1]a2_2ind!AC24 -> 2008-02-01 | B21: =+[1]a2_2ind!AD24 -> 8961.670219 | C21: =+[1]a2_2ind!AE24 -> 8974.082671 | D21: =+[1]a2_2ind!AF24 -> 8179.193099 | E21: =+[1]a2_2ind!AG24 -> 6613.511457 | F21: =+[1]a2_2ind!AH24 -> 7440.938785 | G21: =+[1]a2_2ind!AI24 -> 8574.629287
A22: =+[1]a2_2ind!AC25 -> 2008-03-01 | B22: =+[1]a2_2ind!AD25 -> 8775.506094 | C22: =+[1]a2_2ind!AE25 -> 9265.742891 | D22: =+[1]a2_2ind!AF25 -> 7789.952104 | E22: =+[1]a2_2ind!AG25 -> 7113.666209 | F22: =+[1]a2_2ind!AH25 -> 7157.69827 | G22: =+[1]a2_2ind!AI25 -> 8515.631194
A23: =+[1]a2_2ind!AC26 -> 2008-04-01 | B23: =+[1]a2_2ind!AD26 -> 8352.037795 | C23: =+[1]a2_2ind!AE26 -> 9096.381258 | D23: =+[1]a2_2ind!AF26 -> 7358.150536 | E23: =+[1]a2_2ind!AG26 -> 7023.60905 | F23: =+[1]a2_2ind!AH26 -> 7240.23235 | G23: =+[1]a2_2ind!AI26 -> 8179.435336
A24: =+[1]a2_2ind!AC27 -> 2008-05-01 | B24: =+[1]a2_2ind!AD27 -> 8742.926927 | C24: =+[1]a2_2ind!AE27 -> 9286.355056 | D24: =+[1]a2_2ind!AF27 -> 7626.868486 | E24: =+[1]a2_2ind!AG27 -> 7227.476543 | F24: =+[1]a2_2ind!AH27 -> 8001.931704 | G24: =+[1]a2_2ind!AI27 -> 8496.901677
A25: =+[1]a2_2ind!AC28 -> 2008-06-01 | B25: =+[1]a2_2ind!AD28 -> 8384.947748 | C25: =+[1]a2_2ind!AE28 -> 8825.997859 | D25: =+[1]a2_2ind!AF28 -> 7190.569826 | E25: =+[1]a2_2ind!AG28 -> 7094.193329 | F25: =+[1]a2_2ind!AH28 -> 7824.41977 | G25: =+[1]a2_2ind!AI28 -> 8122.575206
A26: =+[1]a2_2ind!AC29 -> 2008-07-01 | B26: =+[1]a2_2ind!AD29 -> 8151.082252 | C26: =+[1]a2_2ind!AE29 -> 8392.5799 | D26: =+[1]a2_2ind!AF29 -> 6970.602448 | E26: =+[1]a2_2ind!AG29 -> 7039.808153 | F26: =+[1]a2_2ind!AH29 -> 7503.345008 | G26: =+[1]a2_2ind!AI29 -> 7881.553294
A27: =+[1]a2_2ind!AC30 -> 2008-08-01 | B27: =+[1]a2_2ind!AD30 -> 8517.650152 | C27: =+[1]a2_2ind!AE30 -> 8324.484973 | D27: =+[1]a2_2ind!AF30 -> 6612.394584 | E27: =+[1]a2_2ind!AG30 -> 7209.534188 | F27: =+[1]a2_2ind!AH30 -> 7869.080386 | G27: =+[1]a2_2ind!AI30 -> 8052.920399
A28: =+[1]a2_2ind!AC31 -> 2008-09-01 | B28: =+[1]a2_2ind!AD31 -> 8494.598815 | C28: =+[1]a2_2ind!AE31 -> 8151.660564 | D28: =+[1]a2_2ind!AF31 -> 6737.027953 | E28: =+[1]a2_2ind!AG31 -> 7245.322133 | F28: =+[1]a2_2ind!AH31 -> 7640.551343 | G28: =+[1]a2_2ind!AI31 -> 8029.110578
A29: =+[1]a2_2ind!AC32 -> 2008-10-01 | B29: =+[1]a2_2ind!AD32 -> 8405.965454 | C29: =+[1]a2_2ind!AE32 -> 6739.888761 | D29: =+[1]a2_2ind!AF32 -> 7289.273033 | E29: =+[1]a2_2ind!AG32 -> 6981.936432 | F29: =+[1]a2_2ind!AH32 -> 7495.81966 | G29: =+[1]a2_2ind!AI32 -> 7729.948128 | K29: Evolución real del precio promedio de la boleta por exhibidor
A30: =+[1]a2_2ind!AC33 -> 2008-11-01 | B30: =+[1]a2_2ind!AD33 -> 8538.931805 | C30: =+[1]a2_2ind!AE33 -> 7606.491637 | D30: =+[1]a2_2ind!AF33 -> 6497.684741 | E30: =+[1]a2_2ind!AG33 -> 7318.539494 | F30: =+[1]a2_2ind!AH33 -> 7948.243695 | G30: =+[1]a2_2ind!AI33 -> 7935.58273
A31: =+[1]a2_2ind!AC34 -> 2008-12-01 | B31: =+[1]a2_2ind!AD34 -> 8767.333711 | C31: =+[1]a2_2ind!AE34 -> 8301.766394 | D31: =+[1]a2_2ind!AF34 -> 6316.608772 | E31: =+[1]a2_2ind!AG34 -> 7323.112897 | F31: =+[1]a2_2ind!AH34 -> 7617.131106 | G31: =+[1]a2_2ind!AI34 -> 8125.266155
A32: =+[1]a2_2ind!AC35 -> 2009-01-01 | B32: =+[1]a2_2ind!AD35 -> 9510.580381 | C32: =+[1]a2_2ind!AE35 -> 8493.857565 | D32: =+[1]a2_2ind!AF35 -> 6319.768318 | E32: =+[1]a2_2ind!AG35 -> 7538.708437 | F32: =+[1]a2_2ind!AH35 -> 7525.917884 | G32: =+[1]a2_2ind!AI35 -> 8560.205969
A33: =+[1]a2_2ind!AC36 -> 2009-02-01 | B33: =+[1]a2_2ind!AD36 -> 9471.944849 | C33: =+[1]a2_2ind!AE36 -> 8095.83017 | D33: =+[1]a2_2ind!AF36 -> 5955.653575 | E33: =+[1]a2_2ind!AG36 -> 7435.249565 | F33: =+[1]a2_2ind!AH36 -> 7420.833677 | G33: =+[1]a2_2ind!AI36 -> 8406.084178
A34: =+[1]a2_2ind!AC37 -> 2009-03-01 | B34: =+[1]a2_2ind!AD37 -> 9434.193119 | C34: =+[1]a2_2ind!AE37 -> 7982.16803 | D34: =+[1]a2_2ind!AF37 -> 5291.221154 | E34: =+[1]a2_2ind!AG37 -> 7287.928598 | F34: =+[1]a2_2ind!AH37 -> 7550.484342 | G34: =+[1]a2_2ind!AI37 -> 8137.271472
A35: =+[1]a2_2ind!AC38 -> 2009-04-01 | B35: =+[1]a2_2ind!AD38 -> 9195.890036 | C35: =+[1]a2_2ind!AE38 -> 8240.968005 | D35: =+[1]a2_2ind!AF38 -> 5022.693251 | E35: =+[1]a2_2ind!AG38 -> 5969.69778 | F35: =+[1]a2_2ind!AH38 -> 8854.392688 | G35: =+[1]a2_2ind!AI38 -> 7861.827633
A36: =+[1]a2_2ind!AC39 -> 2009-05-01 | B36: =+[1]a2_2ind!AD39 -> 9210.742629 | C36: =+[1]a2_2ind!AE39 -> 7580.184636 | D36: =+[1]a2_2ind!AF39 -> 5125.648564 | E36: =+[1]a2_2ind!AG39 -> 6589.5953 | F36: =+[1]a2_2ind!AH39 -> 7964.879069 | G36: =+[1]a2_2ind!AI39 -> 7760.487224
A37: =+[1]a2_2ind!AC40 -> 2009-06-01 | B37: =+[1]a2_2ind!AD40 -> 9551.631564 | C37: =+[1]a2_2ind!AE40 -> 8091.47176 | D37: =+[1]a2_2ind!AF40 -> 5117.54205 | E37: =+[1]a2_2ind!AG40 -> 6958.415372 | F37: =+[1]a2_2ind!AH40 -> 7959.87834 | G37: =+[1]a2_2ind!AI40 -> 8005.73182
A38: =+[1]a2_2ind!AC41 -> 2009-07-01 | B38: =+[1]a2_2ind!AD41 -> 9418.417041 | C38: =+[1]a2_2ind!AE41 -> 7929.176766 | D38: =+[1]a2_2ind!AF41 -> 5070.339529 | E38: =+[1]a2_2ind!AG41 -> 6897.20764 | F38: =+[1]a2_2ind!AH41 -> 8241.044227 | G38: =+[1]a2_2ind!AI41 -> 7910.013505
A39: =+[1]a2_2ind!AC42 -> 2009-08-01 | B39: =+[1]a2_2ind!AD42 -> 9630.800453 | C39: =+[1]a2_2ind!AE42 -> 7907.507777 | D39: =+[1]a2_2ind!AF42 -> 5084.010591 | E39: =+[1]a2_2ind!AG42 -> 7012.588619 | F39: =+[1]a2_2ind!AH42 -> 7584.333418 | G39: =+[1]a2_2ind!AI42 -> 7968.59018
A40: =+[1]a2_2ind!AC43 -> 2009-09-01 | B40: =+[1]a2_2ind!AD43 -> 9342.860615 | C40: =+[1]a2_2ind!AE43 -> 7783.167602 | D40: =+[1]a2_2ind!AF43 -> 4590.809053 | E40: =+[1]a2_2ind!AG43 -> 6400.673376 | F40: =+[1]a2_2ind!AH43 -> 7357.747244 | G40: =+[1]a2_2ind!AI43 -> 7517.77214
A41: =+[1]a2_2ind!AC44 -> 2009-10-01 | B41: =+[1]a2_2ind!AD44 -> 9116.398687 | C41: =+[1]a2_2ind!AE44 -> 7860.494301 | D41: =+[1]a2_2ind!AF44 -> 4436.609294 | E41: =+[1]a2_2ind!AG44 -> 6054.180147 | F41: =+[1]a2_2ind!AH44 -> 6840.283334 | G41: =+[1]a2_2ind!AI44 -> 7237.633032
A42: =+[1]a2_2ind!AC45 -> 2009-11-01 | B42: =+[1]a2_2ind!AD45 -> 8037.243443 | C42: =+[1]a2_2ind!AE45 -> 6897.337808 | D42: =+[1]a2_2ind!AF45 -> 4649.073071 | E42: =+[1]a2_2ind!AG45 -> 5687.360204 | F42: =+[1]a2_2ind!AH45 -> 6437.980436 | G42: =+[1]a2_2ind!AI45 -> 6739.395729
A43: =+[1]a2_2ind!AC46 -> 2009-12-01 | B43: =+[1]a2_2ind!AD46 -> 8446.158727 | C43: =+[1]a2_2ind!AE46 -> 7362.605084 | D43: =+[1]a2_2ind!AF46 -> 4968.276954 | E43: =+[1]a2_2ind!AG46 -> 5898.078955 | F43: =+[1]a2_2ind!AH46 -> 7403.712465 | G43: =+[1]a2_2ind!AI46 -> 7223.832615
A44: =+[1]a2_2ind!AC47 -> 2010-01-01 | B44: =+[1]a2_2ind!AD47 -> 8928.261734 | C44: =+[1]a2_2ind!AE47 -> 7770.556093 | D44: =+[1]a2_2ind!AF47 -> 5549.238278 | E44: =+[1]a2_2ind!AG47 -> 6307.991253 | F44: =+[1]a2_2ind!AH47 -> 7868.05783 | G44: =+[1]a2_2ind!AI47 -> 7791.617828
A45: =+[1]a2_2ind!AC48 -> 2010-02-01 | B45: =+[1]a2_2ind!AD48 -> 8952.035379 | C45: =+[1]a2_2ind!AE48 -> 7879.144848 | D45: =+[1]a2_2ind!AF48 -> 5576.496697 | E45: =+[1]a2_2ind!AG48 -> 6324.650454 | F45: =+[1]a2_2ind!AH48 -> 7680.817714 | G45: =+[1]a2_2ind!AI48 -> 7835.506071
A46: =+[1]a2_2ind!AC49 -> 2010-03-01 | B46: =+[1]a2_2ind!AD49 -> 9528.055368 | C46: =+[1]a2_2ind!AE49 -> 8060.439812 | D46: =+[1]a2_2ind!AF49 -> 5480.82509 | E46: =+[1]a2_2ind!AG49 -> 6224.377467 | F46: =+[1]a2_2ind!AH49 -> 8141.458777 | G46: =+[1]a2_2ind!AI49 -> 8099.790957
A47: =+[1]a2_2ind!AC50 -> 2010-04-01 | B47: =+[1]a2_2ind!AD50 -> 9524.461181 | C47: =+[1]a2_2ind!AE50 -> 7890.603503 | D47: =+[1]a2_2ind!AF50 -> 5749.942254 | E47: =+[1]a2_2ind!AG50 -> 6069.526996 | F47: =+[1]a2_2ind!AH50 -> 7569.137221 | G47: =+[1]a2_2ind!AI50 -> 7992.140584
A48: =+[1]a2_2ind!AC51 -> 2010-05-01 | B48: =+[1]a2_2ind!AD51 -> 8776.428304 | C48: =+[1]a2_2ind!AE51 -> 7530.129254 | D48: =+[1]a2_2ind!AF51 -> 6041.81641 | E48: =+[1]a2_2ind!AG51 -> 5652.286732 | F48: =+[1]a2_2ind!AH51 -> 7091.087543 | G48: =+[1]a2_2ind!AI51 -> 7503.216957
A49: =+[1]a2_2ind!AC52 -> 2010-06-01 | B49: =+[1]a2_2ind!AD52 -> 8912.359103 | C49: =+[1]a2_2ind!AE52 -> 7707.198311 | D49: =+[1]a2_2ind!AF52 -> 6110.955702 | E49: =+[1]a2_2ind!AG52 -> 5911.667566 | F49: =+[1]a2_2ind!AH52 -> 8063.417931 | G49: =+[1]a2_2ind!AI52 -> 7798.461409
A50: =+[1]a2_2ind!AC53 -> 2010-07-01 | B50: =+[1]a2_2ind!AD53 -> 9189.912635 | C50: =+[1]a2_2ind!AE53 -> 7885.980241 | D50: =+[1]a2_2ind!AF53 -> 6327.019568 | E50: =+[1]a2_2ind!AG53 -> 6612.739575 | F50: =+[1]a2_2ind!AH53 -> 8469.493331 | G50: =+[1]a2_2ind!AI53 -> 8114.49164
A51: =+[1]a2_2ind!AC54 -> 2010-08-01 | B51: =+[1]a2_2ind!AD54 -> 8972.106537 | C51: =+[1]a2_2ind!AE54 -> 7690.653452 | D51: =+[1]a2_2ind!AF54 -> 6510.374013 | E51: =+[1]a2_2ind!AG54 -> 6716.921523 | F51: =+[1]a2_2ind!AH54 -> 7970.002128 | G51: =+[1]a2_2ind!AI54 -> 7970.808045
A52: =+[1]a2_2ind!AC55 -> 2010-09-01 | B52: =+[1]a2_2ind!AD55 -> 9114.922451 | C52: =+[1]a2_2ind!AE55 -> 7513.266257 | D52: =+[1]a2_2ind!AF55 -> 6488.601923 | E52: =+[1]a2_2ind!AG55 -> 7174.603908 | F52: =+[1]a2_2ind!AH55 -> 8018.536059 | G52: =+[1]a2_2ind!AI55 -> 8064.321105
A53: =+[1]a2_2ind!AC56 -> 2010-10-01 | B53: =+[1]a2_2ind!AD56 -> 9175.482838 | C53: =+[1]a2_2ind!AE56 -> 7911.56157 | D53: =+[1]a2_2ind!AF56 -> 6405.059891 | E53: =+[1]a2_2ind!AG56 -> 6925.288202 | F53: =+[1]a2_2ind!AH56 -> 8200.978703 | G53: =+[1]a2_2ind!AI56 -> 8154.767474
A54: =+[1]a2_2ind!AC57 -> 2010-11-01 | B54: =+[1]a2_2ind!AD57 -> 8799.379747 | C54: =+[1]a2_2ind!AE57 -> 7534.728416 | D54: =+[1]a2_2ind!AF57 -> 6311.8827 | E54: =+[1]a2_2ind!AG57 -> 6777.678832 | F54: =+[1]a2_2ind!AH57 -> 7921.707272 | G54: =+[1]a2_2ind!AI57 -> 7877.64668
A55: =+[1]a2_2ind!AC58 -> 2010-12-01 | B55: =+[1]a2_2ind!AD58 -> 8847.217401 | C55: =+[1]a2_2ind!AE58 -> 7770.926777 | D55: =+[1]a2_2ind!AF58 -> 6489.012627 | E55: =+[1]a2_2ind!AG58 -> 7134.591541 | F55: =+[1]a2_2ind!AH58 -> 8472.034182 | G55: =+[1]a2_2ind!AI58 -> 8043.045978
A56: =+[1]a2_2ind!AC59 -> 2011-01-01 | B56: =+[1]a2_2ind!AD59 -> 8641.595615 | C56: =+[1]a2_2ind!AE59 -> 8340.778993 | D56: =+[1]a2_2ind!AF59 -> 6428.99291 | E56: =+[1]a2_2ind!AG59 -> 7179.272662 | F56: =+[1]a2_2ind!AH59 -> 8312.26103 | G56: =+[1]a2_2ind!AI59 -> 8024.075146
A57: =+[1]a2_2ind!AC60 -> 2011-02-01 | B57: =+[1]a2_2ind!AD60 -> 8630.487057 | C57: =+[1]a2_2ind!AE60 -> 8543.039682 | D57: =+[1]a2_2ind!AF60 -> 6267.865906 | E57: =+[1]a2_2ind!AG60 -> 6895.07677 | F57: =+[1]a2_2ind!AH60 -> 7892.727872 | G57: =+[1]a2_2ind!AI60 -> 7988.258224
A58: =+[1]a2_2ind!AC61 -> 2011-03-01 | B58: =+[1]a2_2ind!AD61 -> 7985.14907 | C58: =+[1]a2_2ind!AE61 -> 7825.750819 | D58: =+[1]a2_2ind!AF61 -> 6104.298186 | E58: =+[1]a2_2ind!AG61 -> 6303.454199 | F58: =+[1]a2_2ind!AH61 -> 7399.376941 | G58: =+[1]a2_2ind!AI61 -> 7437.718007
A59: =+[1]a2_2ind!AC62 -> 2011-04-01 | B59: =+[1]a2_2ind!AD62 -> 8384.984178 | C59: =+[1]a2_2ind!AE62 -> 8431.927341 | D59: =+[1]a2_2ind!AF62 -> 6309.572307 | E59: =+[1]a2_2ind!AG62 -> 7321.78632 | F59: =+[1]a2_2ind!AH62 -> 8019.099793 | G59: =+[1]a2_2ind!AI62 -> 7900.791584
A60: =+[1]a2_2ind!AC63 -> 2011-05-01 | B60: =+[1]a2_2ind!AD63 -> 8505.641837 | C60: =+[1]a2_2ind!AE63 -> 8659.755237 | D60: =+[1]a2_2ind!AF63 -> 6148.619858 | E60: =+[1]a2_2ind!AG63 -> 6979.538878 | F60: =+[1]a2_2ind!AH63 -> 8228.207653 | G60: =+[1]a2_2ind!AI63 -> 7948.035082
A61: =+[1]a2_2ind!AC64 -> 2011-06-01 | B61: =+[1]a2_2ind!AD64 -> 8165.313095 | C61: =+[1]a2_2ind!AE64 -> 8719.827273 | D61: =+[1]a2_2ind!AF64 -> 6410.490925 | E61: =+[1]a2_2ind!AG64 -> 6923.242945 | F61: =+[1]a2_2ind!AH64 -> 7839.98709 | G61: =+[1]a2_2ind!AI64 -> 7801.038817
A62: =+[1]a2_2ind!AC65 -> 2011-07-01 | B62: =+[1]a2_2ind!AD65 -> 0 | C62: =+[1]a2_2ind!AE65 -> 0 | D62: =+[1]a2_2ind!AF65 -> 0 | E62: =+[1]a2_2ind!AG65 -> 0 | F62: =+[1]a2_2ind!AH65 -> 0 | G62: =+[1]a2_2ind!AI65 -> 0
A63: =+[1]a2_2ind!AC66 -> 2011-08-01 | B63: =+[1]a2_2ind!AD66 -> 0 | C63: =+[1]a2_2ind!AE66 -> 0 | D63: =+[1]a2_2ind!AF66 -> 0 | E63: =+[1]a2_2ind!AG66 -> 0 | F63: =+[1]a2_2ind!AH66 -> 0 | G63: =+[1]a2_2ind!AI66 -> 0
A64: =+[1]a2_2ind!AC67 -> 2011-09-01 | B64: =+[1]a2_2ind!AD67 -> 0 | C64: =+[1]a2_2ind!AE67 -> 0 | D64: =+[1]a2_2ind!AF67 -> 0 | E64: =+[1]a2_2ind!AG67 -> 0 | F64: =+[1]a2_2ind!AH67 -> 0 | G64: =+[1]a2_2ind!AI67 -> 0
A65: =+[1]a2_2ind!AC68 -> 2011-10-01 | B65: =+[1]a2_2ind!AD68 -> 0 | C65: =+[1]a2_2ind!AE68 -> 0 | D65: =+[1]a2_2ind!AF68 -> 0 | E65: =+[1]a2_2ind!AG68 -> 0 | F65: =+[1]a2_2ind!AH68 -> 0 | G65: =+[1]a2_2ind!AI68 -> 0
A66: =+[1]a2_2ind!AC69 -> 2011-11-01 | B66: =+[1]a2_2ind!AD69 -> 0 | C66: =+[1]a2_2ind!AE69 -> 0 | D66: =+[1]a2_2ind!AF69 -> 0 | E66: =+[1]a2_2ind!AG69 -> 0 | F66: =+[1]a2_2ind!AH69 -> 0 | G66: =+[1]a2_2ind!AI69 -> 0
A67: =+[1]a2_2ind!AC70 -> 2011-12-01 | B67: =+[1]a2_2ind!AD70 -> 0 | C67: =+[1]a2_2ind!AE70 -> 0 | D67: =+[1]a2_2ind!AF70 -> 0 | E67: =+[1]a2_2ind!AG70 -> 0 | F67: =+[1]a2_2ind!AH70 -> 0 | G67: =+[1]a2_2ind!AI70 -> 0
A68: =+[1]a2_2ind!AC71 -> 00:00:00 | B68: =+[1]a2_2ind!AD71 -> 0 | C68: =+[1]a2_2ind!AE71 -> 0 | D68: =+[1]a2_2ind!AF71 -> 0 | E68: =+[1]a2_2ind!AG71 -> 0 | F68: =+[1]a2_2ind!AH71 -> 0 | G68: =+[1]a2_2ind!AI71 -> 0
A69: =+[1]a2_2ind!AC72 -> 00:00:00 | B69: =+[1]a2_2ind!AD72 -> 0 | C69: =+[1]a2_2ind!AE72 -> 0 | D69: =+[1]a2_2ind!AF72 -> 0 | E69: =+[1]a2_2ind!AG72 -> 0 | F69: =+[1]a2_2ind!AH72 -> 0 | G69: =+[1]a2_2ind!AI72 -> 0
A70: =+[1]a2_2ind!AC73 -> 00:00:00 | B70: =+[1]a2_2ind!AD73 -> 0 | C70: =+[1]a2_2ind!AE73 -> 0 | D70: =+[1]a2_2ind!AF73 -> 0 | E70: =+[1]a2_2ind!AG73 -> 0 | F70: =+[1]a2_2ind!AH73 -> 0 | G70: =+[1]a2_2ind!AI73 -> 0
A71: =+[1]a2_2ind!AC74 -> 00:00:00 | B71: =+[1]a2_2ind!AD74 -> 0 | C71: =+[1]a2_2ind!AE74 -> 0 | D71: =+[1]a2_2ind!AF74 -> 0 | E71: =+[1]a2_2ind!AG74 -> 0 | F71: =+[1]a2_2ind!AH74 -> 0 | G71: =+[1]a2_2ind!AI74 -> 0
A72: =+[1]a2_2ind!AC75 -> 00:00:00 | B72: =+[1]a2_2ind!AD75 -> 0 | C72: =+[1]a2_2ind!AE75 -> 0 | D72: =+[1]a2_2ind!AF75 -> 0 | E72: =+[1]a2_2ind!AG75 -> 0 | F72: =+[1]a2_2ind!AH75 -> 0 | G72: =+[1]a2_2ind!AI75 -> 0
A73: =+[1]a2_2ind!AC76 -> 00:00:00 | B73: =+[1]a2_2ind!AD76 -> 0 | C73: =+[1]a2_2ind!AE76 -> 0 | D73: =+[1]a2_2ind!AF76 -> 0 | E73: =+[1]a2_2ind!AG76 -> 0 | F73: =+[1]a2_2ind!AH76 -> 0 | G73: =+[1]a2_2ind!AI76 -> 0
A74: =+[1]a2_2ind!AC77 -> 00:00:00 | B74: =+[1]a2_2ind!AD77 -> 0 | C74: =+[1]a2_2ind!AE77 -> 0 | D74: =+[1]a2_2ind!AF77 -> 0 | E74: =+[1]a2_2ind!AG77 -> 0 | F74: =+[1]a2_2ind!AH77 -> 0 | G74: =+[1]a2_2ind!AI77 -> 0
A75: =+[1]a2_2ind!AC78 -> 00:00:00 | B75: =+[1]a2_2ind!AD78 -> 0 | C75: =+[1]a2_2ind!AE78 -> 0 | D75: =+[1]a2_2ind!AF78 -> 0 | E75: =+[1]a2_2ind!AG78 -> 0 | F75: =+[1]a2_2ind!AH78 -> 0 | G75: =+[1]a2_2ind!AI78 -> 0
A76: =+[1]a2_2ind!AC79 -> 00:00:00 | B76: =+[1]a2_2ind!AD79 -> 0 | C76: =+[1]a2_2ind!AE79 -> 0 | D76: =+[1]a2_2ind!AF79 -> 0 | E76: =+[1]a2_2ind!AG79 -> 0 | F76: =+[1]a2_2ind!AH79 -> 0 | G76: =+[1]a2_2ind!AI79 -> 0
A77: =+[1]a2_2ind!AC80 -> 00:00:00 | B77: =+[1]a2_2ind!AD80 -> 0 | C77: =+[1]a2_2ind!AE80 -> 0 | D77: =+[1]a2_2ind!AF80 -> 0 | E77: =+[1]a2_2ind!AG80 -> 0 | F77: =+[1]a2_2ind!AH80 -> 0 | G77: =+[1]a2_2ind!AI80 -> 0
A78: =+[1]a2_2ind!AC81 -> 00:00:00 | B78: =+[1]a2_2ind!AD81 -> 0 | C78: =+[1]a2_2ind!AE81 -> 0 | D78: =+[1]a2_2ind!AF81 -> 0 | E78: =+[1]a2_2ind!AG81 -> 0 | F78: =+[1]a2_2ind!AH81 -> 0 | G78: =+[1]a2_2ind!AI81 -> 0
A79: =+[1]a2_2ind!AC82 -> 00:00:00 | B79: =+[1]a2_2ind!AD82 -> 0 | C79: =+[1]a2_2ind!AE82 -> 0 | D79: =+[1]a2_2ind!AF82 -> 0 | E79: =+[1]a2_2ind!AG82 -> 0 | F79: =+[1]a2_2ind!AH82 -> 0 | G79: =+[1]a2_2ind!AI82 -> 0
A80: =+[1]a2_2ind!AC83 -> 00:00:00 | B80: =+[1]a2_2ind!AD83 -> 0 | C80: =+[1]a2_2ind!AE83 -> 0 | D80: =+[1]a2_2ind!AF83 -> 0 | E80: =+[1]a2_2ind!AG83 -> 0 | F80: =+[1]a2_2ind!AH83 -> 0 | G80: =+[1]a2_2ind!AI83 -> 0

Sheet Hoja1
